Workbook

Sheet VOLT LOSS CAL
D2: Volt Loss / Wire Gauge Calculator
D3: Tech Support: 855.592.0029
B5: FILL OUT THE BLUE BOXES | F5: DATE:
B11: LED Strip
B12: Run Length (FT) | D12: =IF(C12>C18,"Exceed Max Run Length","") -> 
B13: Drive Method | C13: =IFERROR(VLOOKUP(C11,DATA!$O$3:$U$50,7,FALSE),"") -> 
B14: Voltage | C14: =IFERROR(VLOOKUP(C11,DATA!$O$3:$Q$50,3,FALSE),"") -> 
B15: Min. Voltage | C15: =IFERROR(VLOOKUP(C11,DATA!O3:V50,8,FALSE),"") -> 
B16: Wattage/FT | C16: =IFERROR(VLOOKUP($C$11,DATA!$O$3:$Q$50,2,FALSE),"") -> 
B17: Amperage/FT | C17: =IFERROR(VLOOKUP($C$11,DATA!$O$3:$R$50,4,FALSE),"") -> 
B18: Max Run Length | C18: =IFERROR(VLOOKUP($C$11,DATA!$O$3:$S$50,5,FALSE),"") -> 
B19: Total Wattage | C19: =IFERROR((C12*C16),"") -> 
B20: Total Amperage | C20: =IFERROR((C17*C12),"") -> 
B22: Wire Gauge | F22: Typical Wire Gauge
B23: Wire Length (FT) | F23: Static White | G23: 20
B24: Voltage Drop (%) | C24: =DATA!R54 ->  | F24: Dim to Warm | G24: 20
B25: Voltage Drop (V) | C25: =DATA!R55 ->  | F25: Tunable White | G25: 22
B26: Voltage to LED | C26: =DATA!R56 ->  | D26: =IFERROR(IF(C26<C15,"Increase wire gauge or reduce load","Wire gauge and load is optimal"),"") -> Wire gauge and load is optimal | F26: RGB | G26: 22
B27: =IFERROR(IF(C26<C15,"Sug. Wire Gauge",""),"") ->  | C27: =IFERROR(IF(C26<C15,DATA!L61,""),"") ->  | F27: RGBW | G27: 22
F28: RGBWW | G28: 22
B35: This design tool is for information only. All wiring must comply with the latest edition of NFPA70 - National Electrical Code, local ordinances, and applicable local codes. If you are unfamiliar with methods of installing electrical wiring, secure the services of a qualified, licensed electrician. JESCO Lighting Group assumes no responsibility for incorrect wiring.
B37: New York Corporate Office | D37: Los Angeles
B38: 15 Harbor Park Drive, Port Washington, NY 11050 | D38: 219 South 6th Avenue, City of Industry, California 91746
B39: Tel: 800.527.7796 Fax: 855.265.5768 | D39: Tel: 626.333.3661 Fax: 626.333.2955
D42: www.JESCOLIGHTING.com | F42: JW08012022

Sheet DATA (hidden)
B1: WIRE TABLE
A2: Wire | B2: Table | C2: ANNEAL | D2: ED COPPE | E2: R (AWG) | P2: W/FT | Q2: Voltage | R2: Amp/FT | S2: Max Run (FT) | T2: Max Run (Amp) | W2: 1 | X2: 2 | Y2: 3 | Z2: 4 | AA2: 5 | AB2: 6 | AC2: 7 | AD2: 8 | AE2: 9 | AF2: 10 | AG2: 11 | AH2: 12 | AI2: 13 | AJ2: 14 | AK2: 15 | AL2: 16 | AM2: 17 | AN2: 18 | AO2: 19 | AP2: 20 | AQ2: 21 | AR2: 22 | AS2: 23 | AT2: 24 | AU2: 25 | AV2: 26 | AW2: 27 | AX2: 28 | AY2: 29 | AZ2: 30 | BA2: 31 | BB2: 32 | BC2: 33 | BD2: 34 | BE2: 35 | BF2: 36 | BG2: 37 | BH2: 38 | BI2: 39 | BJ2: 40 | BK2: 41 | BL2: 42 | BM2: 43 | BN2: 44 | BO2: 45 | BP2: 46 | BQ2: 47 | BR2: 48 | BS2: 49 | BT2: 50 | BU2: 51 | BV2: 52 | BW2: 53 | BX2: 54 | BY2: 55 | BZ2: 56 | CA2: 57 | CB2: 58 | CC2: 59 | CD2: 60 | CE2: 61 | CF2: 62 | CG2: 63 | CH2: 64 | CI2: 65 | CJ2: 66 | CK2: 67 | CL2: 68 | CM2: 69 | CN2: 70 | CO2: 71 | CP2: 72 | CQ2: 73 | CR2: 74 | CS2: 75 | CT2: 76 | CU2: 77 | CV2: 78 | CW2: 79 | CX2: 80 | CY2: 81 | CZ2: 82 | DA2: 83 | DB2: 84 | DC2: 85 | DD2: 86 | DE2: 87 | DF2: 88 | DG2: 89 | DH2: 90 | DI2: 91 | DJ2: 92 | DK2: 93 | DL2: 94 | DM2: 95 | DN2: 96 | DO2: 97 | DP2: 98 | DQ2: 99 | DR2: 100 | DS2: 101 | DT2: 102 | DU2: 103 | DV2: 104 | DW2: 105 | DX2: 106 | DY2: 107 | DZ2: 108 | EA2: 109 | EB2: 110 | EC2: 111 | ED2: 112 | EE2: 113 | EF2: 114 | EG2: 115 | EH2: 116 | EI2: 117 | EJ2: 118 | EK2: 119 | EL2: 120 | EM2: 121 | EN2: 122 | EO2: 123 | EP2: 124 | EQ2: 125 | ER2: 126 | ES2: 127 | ET2: 128 | EU2: 129 | EV2: 130 | EW2: 131 | EX2: 132 | EY2: 133 | EZ2: 134 | FA2: 135 | FB2: 136 | FC2: 137 | FD2: 138 | FE2: 139 | FF2: 140 | FG2: 141 | FH2: 142 | FI2: 143 | FJ2: 144 | FK2: 145 | FL2: 146 | FM2: 147 | FN2: 148 | FO2: 149 | FP2: 150 | FQ2: 151 | FR2: 152 | FS2: 153 | FT2: 154 | FU2: 155 | FV2: 156 | FW2: 157 | FX2: 158 | FY2: 159 | FZ2: 160 | GA2: 161 | GB2: 162 | GC2: 163 | GD2: 164 | GE2: 165 | GF2: 166 | GG2: 167 | GH2: 168 | GI2: 169 | GJ2: 170 | GK2: 171 | GL2: 172 | GM2: 173 | GN2: 174 | GO2: 175 | GP2: 176 | GQ2: 177 | GR2: 178 | GS2: 179 | GT2: 180 | GU2: 181 | GV2: 182 | GW2: 183 | GX2: 184 | GY2: 185 | GZ2: 186 | HA2: 187 | HB2: 188 | HC2: 189 | HD2: 190 | HE2: 191 | HF2: 192 | HG2: 193 | HH2: 194 | HI2: 195 | HJ2: 196 | HK2: 197 | HL2: 198 | HM2: 199 | HN2: 200 | HO2: 201 | HP2: 202 | HQ2: 203 | HR2: 204 | HS2: 205 | HT2: 206
B3: AWG | C3: DIA in | D3: CIRC | E3: SQUARE | F3: OHM per | H3: Ohm per foot | L3: 12V | O3: DL-FLEX2-NPXSL | P3: 2.4 | Q3: 24 | R3: =P3/Q3 -> 0.1 | S3: 16 | T3: =R3*S3 -> 1.6 | U3: Constant Voltage | V3: 22.65 | W3: =R3*$W$2 -> 0.1 | X3: =$R3*$X$2 -> 0.2 | Y3: =$R3*$Y$2 -> 0.3 | Z3: =$R3*$Z$2 -> 0.4 | AA3: =$R3*$AA$2 -> 0.5 | AB3: =$R3*$AB$2 -> 0.6 | AC3: =$R3*$AC$2 -> 0.7 | AD3: =$R3*$AD$2 -> 0.8 | AE3: =$R3*$AE$2 -> 0.9 | AF3: =$R3*$AF$2 -> 1 | AG3: =$R3*$AG$2 -> 1.1 | AH3: =$R3*$AH$2 -> 1.2 | AI3: =$R3*$AI$2 -> 1.3 | AJ3: =$R3*$AJ$2 -> 1.4 | AK3: =$R3*$AK$2 -> 1.5 | AL3: =$R3*$AL$2 -> 1.6 | AM3: =$R3*$AM$2 -> 1.7 | AN3: =$R3*$AN$2 -> 1.8 | AO3: =$R3*$AO$2 -> 1.9 | AP3: =$R3*$AP$2 -> 2 | AQ3: =$R3*$AQ$2 -> 2.1 | AR3: =$R3*$AR$2 -> 2.2 | AS3: =$R3*$AS$2 -> 2.3 | AT3: =$R3*$AT$2 -> 2.4 | AU3: =$R3*$AU$2 -> 2.5 | AV3: =$R3*$AV$2 -> 2.6 | AW3: =$R3*$AW$2 -> 2.7 | AX3: =$R3*$AX$2 -> 2.8 | AY3: =$R3*$AY$2 -> 2.9 | AZ3: =$R3*$AZ$2 -> 3 | BA3: =$R3*$BA$2 -> 3.1 | BB3: =$R3*$BB$2 -> 3.2 | BC3: =$R3*$BC$2 -> 3.3 | BD3: =$R3*$BD$2 -> 3.4 | BE3: =$R3*$BE$2 -> 3.5 | BF3: =$R3*$BF$2 -> 3.6 | BG3: =$R3*$BG$2 -> 3.7 | BH3: =$R3*$BH$2 -> 3.8 | BI3: =$R3*$BI$2 -> 3.9 | BJ3: =$R3*$BJ$2 -> 4 | BK3: =$R3*$BK$2 -> 4.1 | BL3: =$R3*$BL$2 -> 4.2 | BM3: =$R3*$BM$2 -> 4.3 | BN3: =$R3*$BN$2 -> 4.4 | BO3: =$R3*$BO$2 -> 4.5 | BP3: =$R3*$BP$2 -> 4.6 | BQ3: =$R3*$BQ$2 -> 4.7 | BR3: =$R3*$BR$2 -> 4.8 | BS3: =$R3*$BS$2 -> 4.9 | BT3: =$R3*$BT$2 -> 5 | BU3: =$R3*$BU$2 -> 5.1 | BV3: =$R3*$BV$2 -> 5.2 | BW3: =$R3*$BW$2 -> 5.3 | BX3: =$R3*$BX$2 -> 5.4 | BY3: =$R3*$BY$2 -> 5.5 | BZ3: =$R3*$BZ$2 -> 5.6 | CA3: =$R3*$CA$2 -> 5.7 | CB3: =$R3*$CB$2 -> 5.8 | CC3: =$R3*$CC$2 -> 5.9 | CD3: =$R3*$CD$2 -> 6 | CE3: =$R3*$CE$2 -> 6.1 | CF3: =$R3*$CF$2 -> 6.2 | CG3: =$R3*$CG$2 -> 6.3 | CH3: =$R3*$CH$2 -> 6.4 | CI3: =$R3*$CI$2 -> 6.5 | CJ3: =$R3*$CJ$2 -> 6.6 | CK3: =$R3*$CK$2 -> 6.7 | CL3: =$R3*$CL$2 -> 6.8 | CM3: =$R3*$CM$2 -> 6.9 | CN3: =$R3*$CN$2 -> 7 | CO3: =$R3*$CO$2 -> 7.1 | CP3: =$R3*$CP$2 -> 7.2 | CQ3: =$R3*$CQ$2 -> 7.3 | CR3: =$R3*$CR$2 -> 7.4 | CS3: =$R3*$CS$2 -> 7.5 | CT3: =$R3*$CT$2 -> 7.6 | CU3: =$R3*$CU$2 -> 7.7 | CV3: =$R3*$CV$2 -> 7.8 | CW3: =$R3*$CW$2 -> 7.9 | CX3: =$R3*$CX$2 -> 8 | CY3: =$R3*$CY$2 -> 8.1 | CZ3: =$R3*$CZ$2 -> 8.2 | DA3: =$R3*$DA$2 -> 8.3 | DB3: =$R3*$DB$2 -> 8.4 | DC3: =$R3*$DC$2 -> 8.5 | DD3: =$R3*$DD$2 -> 8.6 | DE3: =$R3*$DE$2 -> 8.7 | DF3: =$R3*$DF$2 -> 8.8 | DG3: =$R3*$DG$2 -> 8.9 | DH3: =$R3*$DH$2 -> 9 | DI3: =$R3*$DI$2 -> 9.1 | DJ3: =$R3*$DJ$2 -> 9.2 | DK3: =$R3*$DK$2 -> 9.3 | DL3: =$R3*$DL$2 -> 9.4 | DM3: =$R3*$DM$2 -> 9.5 | DN3: =$R3*$DN$2 -> 9.6 | DO3: =$R3*$DO$2 -> 9.7 | DP3: =$R3*$DP$2 -> 9.8 | DQ3: =$R3*$DQ$2 -> 9.9 | DR3: =$R3*$DR$2 -> 10 | DS3: =$R3*$DS$2 -> 10.1 | DT3: =$R3*$DT$2 -> 10.2 | DU3: =$R3*$DU$2 -> 10.3 | DV3: =$R3*$DV$2 -> 10.4 | DW3: =$R3*$DW$2 -> 10.5 | DX3: =$R3*$DX$2 -> 10.6 | DY3: =$R3*$DY$2 -> 10.7 | DZ3: =$R3*$DZ$2 -> 10.8 | EA3: =$R3*$EA$2 -> 10.9 | EB3: =$R3*$EB$2 -> 11 | EC3: =$R3*$EC$2 -> 11.1 | ED3: =$R3*$ED$2 -> 11.2 | EE3: =$R3*$EE$2 -> 11.3 | EF3: =$R3*$EF$2 -> 11.4 | EG3: =$R3*$EG$2 -> 11.5 | EH3: =$R3*$EH$2 -> 11.6 | EI3: =$R3*$EI$2 -> 11.7 | EJ3: =$R3*$EJ$2 -> 11.8 | EK3: =$R3*$EK$2 -> 11.9 | EL3: =$R3*$EL$2 -> 12 | EM3: =$R3*$EM$2 -> 12.1 | EN3: =$R3*$EN$2 -> 12.2 | EO3: =$R3*$EO$2 -> 12.3 | EP3: =$R3*$EP$2 -> 12.4 | EQ3: =$R3*$EQ$2 -> 12.5 | ER3: =$R3*$ER$2 -> 12.6 | ES3: =$R3*$ES$2 -> 12.7 | ET3: =$R3*$ET$2 -> 12.8 | EU3: =$R3*$EU$2 -> 12.9 | EV3: =$R3*$EV$2 -> 13 | EW3: =$R3*$EW$2 -> 13.1 | EX3: =$R3*$EX$2 -> 13.2 | EY3: =$R3*$EY$2 -> 13.3 | EZ3: =$R3*$EZ$2 -> 13.4 | FA3: =$R3*$FA$2 -> 13.5 | FB3: =$R3*$FB$2 -> 13.6 | FC3: =$R3*$FC$2 -> 13.7 | FD3: =$R3*$FD$2 -> 13.8 | FE3: =$R3*$FE$2 -> 13.9 | FF3: =$R3*$FF$2 -> 14 | FG3: =$R3*$FG$2 -> 14.1 | FH3: =$R3*$FH$2 -> 14.2 | FI3: =$R3*$FI$2 -> 14.3 | FJ3: =$R3*$FJ$2 -> 14.4 | FK3: =$R3*$FK$2 -> 14.5 | FL3: =$R3*$FL$2 -> 14.6 | FM3: =$R3*$FM$2 -> 14.7 | FN3: =$R3*$FN$2 -> 14.8 | FO3: =$R3*$FO$2 -> 14.9 | FP3: =$R3*$FP$2 -> 15 | FQ3: =$R3*$FQ$2 -> 15.1 | FR3: =$R3*$FR$2 -> 15.2 | FS3: =$R3*$FS$2 -> 15.3 | FT3: =$R3*$FT$2 -> 15.4 | FU3: =$R3*$FU$2 -> 15.5 | FV3: =$R3*$FV$2 -> 15.6 | FW3: =$R3*$FW$2 -> 15.7 | FX3: =$R3*$FX$2 -> 15.8 | FY3: =$R3*$FY$2 -> 15.9 | FZ3: =$R3*$FZ$2 -> 16 | GA3: =$R3*$GA$2 -> 16.1 | GB3: =$R3*$GB$2 -> 16.2 | GC3: =$R3*$GC$2 -> 16.3 | GD3: =$R3*$GD$2 -> 16.4
B4: gauge | C4: mils | D4: MILS | E4: MICROIN | F4: 1000 ft | L4: 24V | O4: DL-FLEX2-NPX | P4: 4.6 | Q4: 24 | R4: 0.1916666667 | S4: 16 | T4: 3.066666667 | U4: Constant Voltage | V4: 23.4 | W4: 0.1916666667 | X4: 0.3833333333 | Y4: 0.575 | Z4: 0.7666666667 | AA4: 0.9583333333 | AB4: 1.15 | AC4: 1.341666667 | AD4: 1.533333333 | AE4: 1.725 | AF4: 1.916666667 | AG4: 2.108333333 | AH4: 2.3 | AI4: 2.491666667 | AJ4: 2.683333333 | AK4: 2.875 | AL4: 3.066666667 | AM4: 3.258333333 | AN4: 3.45 | AO4: 3.641666667 | AP4: 3.833333333 | AQ4: 4.025 | AR4: 4.216666667 | AS4: 4.408333333 | AT4: 4.6 | AU4: 4.791666667 | AV4: 4.983333333 | AW4: 5.175 | AX4: 5.366666667 | AY4: 5.558333333 | AZ4: 5.75 | BA4: 5.941666667 | BB4: 6.133333333 | BC4: 6.325 | BD4: 6.516666667 | BE4: 6.708333333 | BF4: 6.9 | BG4: 7.091666667 | BH4: 7.283333333 | BI4: 7.475 | BJ4: 7.666666667 | BK4: 7.858333333 | BL4: 8.05 | BM4: 8.241666667 | BN4: 8.433333333 | BO4: 8.625 | BP4: 8.816666667 | BQ4: 9.008333333 | BR4: 9.2 | BS4: 9.391666667 | BT4: 9.583333333 | BU4: 9.775 | BV4: 9.966666667 | BW4: 10.15833333 | BX4: 10.35 | BY4: 10.54166667 | BZ4: 10.73333333 | CA4: 10.925 | CB4: 11.11666667 | CC4: 11.30833333 | CD4: 11.5 | CE4: 11.69166667 | CF4: 11.88333333 | CG4: 12.075 | CH4: 12.26666667 | CI4: 12.45833333 | CJ4: 12.65 | CK4: 12.84166667 | CL4: 13.03333333 | CM4: 13.225 | CN4: 13.41666667 | CO4: 13.60833333 | CP4: 13.8 | CQ4: 13.99166667 | CR4: 14.18333333 | CS4: 14.375 | CT4: 14.56666667 | CU4: 14.75833333 | CV4: 14.95 | CW4: 15.14166667 | CX4: 15.33333333 | CY4: 15.525 | CZ4: 15.71666667 | DA4: 15.90833333 | DB4: 16.1 | DC4: 16.29166667 | DD4: 16.48333333 | DE4: 16.675 | DF4: 16.86666667 | DG4: 17.05833333 | DH4: 17.25 | DI4: 17.44166667 | DJ4: 17.63333333 | DK4: 17.825 | DL4: 18.01666667 | DM4: 18.20833333 | DN4: 18.4 | DO4: 18.59166667 | DP4: 18.78333333 | DQ4: 18.975 | DR4: 19.16666667 | DS4: 19.35833333 | DT4: 19.55 | DU4: 19.74166667 | DV4: 19.93333333 | DW4: 20.125 | DX4: 20.31666667 | DY4: 20.50833333 | DZ4: 20.7 | EA4: 20.89166667 | EB4: 21.08333333 | EC4: 21.275 | ED4: 21.46666667 | EE4: 21.65833333 | EF4: 21.85 | EG4: 22.04166667 | EH4: 22.23333333 | EI4: 22.425 | EJ4: 22.61666667 | EK4: 22.80833333 | EL4: 23 | EM4: 23.19166667 | EN4: 23.38333333 | EO4: 23.575 | EP4: 23.76666667 | EQ4: 23.95833333 | ER4: 24.15 | ES4: 24.34166667 | ET4: 24.53333333 | EU4: 24.725 | EV4: 24.91666667 | EW4: 25.10833333 | EX4: 25.3 | EY4: 25.49166667 | EZ4: 25.68333333 | FA4: 25.875 | FB4: 26.06666667 | FC4: 26.25833333 | FD4: 26.45 | FE4: 26.64166667 | FF4: 26.83333333 | FG4: 27.025 | FH4: 27.21666667 | FI4: 27.40833333 | FJ4: 27.6 | FK4: 27.79166667 | FL4: 27.98333333 | FM4: 28.175 | FN4: 28.36666667 | FO4: 28.55833333 | FP4: 28.75 | FQ4: =$R4*$FQ$2 -> 28.94166667 | FR4: 29.13333333 | FS4: =$R4*$FS$2 -> 29.325 | FT4: =$R4*$FT$2 -> 29.51666667 | FU4: =$R4*$FU$2 -> 29.70833333 | FV4: =$R4*$FV$2 -> 29.9 | FW4: =$R4*$FW$2 -> 30.09166667 | FX4: =$R4*$FX$2 -> 30.28333333 | FY4: =$R4*$FY$2 -> 30.475 | FZ4: =$R4*$FZ$2 -> 30.66666667 | GA4: =$R4*$GA$2 -> 30.85833333 | GB4: =$R4*$GB$2 -> 31.05 | GC4: =$R4*$GC$2 -> 31.24166667 | GD4: =$R4*$GD$2 -> 31.43333333
B5: ===== | C5: ======= | D5: ======== | E5: ======== | F5: ======== | L5: 48V | O5: DL-FLEX2-NPXCC-3W | P5: 3.3 | Q5: 24 | R5: 0.1375 | S5: 25 | T5: 3.4375 | U5: Constant Current | V5: 22.65 | W5: 0.1375 | X5: 0.275 | Y5: 0.4125 | Z5: 0.55 | AA5: 0.6875 | AB5: 0.825 | AC5: 0.9625 | AD5: 1.1 | AE5: 1.2375 | AF5: 1.375 | AG5: 1.5125 | AH5: 1.65 | AI5: 1.7875 | AJ5: 1.925 | AK5: 2.0625 | AL5: 2.2 | AM5: 2.3375 | AN5: 2.475 | AO5: 2.6125 | AP5: 2.75 | AQ5: 2.8875 | AR5: 3.025 | AS5: 3.1625 | AT5: 3.3 | AU5: 3.4375 | AV5: 3.575 | AW5: 3.7125 | AX5: 3.85 | AY5: 3.9875 | AZ5: 4.125 | BA5: 4.2625 | BB5: 4.4 | BC5: 4.5375 | BD5: 4.675 | BE5: 4.8125 | BF5: 4.95 | BG5: 5.0875 | BH5: 5.225 | BI5: 5.3625 | BJ5: 5.5 | BK5: 5.6375 | BL5: 5.775 | BM5: 5.9125 | BN5: 6.05 | BO5: 6.1875 | BP5: 6.325 | BQ5: 6.4625 | BR5: 6.6 | BS5: 6.7375 | BT5: 6.875 | BU5: 7.0125 | BV5: 7.15 | BW5: 7.2875 | BX5: 7.425 | BY5: 7.5625 | BZ5: 7.7 | CA5: 7.8375 | CB5: 7.975 | CC5: 8.1125 | CD5: 8.25 | CE5: 8.3875 | CF5: 8.525 | CG5: 8.6625 | CH5: 8.8 | CI5: 8.9375 | CJ5: 9.075 | CK5: 9.2125 | CL5: 9.35 | CM5: 9.4875 | CN5: 9.625 | CO5: 9.7625 | CP5: 9.9 | CQ5: 10.0375 | CR5: 10.175 | CS5: 10.3125 | CT5: 10.45 | CU5: 10.5875 | CV5: 10.725 | CW5: 10.8625 | CX5: 11 | CY5: 11.1375 | CZ5: 11.275 | DA5: 11.4125 | DB5: 11.55 | DC5: 11.6875 | DD5: 11.825 | DE5: 11.9625 | DF5: 12.1 | DG5: 12.2375 | DH5: 12.375 | DI5: 12.5125 | DJ5: 12.65 | DK5: 12.7875 | DL5: 12.925 | DM5: 13.0625 | DN5: 13.2 | DO5: 13.3375 | DP5: 13.475 | DQ5: 13.6125 | DR5: 13.75 | DS5: 13.8875 | DT5: 14.025 | DU5: 14.1625 | DV5: 14.3 | DW5: 14.4375 | DX5: 14.575 | DY5: 14.7125 | DZ5: 14.85 | EA5: 14.9875 | EB5: 15.125 | EC5: 15.2625 | ED5: 15.4 | EE5: 15.5375 | EF5: 15.675 | EG5: 15.8125 | EH5: 15.95 | EI5: 16.0875 | EJ5: 16.225 | EK5: 16.3625 | EL5: 16.5 | EM5: 16.6375 | EN5: 16.775 | EO5: 16.9125 | EP5: 17.05 | EQ5: 17.1875 | ER5: 17.325 | ES5: 17.4625 | ET5: 17.6 | EU5: 17.7375 | EV5: 17.875 | EW5: 18.0125 | EX5: 18.15 | EY5: 18.2875 | EZ5: 18.425 | FA5: 18.5625 | FB5: 18.7 | FC5: 18.8375 | FD5: 18.975 | FE5: 19.1125 | FF5: 19.25 | FG5: 19.3875 | FH5: 19.525 | FI5: 19.6625 | FJ5: 19.8 | FK5: 19.9375 | FL5: 20.075 | FM5: 20.2125 | FN5: 20.35 | FO5: 20.4875 | FP5: 20.625 | FQ5: 20.7625 | FR5: 20.9 | FS5: 21.0375 | FT5: 21.175 | FU5: 21.3125 | FV5: 21.45 | FW5: 21.5875 | FX5: 21.725 | FY5: 21.8625 | FZ5: 22 | GA5: 22.1375 | GB5: 22.275 | GC5: 22.4125 | GD5: 22.55
B6: 0 | C6: 460 | D6: 211600 | E6: 166200 | F6: 0.04901 | H6: =F6/1000 -> 4.901e-05 | L6: 120V | O6: DL-FLEX2-NPXCC-4W | P6: 4.3 | Q6: 24 | R6: 0.1791666667 | S6: 20 | T6: 3.583333333 | U6: Constant Current | V6: 22.65 | W6: 0.1791666667 | X6: 0.3583333333 | Y6: 0.5375 | Z6: 0.7166666667 | AA6: 0.8958333333 | AB6: 1.075 | AC6: 1.254166667 | AD6: 1.433333333 | AE6: 1.6125 | AF6: 1.791666667 | AG6: 1.970833333 | AH6: 2.15 | AI6: 2.329166667 | AJ6: 2.508333333 | AK6: 2.6875 | AL6: 2.866666667 | AM6: 3.045833333 | AN6: 3.225 | AO6: 3.404166667 | AP6: 3.583333333 | AQ6: 3.7625 | AR6: 3.941666667 | AS6: 4.120833333 | AT6: 4.3 | AU6: 4.479166667 | AV6: 4.658333333 | AW6: 4.8375 | AX6: 5.016666667 | AY6: 5.195833333 | AZ6: 5.375 | BA6: 5.554166667 | BB6: 5.733333333 | BC6: 5.9125 | BD6: 6.091666667 | BE6: 6.270833333 | BF6: 6.45 | BG6: 6.629166667 | BH6: 6.808333333 | BI6: 6.9875 | BJ6: 7.166666667 | BK6: 7.345833333 | BL6: 7.525 | BM6: 7.704166667 | BN6: 7.883333333 | BO6: 8.0625 | BP6: 8.241666667 | BQ6: 8.420833333 | BR6: 8.6 | BS6: 8.779166667 | BT6: 8.958333333 | BU6: 9.1375 | BV6: 9.316666667 | BW6: 9.495833333 | BX6: 9.675 | BY6: 9.854166667 | BZ6: 10.03333333 | CA6: 10.2125 | CB6: 10.39166667 | CC6: 10.57083333 | CD6: 10.75 | CE6: 10.92916667 | CF6: 11.10833333 | CG6: 11.2875 | CH6: 11.46666667 | CI6: 11.64583333 | CJ6: 11.825 | CK6: 12.00416667 | CL6: 12.18333333 | CM6: 12.3625 | CN6: 12.54166667 | CO6: 12.72083333 | CP6: 12.9 | CQ6: 13.07916667 | CR6: 13.25833333 | CS6: 13.4375 | CT6: 13.61666667 | CU6: 13.79583333 | CV6: 13.975 | CW6: 14.15416667 | CX6: 14.33333333 | CY6: 14.5125 | CZ6: 14.69166667 | DA6: 14.87083333 | DB6: 15.05 | DC6: 15.22916667 | DD6: 15.40833333 | DE6: 15.5875 | DF6: 15.76666667 | DG6: 15.94583333 | DH6: 16.125 | DI6: 16.30416667 | DJ6: 16.48333333 | DK6: 16.6625 | DL6: 16.84166667 | DM6: 17.02083333 | DN6: 17.2 | DO6: 17.37916667 | DP6: 17.55833333 | DQ6: 17.7375 | DR6: 17.91666667 | DS6: 18.09583333 | DT6: 18.275 | DU6: 18.45416667 | DV6: 18.63333333 | DW6: 18.8125 | DX6: 18.99166667 | DY6: 19.17083333 | DZ6: 19.35 | EA6: 19.52916667 | EB6: 19.70833333 | EC6: 19.8875 | ED6: 20.06666667 | EE6: 20.24583333 | EF6: 20.425 | EG6: 20.60416667 | EH6: 20.78333333 | EI6: 20.9625 | EJ6: 21.14166667 | EK6: 21.32083333 | EL6: 21.5 | EM6: 21.67916667 | EN6: 21.85833333 | EO6: 22.0375 | EP6: 22.21666667 | EQ6: 22.39583333 | ER6: 22.575 | ES6: 22.75416667 | ET6: 22.93333333 | EU6: 23.1125 | EV6: 23.29166667 | EW6: 23.47083333 | EX6: 23.65 | EY6: 23.82916667 | EZ6: 24.00833333 | FA6: 24.1875 | FB6: 24.36666667 | FC6: 24.54583333 | FD6: 24.725 | FE6: 24.90416667 | FF6: 25.08333333 | FG6: 25.2625 | FH6: 25.44166667 | FI6: 25.62083333 | FJ6: 25.8 | FK6: 25.97916667 | FL6: 26.15833333 | FM6: 26.3375 | FN6: 26.51666667 | FO6: 26.69583333 | FP6: 26.875 | FQ6: 27.05416667 | FR6: 27.23333333 | FS6: 27.4125 | FT6: 27.59166667 | FU6: 27.77083333 | FV6: 27.95 | FW6: 28.12916667 | FX6: 28.30833333 | FY6: 28.4875 | FZ6: 28.66666667 | GA6: 28.84583333 | GB6: 29.025 | GC6: 29.20416667 | GD6: 29.38333333
B7: 0 | C7: 409.6 | D7: 167800 | E7: 131800 | F7: 0.0618 | H7: =F7/1000 -> 6.18e-05 | O7: DL-FLEX2-NPXCC-5W | P7: 5.5 | Q7: 24 | R7: 0.2291666667 | S7: 16 | T7: 3.666666667 | U7: Constant Current | V7: 22.65 | W7: 0.2291666667 | X7: 0.4583333333 | Y7: 0.6875 | Z7: 0.9166666667 | AA7: 1.145833333 | AB7: 1.375 | AC7: 1.604166667 | AD7: 1.833333333 | AE7: 2.0625 | AF7: 2.291666667 | AG7: 2.520833333 | AH7: 2.75 | AI7: 2.979166667 | AJ7: 3.208333333 | AK7: 3.4375 | AL7: 3.666666667 | AM7: 3.895833333 | AN7: 4.125 | AO7: 4.354166667 | AP7: 4.583333333 | AQ7: 4.8125 | AR7: 5.041666667 | AS7: 5.270833333 | AT7: 5.5 | AU7: 5.729166667 | AV7: 5.958333333 | AW7: 6.1875 | AX7: 6.416666667 | AY7: 6.645833333 | AZ7: 6.875 | BA7: 7.104166667 | BB7: 7.333333333 | BC7: 7.5625 | BD7: 7.791666667 | BE7: 8.020833333 | BF7: 8.25 | BG7: 8.479166667 | BH7: 8.708333333 | BI7: 8.9375 | BJ7: 9.166666667 | BK7: 9.395833333 | BL7: 9.625 | BM7: 9.854166667 | BN7: 10.08333333 | BO7: 10.3125 | BP7: 10.54166667 | BQ7: 10.77083333 | BR7: 11 | BS7: 11.22916667 | BT7: 11.45833333 | BU7: 11.6875 | BV7: 11.91666667 | BW7: 12.14583333 | BX7: 12.375 | BY7: 12.60416667 | BZ7: 12.83333333 | CA7: 13.0625 | CB7: 13.29166667 | CC7: 13.52083333 | CD7: 13.75 | CE7: 13.97916667 | CF7: 14.20833333 | CG7: 14.4375 | CH7: 14.66666667 | CI7: 14.89583333 | CJ7: 15.125 | CK7: 15.35416667 | CL7: 15.58333333 | CM7: 15.8125 | CN7: 16.04166667 | CO7: 16.27083333 | CP7: 16.5 | CQ7: 16.72916667 | CR7: 16.95833333 | CS7: 17.1875 | CT7: 17.41666667 | CU7: 17.64583333 | CV7: 17.875 | CW7: 18.10416667 | CX7: 18.33333333 | CY7: 18.5625 | CZ7: 18.79166667 | DA7: 19.02083333 | DB7: 19.25 | DC7: 19.47916667 | DD7: 19.70833333 | DE7: 19.9375 | DF7: 20.16666667 | DG7: 20.39583333 | DH7: 20.625 | DI7: 20.85416667 | DJ7: 21.08333333 | DK7: 21.3125 | DL7: 21.54166667 | DM7: 21.77083333 | DN7: 22 | DO7: 22.22916667 | DP7: 22.45833333 | DQ7: 22.6875 | DR7: 22.91666667 | DS7: 23.14583333 | DT7: 23.375 | DU7: 23.60416667 | DV7: 23.83333333 | DW7: 24.0625 | DX7: 24.29166667 | DY7: 24.52083333 | DZ7: 24.75 | EA7: 24.97916667 | EB7: 25.20833333 | EC7: 25.4375 | ED7: 25.66666667 | EE7: 25.89583333 | EF7: 26.125 | EG7: 26.35416667 | EH7: 26.58333333 | EI7: 26.8125 | EJ7: 27.04166667 | EK7: 27.27083333 | EL7: 27.5 | EM7: 27.72916667 | EN7: 27.95833333 | EO7: 28.1875 | EP7: 28.41666667 | EQ7: 28.64583333 | ER7: 28.875 | ES7: 29.10416667 | ET7: 29.33333333 | EU7: 29.5625 | EV7: 29.79166667 | EW7: 30.02083333 | EX7: 30.25 | EY7: 30.47916667 | EZ7: 30.70833333 | FA7: 30.9375 | FB7: 31.16666667 | FC7: 31.39583333 | FD7: 31.625 | FE7: 31.85416667 | FF7: 32.08333333 | FG7: 32.3125 | FH7: 32.54166667 | FI7: 32.77083333 | FJ7: 33 | FK7: 33.22916667 | FL7: 33.45833333 | FM7: 33.6875 | FN7: 33.91666667 | FO7: 34.14583333 | FP7: 34.375 | FQ7: 34.60416667 | FR7: 34.83333333 | FS7: 35.0625 | FT7: 35.29166667 | FU7: 35.52083333 | FV7: 35.75 | FW7: 35.97916667 | FX7: 36.20833333 | FY7: 36.4375 | FZ7: 36.66666667 | GA7: 36.89583333 | GB7: 37.125 | GC7: 37.35416667 | GD7: 37.58333333
B8: 0 | C8: 364.8 | D8: 133100 | E8: 104500 | F8: 0.07793 | H8: 7.793e-05 | O8: DL-FLEX2-NPXCC-6W | P8: 6.2 | Q8: 24 | R8: 0.2583333333 | S8: 14 | T8: 3.616666667 | U8: Constant Current | V8: 22.65 | W8: 0.2583333333 | X8: 0.5166666667 | Y8: 0.775 | Z8: 1.033333333 | AA8: 1.291666667 | AB8: 1.55 | AC8: 1.808333333 | AD8: 2.066666667 | AE8: 2.325 | AF8: 2.583333333 | AG8: 2.841666667 | AH8: 3.1 | AI8: 3.358333333 | AJ8: 3.616666667 | AK8: 3.875 | AL8: 4.133333333 | AM8: 4.391666667 | AN8: 4.65 | AO8: 4.908333333 | AP8: 5.166666667 | AQ8: 5.425 | AR8: 5.683333333 | AS8: 5.941666667 | AT8: 6.2 | AU8: 6.458333333 | AV8: 6.716666667 | AW8: 6.975 | AX8: 7.233333333 | AY8: 7.491666667 | AZ8: 7.75 | BA8: 8.008333333 | BB8: 8.266666667 | BC8: 8.525 | BD8: 8.783333333 | BE8: 9.041666667 | BF8: 9.3 | BG8: 9.558333333 | BH8: 9.816666667 | BI8: 10.075 | BJ8: 10.33333333 | BK8: 10.59166667 | BL8: 10.85 | BM8: 11.10833333 | BN8: 11.36666667 | BO8: 11.625 | BP8: 11.88333333 | BQ8: 12.14166667 | BR8: 12.4 | BS8: 12.65833333 | BT8: 12.91666667 | BU8: 13.175 | BV8: 13.43333333 | BW8: 13.69166667 | BX8: 13.95 | BY8: 14.20833333 | BZ8: 14.46666667 | CA8: 14.725 | CB8: 14.98333333 | CC8: 15.24166667 | CD8: 15.5 | CE8: 15.75833333 | CF8: 16.01666667 | CG8: 16.275 | CH8: 16.53333333 | CI8: 16.79166667 | CJ8: 17.05 | CK8: 17.30833333 | CL8: 17.56666667 | CM8: 17.825 | CN8: 18.08333333 | CO8: 18.34166667 | CP8: 18.6 | CQ8: 18.85833333 | CR8: 19.11666667 | CS8: 19.375 | CT8: 19.63333333 | CU8: 19.89166667 | CV8: 20.15 | CW8: 20.40833333 | CX8: 20.66666667 | CY8: 20.925 | CZ8: 21.18333333 | DA8: 21.44166667 | DB8: 21.7 | DC8: 21.95833333 | DD8: 22.21666667 | DE8: 22.475 | DF8: 22.73333333 | DG8: 22.99166667 | DH8: 23.25 | DI8: 23.50833333 | DJ8: 23.76666667 | DK8: 24.025 | DL8: 24.28333333 | DM8: 24.54166667 | DN8: 24.8 | DO8: 25.05833333 | DP8: 25.31666667 | DQ8: 25.575 | DR8: 25.83333333 | DS8: 26.09166667 | DT8: 26.35 | DU8: 26.60833333 | DV8: 26.86666667 | DW8: 27.125 | DX8: 27.38333333 | DY8: 27.64166667 | DZ8: 27.9 | EA8: 28.15833333 | EB8: 28.41666667 | EC8: 28.675 | ED8: 28.93333333 | EE8: 29.19166667 | EF8: 29.45 | EG8: 29.70833333 | EH8: 29.96666667 | EI8: 30.225 | EJ8: 30.48333333 | EK8: 30.74166667 | EL8: 31 | EM8: 31.25833333 | EN8: 31.51666667 | EO8: 31.775 | EP8: 32.03333333 | EQ8: 32.29166667 | ER8: 32.55 | ES8: 32.80833333 | ET8: 33.06666667 | EU8: 33.325 | EV8: 33.58333333 | EW8: 33.84166667 | EX8: 34.1 | EY8: 34.35833333 | EZ8: 34.61666667 | FA8: 34.875 | FB8: 35.13333333 | FC8: 35.39166667 | FD8: 35.65 | FE8: 35.90833333 | FF8: 36.16666667 | FG8: 36.425 | FH8: 36.68333333 | FI8: 36.94166667 | FJ8: 37.2 | FK8: 37.45833333 | FL8: 37.71666667 | FM8: 37.975 | FN8: 38.23333333 | FO8: 38.49166667 | FP8: 38.75 | FQ8: 39.00833333 | FR8: 39.26666667 | FS8: 39.525 | FT8: 39.78333333 | FU8: 40.04166667 | FV8: 40.3 | FW8: 40.55833333 | FX8: 40.81666667 | FY8: 41.075 | FZ8: 41.33333333 | GA8: 41.59166667 | GB8: 41.85 | GC8: 42.10833333 | GD8: 42.36666667
B9: 0 | C9: 324.9 | D9: 105500 | E9: 82890 | F9: 0.09827 | H9: 9.827e-05 | O9: DL-FLEX2-NPX-TW | P9: 4.5 | Q9: 24 | R9: 0.1875 | S9: 16 | T9: 3 | U9: Constant Voltage | V9: 22.65 | W9: 0.1875 | X9: 0.375 | Y9: 0.5625 | Z9: 0.75 | AA9: 0.9375 | AB9: 1.125 | AC9: 1.3125 | AD9: 1.5 | AE9: 1.6875 | AF9: 1.875 | AG9: 2.0625 | AH9: 2.25 | AI9: 2.4375 | AJ9: 2.625 | AK9: 2.8125 | AL9: 3 | AM9: 3.1875 | AN9: 3.375 | AO9: 3.5625 | AP9: 3.75 | AQ9: 3.9375 | AR9: 4.125 | AS9: 4.3125 | AT9: 4.5 | AU9: 4.6875 | AV9: 4.875 | AW9: 5.0625 | AX9: 5.25 | AY9: 5.4375 | AZ9: 5.625 | BA9: 5.8125 | BB9: 6 | BC9: 6.1875 | BD9: 6.375 | BE9: 6.5625 | BF9: 6.75 | BG9: 6.9375 | BH9: 7.125 | BI9: 7.3125 | BJ9: 7.5 | BK9: 7.6875 | BL9: 7.875 | BM9: 8.0625 | BN9: 8.25 | BO9: 8.4375 | BP9: 8.625 | BQ9: 8.8125 | BR9: 9 | BS9: 9.1875 | BT9: 9.375 | BU9: 9.5625 | BV9: 9.75 | BW9: 9.9375 | BX9: 10.125 | BY9: 10.3125 | BZ9: 10.5 | CA9: 10.6875 | CB9: 10.875 | CC9: 11.0625 | CD9: 11.25 | CE9: 11.4375 | CF9: 11.625 | CG9: 11.8125 | CH9: 12 | CI9: 12.1875 | CJ9: 12.375 | CK9: 12.5625 | CL9: 12.75 | CM9: 12.9375 | CN9: 13.125 | CO9: 13.3125 | CP9: 13.5 | CQ9: 13.6875 | CR9: 13.875 | CS9: 14.0625 | CT9: 14.25 | CU9: 14.4375 | CV9: 14.625 | CW9: 14.8125 | CX9: 15 | CY9: 15.1875 | CZ9: 15.375 | DA9: 15.5625 | DB9: 15.75 | DC9: 15.9375 | DD9: 16.125 | DE9: 16.3125 | DF9: 16.5 | DG9: 16.6875 | DH9: 16.875 | DI9: 17.0625 | DJ9: 17.25 | DK9: 17.4375 | DL9: 17.625 | DM9: 17.8125 | DN9: 18 | DO9: 18.1875 | DP9: 18.375 | DQ9: 18.5625 | DR9: 18.75 | DS9: 18.9375 | DT9: 19.125 | DU9: 19.3125 | DV9: 19.5 | DW9: 19.6875 | DX9: 19.875 | DY9: 20.0625 | DZ9: 20.25 | EA9: 20.4375 | EB9: 20.625 | EC9: 20.8125 | ED9: 21 | EE9: 21.1875 | EF9: 21.375 | EG9: 21.5625 | EH9: 21.75 | EI9: 21.9375 | EJ9: 22.125 | EK9: 22.3125 | EL9: 22.5 | EM9: 22.6875 | EN9: 22.875 | EO9: 23.0625 | EP9: 23.25 | EQ9: 23.4375 | ER9: 23.625 | ES9: 23.8125 | ET9: 24 | EU9: 24.1875 | EV9: 24.375 | EW9: 24.5625 | EX9: 24.75 | EY9: 24.9375 | EZ9: 25.125 | FA9: 25.3125 | FB9: 25.5 | FC9: 25.6875 | FD9: 25.875 | FE9: 26.0625 | FF9: 26.25 | FG9: 26.4375 | FH9: 26.625 | FI9: 26.8125 | FJ9: 27 | FK9: 27.1875 | FL9: 27.375 | FM9: 27.5625 | FN9: 27.75 | FO9: 27.9375 | FP9: 28.125 | FQ9: 28.3125 | FR9: 28.5 | FS9: 28.6875 | FT9: 28.875 | FU9: 29.0625 | FV9: 29.25 | FW9: 29.4375 | FX9: 29.625 | FY9: 29.8125 | FZ9: 30 | GA9: 30.1875 | GB9: 30.375 | GC9: 30.5625 | GD9: 30.75
B10: 1 | C10: 289.3 | D10: 83690 | E10: 65730 | F10: 0.1239 | H10: 0.0001239 | O10: DL-FLEX2-NPX-RGB | P10: 4.5 | Q10: 24 | R10: 0.1875 | S10: 16 | T10: 3 | U10: Constant Voltage | V10: 22.65 | W10: 0.1875 | X10: 0.375 | Y10: 0.5625 | Z10: 0.75 | AA10: 0.9375 | AB10: 1.125 | AC10: 1.3125 | AD10: 1.5 | AE10: 1.6875 | AF10: 1.875 | AG10: 2.0625 | AH10: 2.25 | AI10: 2.4375 | AJ10: 2.625 | AK10: 2.8125 | AL10: 3 | AM10: 3.1875 | AN10: 3.375 | AO10: 3.5625 | AP10: 3.75 | AQ10: 3.9375 | AR10: 4.125 | AS10: 4.3125 | AT10: 4.5 | AU10: 4.6875 | AV10: 4.875 | AW10: 5.0625 | AX10: 5.25 | AY10: 5.4375 | AZ10: 5.625 | BA10: 5.8125 | BB10: 6 | BC10: 6.1875 | BD10: 6.375 | BE10: 6.5625 | BF10: 6.75 | BG10: 6.9375 | BH10: 7.125 | BI10: 7.3125 | BJ10: 7.5 | BK10: 7.6875 | BL10: 7.875 | BM10: 8.0625 | BN10: 8.25 | BO10: 8.4375 | BP10: 8.625 | BQ10: 8.8125 | BR10: 9 | BS10: 9.1875 | BT10: 9.375 | BU10: 9.5625 | BV10: 9.75 | BW10: 9.9375 | BX10: 10.125 | BY10: 10.3125 | BZ10: 10.5 | CA10: 10.6875 | CB10: 10.875 | CC10: 11.0625 | CD10: 11.25 | CE10: 11.4375 | CF10: 11.625 | CG10: 11.8125 | CH10: 12 | CI10: 12.1875 | CJ10: 12.375 | CK10: 12.5625 | CL10: 12.75 | CM10: 12.9375 | CN10: 13.125 | CO10: 13.3125 | CP10: 13.5 | CQ10: 13.6875 | CR10: 13.875 | CS10: 14.0625 | CT10: 14.25 | CU10: 14.4375 | CV10: 14.625 | CW10: 14.8125 | CX10: 15 | CY10: 15.1875 | CZ10: 15.375 | DA10: 15.5625 | DB10: 15.75 | DC10: 15.9375 | DD10: 16.125 | DE10: 16.3125 | DF10: 16.5 | DG10: 16.6875 | DH10: 16.875 | DI10: 17.0625 | DJ10: 17.25 | DK10: 17.4375 | DL10: 17.625 | DM10: 17.8125 | DN10: 18 | DO10: 18.1875 | DP10: 18.375 | DQ10: 18.5625 | DR10: 18.75 | DS10: 18.9375 | DT10: 19.125 | DU10: 19.3125 | DV10: 19.5 | DW10: 19.6875 | DX10: 19.875 | DY10: 20.0625 | DZ10: 20.25 | EA10: 20.4375 | EB10: 20.625 | EC10: 20.8125 | ED10: 21 | EE10: 21.1875 | EF10: 21.375 | EG10: 21.5625 | EH10: 21.75 | EI10: 21.9375 | EJ10: 22.125 | EK10: 22.3125 | EL10: 22.5 | EM10: 22.6875 | EN10: 22.875 | EO10: 23.0625 | EP10: 23.25 | EQ10: 23.4375 | ER10: 23.625 | ES10: 23.8125 | ET10: 24 | EU10: 24.1875 | EV10: 24.375 | EW10: 24.5625 | EX10: 24.75 | EY10: 24.9375 | EZ10: 25.125 | FA10: 25.3125 | FB10: 25.5 | FC10: 25.6875 | FD10: 25.875 | FE10: 26.0625 | FF10: 26.25 | FG10: 26.4375 | FH10: 26.625 | FI10: 26.8125 | FJ10: 27 | FK10: 27.1875 | FL10: 27.375 | FM10: 27.5625 | FN10: 27.75 | FO10: 27.9375 | FP10: 28.125 | FQ10: 28.3125 | FR10: 28.5 | FS10: 28.6875 | FT10: 28.875 | FU10: 29.0625 | FV10: 29.25 | FW10: 29.4375 | FX10: 29.625 | FY10: 29.8125 | FZ10: 30 | GA10: 30.1875 | GB10: 30.375 | GC10: 30.5625 | GD10: 30.75
B11: 2 | C11: 257.6 | D11: 66370 | E11: 52130 | F11: 0.1563 | H11: 0.0001563 | O11: DL-FLEX2-NPX-DTW | P11: 4.57 | Q11: 24 | R11: 0.1904166667 | S11: 16 | T11: 3.046666667 | U11: Constant Voltage | V11: 22.65 | W11: 0.1904166667 | X11: 0.3808333333 | Y11: 0.57125 | Z11: 0.7616666667 | AA11: 0.9520833333 | AB11: 1.1425 | AC11: 1.332916667 | AD11: 1.523333333 | AE11: 1.71375 | AF11: 1.904166667 | AG11: 2.094583333 | AH11: 2.285 | AI11: 2.475416667 | AJ11: 2.665833333 | AK11: 2.85625 | AL11: 3.046666667 | AM11: 3.237083333 | AN11: 3.4275 | AO11: 3.617916667 | AP11: 3.808333333 | AQ11: 3.99875 | AR11: 4.189166667 | AS11: 4.379583333 | AT11: 4.57 | AU11: 4.760416667 | AV11: 4.950833333 | AW11: 5.14125 | AX11: 5.331666667 | AY11: 5.522083333 | AZ11: 5.7125 | BA11: 5.902916667 | BB11: 6.093333333 | BC11: 6.28375 | BD11: 6.474166667 | BE11: 6.664583333 | BF11: 6.855 | BG11: 7.045416667 | BH11: 7.235833333 | BI11: 7.42625 | BJ11: 7.616666667 | BK11: 7.807083333 | BL11: 7.9975 | BM11: 8.187916667 | BN11: 8.378333333 | BO11: 8.56875 | BP11: 8.759166667 | BQ11: 8.949583333 | BR11: 9.14 | BS11: 9.330416667 | BT11: 9.520833333 | BU11: 9.71125 | BV11: 9.901666667 | BW11: 10.09208333 | BX11: 10.2825 | BY11: 10.47291667 | BZ11: 10.66333333 | CA11: 10.85375 | CB11: 11.04416667 | CC11: 11.23458333 | CD11: 11.425 | CE11: 11.61541667 | CF11: 11.80583333 | CG11: 11.99625 | CH11: 12.18666667 | CI11: 12.37708333 | CJ11: 12.5675 | CK11: 12.75791667 | CL11: 12.94833333 | CM11: 13.13875 | CN11: 13.32916667 | CO11: 13.51958333 | CP11: 13.71 | CQ11: 13.90041667 | CR11: 14.09083333 | CS11: 14.28125 | CT11: 14.47166667 | CU11: 14.66208333 | CV11: 14.8525 | CW11: 15.04291667 | CX11: 15.23333333 | CY11: 15.42375 | CZ11: 15.61416667 | DA11: 15.80458333 | DB11: 15.995 | DC11: 16.18541667 | DD11: 16.37583333 | DE11: 16.56625 | DF11: 16.75666667 | DG11: 16.94708333 | DH11: 17.1375 | DI11: 17.32791667 | DJ11: 17.51833333 | DK11: 17.70875 | DL11: 17.89916667 | DM11: 18.08958333 | DN11: 18.28 | DO11: 18.47041667 | DP11: 18.66083333 | DQ11: 18.85125 | DR11: 19.04166667 | DS11: 19.23208333 | DT11: 19.4225 | DU11: 19.61291667 | DV11: 19.80333333 | DW11: 19.99375 | DX11: 20.18416667 | DY11: 20.37458333 | DZ11: 20.565 | EA11: 20.75541667 | EB11: 20.94583333 | EC11: 21.13625 | ED11: 21.32666667 | EE11: 21.51708333 | EF11: 21.7075 | EG11: 21.89791667 | EH11: 22.08833333 | EI11: 22.27875 | EJ11: 22.46916667 | EK11: 22.65958333 | EL11: 22.85 | EM11: 23.04041667 | EN11: 23.23083333 | EO11: 23.42125 | EP11: 23.61166667 | EQ11: 23.80208333 | ER11: 23.9925 | ES11: 24.18291667 | ET11: 24.37333333 | EU11: 24.56375 | EV11: 24.75416667 | EW11: 24.94458333 | EX11: 25.135 | EY11: 25.32541667 | EZ11: 25.51583333 | FA11: 25.70625 | FB11: 25.89666667 | FC11: 26.08708333 | FD11: 26.2775 | FE11: 26.46791667 | FF11: 26.65833333 | FG11: 26.84875 | FH11: 27.03916667 | FI11: 27.22958333 | FJ11: 27.42 | FK11: 27.61041667 | FL11: 27.80083333 | FM11: 27.99125 | FN11: 28.18166667 | FO11: 28.37208333 | FP11: 28.5625 | FQ11: 28.75291667 | FR11: 28.94333333 | FS11: 29.13375 | FT11: 29.32416667 | FU11: 29.51458333 | FV11: 29.705 | FW11: 29.89541667 | FX11: 30.08583333 | FY11: 30.27625 | FZ11: 30.46666667 | GA11: 30.65708333 | GB11: 30.8475 | GC11: 31.03791667 | GD11: 31.22833333
B12: 3 | C12: 229.4 | D12: 52640 | E12: 41340 | F12: 0.197 | H12: 0.000197 | O12: DL-FLEX2-NPX-WET | P12: 4.57 | Q12: 24 | R12: 0.1904166667 | S12: 16 | T12: 3.046666667 | U12: Constant Voltage | V12: 22.65 | W12: 0.1904166667 | X12: 0.3808333333 | Y12: 0.57125 | Z12: 0.7616666667 | AA12: 0.9520833333 | AB12: 1.1425 | AC12: 1.332916667 | AD12: 1.523333333 | AE12: 1.71375 | AF12: 1.904166667 | AG12: 2.094583333 | AH12: 2.285 | AI12: 2.475416667 | AJ12: 2.665833333 | AK12: 2.85625 | AL12: 3.046666667 | AM12: 3.237083333 | AN12: 3.4275 | AO12: 3.617916667 | AP12: 3.808333333 | AQ12: 3.99875 | AR12: 4.189166667 | AS12: 4.379583333 | AT12: 4.57 | AU12: 4.760416667 | AV12: 4.950833333 | AW12: 5.14125 | AX12: 5.331666667 | AY12: 5.522083333 | AZ12: 5.7125 | BA12: 5.902916667 | BB12: 6.093333333 | BC12: 6.28375 | BD12: 6.474166667 | BE12: 6.664583333 | BF12: 6.855 | BG12: 7.045416667 | BH12: 7.235833333 | BI12: 7.42625 | BJ12: 7.616666667 | BK12: 7.807083333 | BL12: 7.9975 | BM12: 8.187916667 | BN12: 8.378333333 | BO12: 8.56875 | BP12: 8.759166667 | BQ12: 8.949583333 | BR12: 9.14 | BS12: 9.330416667 | BT12: 9.520833333 | BU12: 9.71125 | BV12: 9.901666667 | BW12: 10.09208333 | BX12: 10.2825 | BY12: 10.47291667 | BZ12: 10.66333333 | CA12: 10.85375 | CB12: 11.04416667 | CC12: 11.23458333 | CD12: 11.425 | CE12: 11.61541667 | CF12: 11.80583333 | CG12: 11.99625 | CH12: 12.18666667 | CI12: 12.37708333 | CJ12: 12.5675 | CK12: 12.75791667 | CL12: 12.94833333 | CM12: 13.13875 | CN12: 13.32916667 | CO12: 13.51958333 | CP12: 13.71 | CQ12: 13.90041667 | CR12: 14.09083333 | CS12: 14.28125 | CT12: 14.47166667 | CU12: 14.66208333 | CV12: 14.8525 | CW12: 15.04291667 | CX12: 15.23333333 | CY12: 15.42375 | CZ12: 15.61416667 | DA12: 15.80458333 | DB12: 15.995 | DC12: 16.18541667 | DD12: 16.37583333 | DE12: 16.56625 | DF12: 16.75666667 | DG12: 16.94708333 | DH12: 17.1375 | DI12: 17.32791667 | DJ12: 17.51833333 | DK12: 17.70875 | DL12: 17.89916667 | DM12: 18.08958333 | DN12: 18.28 | DO12: 18.47041667 | DP12: 18.66083333 | DQ12: 18.85125 | DR12: 19.04166667 | DS12: 19.23208333 | DT12: 19.4225 | DU12: 19.61291667 | DV12: 19.80333333 | DW12: 19.99375 | DX12: 20.18416667 | DY12: 20.37458333 | DZ12: 20.565 | EA12: 20.75541667 | EB12: 20.94583333 | EC12: 21.13625 | ED12: 21.32666667 | EE12: 21.51708333 | EF12: 21.7075 | EG12: 21.89791667 | EH12: 22.08833333 | EI12: 22.27875 | EJ12: 22.46916667 | EK12: 22.65958333 | EL12: 22.85 | EM12: 23.04041667 | EN12: 23.23083333 | EO12: 23.42125 | EP12: 23.61166667 | EQ12: 23.80208333 | ER12: 23.9925 | ES12: 24.18291667 | ET12: 24.37333333 | EU12: 24.56375 | EV12: 24.75416667 | EW12: 24.94458333 | EX12: 25.135 | EY12: 25.32541667 | EZ12: 25.51583333 | FA12: 25.70625 | FB12: 25.89666667 | FC12: 26.08708333 | FD12: 26.2775 | FE12: 26.46791667 | FF12: 26.65833333 | FG12: 26.84875 | FH12: 27.03916667 | FI12: 27.22958333 | FJ12: 27.42 | FK12: 27.61041667 | FL12: 27.80083333 | FM12: 27.99125 | FN12: 28.18166667 | FO12: 28.37208333 | FP12: 28.5625 | FQ12: 28.75291667 | FR12: 28.94333333 | FS12: 29.13375 | FT12: 29.32416667 | FU12: 29.51458333 | FV12: 29.705 | FW12: 29.89541667 | FX12: 30.08583333 | FY12: 30.27625 | FZ12: 30.46666667 | GA12: 30.65708333 | GB12: 30.8475 | GC12: 31.03791667 | GD12: 31.22833333
B13: 4 | C13: 204.3 | D13: 41740 | E13: 32780 | F13: 0.2485 | H13: 0.0002485 | O13: DL-FLEX2-SHE | P13: 4.3 | Q13: 24 | R13: =P13/Q13 -> 0.1791666667 | S13: 20 | T13: =R13*S13 -> 3.583333333 | U13: Constant Voltage | V13: 23.5 | W13: =R13*$W$2 -> 0.1791666667 | X13: =$R13*$X$2 -> 0.3583333333 | Y13: =$R13*$Y$2 -> 0.5375 | Z13: =$R13*$Z$2 -> 0.7166666667 | AA13: =$R13*$AA$2 -> 0.8958333333 | AB13: =$R13*$AB$2 -> 1.075 | AC13: =$R13*$AC$2 -> 1.254166667 | AD13: =$R13*$AD$2 -> 1.433333333 | AE13: =$R13*$AE$2 -> 1.6125 | AF13: =$R13*$AF$2 -> 1.791666667 | AG13: =$R13*$AG$2 -> 1.970833333 | AH13: =$R13*$AH$2 -> 2.15 | AI13: =$R13*$AI$2 -> 2.329166667 | AJ13: =$R13*$AJ$2 -> 2.508333333 | AK13: =$R13*$AK$2 -> 2.6875 | AL13: =$R13*$AL$2 -> 2.866666667 | AM13: =$R13*$AM$2 -> 3.045833333 | AN13: =$R13*$AN$2 -> 3.225 | AO13: =$R13*$AO$2 -> 3.404166667 | AP13: =$R13*$AP$2 -> 3.583333333 | AQ13: =$R13*$AQ$2 -> 3.7625 | AR13: =$R13*$AR$2 -> 3.941666667 | AS13: =$R13*$AS$2 -> 4.120833333 | AT13: =$R13*$AT$2 -> 4.3 | AU13: =$R13*$AU$2 -> 4.479166667 | AV13: =$R13*$AV$2 -> 4.658333333 | AW13: =$R13*$AW$2 -> 4.8375 | AX13: =$R13*$AX$2 -> 5.016666667 | AY13: =$R13*$AY$2 -> 5.195833333 | AZ13: =$R13*$AZ$2 -> 5.375 | BA13: =$R13*$BA$2 -> 5.554166667 | BB13: =$R13*$BB$2 -> 5.733333333 | BC13: =$R13*$BC$2 -> 5.9125 | BD13: =$R13*$BD$2 -> 6.091666667 | BE13: =$R13*$BE$2 -> 6.270833333 | BF13: =$R13*$BF$2 -> 6.45 | BG13: =$R13*$BG$2 -> 6.629166667 | BH13: =$R13*$BH$2 -> 6.808333333 | BI13: =$R13*$BI$2 -> 6.9875 | BJ13: =$R13*$BJ$2 -> 7.166666667 | BK13: =$R13*$BK$2 -> 7.345833333 | BL13: =$R13*$BL$2 -> 7.525 | BM13: =$R13*$BM$2 -> 7.704166667 | BN13: =$R13*$BN$2 -> 7.883333333 | BO13: =$R13*$BO$2 -> 8.0625 | BP13: =$R13*$BP$2 -> 8.241666667 | BQ13: =$R13*$BQ$2 -> 8.420833333 | BR13: =$R13*$BR$2 -> 8.6 | BS13: =$R13*$BS$2 -> 8.779166667 | BT13: =$R13*$BT$2 -> 8.958333333 | BU13: =$R13*$BU$2 -> 9.1375 | BV13: =$R13*$BV$2 -> 9.316666667 | BW13: =$R13*$BW$2 -> 9.495833333 | BX13: =$R13*$BX$2 -> 9.675 | BY13: =$R13*$BY$2 -> 9.854166667 | BZ13: =$R13*$BZ$2 -> 10.03333333 | CA13: =$R13*$CA$2 -> 10.2125 | CB13: =$R13*$CB$2 -> 10.39166667 | CC13: =$R13*$CC$2 -> 10.57083333 | CD13: =$R13*$CD$2 -> 10.75 | CE13: =$R13*$CE$2 -> 10.92916667 | CF13: =$R13*$CF$2 -> 11.10833333 | CG13: =$R13*$CG$2 -> 11.2875 | CH13: =$R13*$CH$2 -> 11.46666667 | CI13: =$R13*$CI$2 -> 11.64583333 | CJ13: =$R13*$CJ$2 -> 11.825 | CK13: =$R13*$CK$2 -> 12.00416667 | CL13: =$R13*$CL$2 -> 12.18333333 | CM13: =$R13*$CM$2 -> 12.3625 | CN13: =$R13*$CN$2 -> 12.54166667 | CO13: =$R13*$CO$2 -> 12.72083333 | CP13: =$R13*$CP$2 -> 12.9 | CQ13: =$R13*$CQ$2 -> 13.07916667 | CR13: =$R13*$CR$2 -> 13.25833333 | CS13: =$R13*$CS$2 -> 13.4375 | CT13: =$R13*$CT$2 -> 13.61666667 | CU13: =$R13*$CU$2 -> 13.79583333 | CV13: =$R13*$CV$2 -> 13.975 | CW13: =$R13*$CW$2 -> 14.15416667 | CX13: =$R13*$CX$2 -> 14.33333333 | CY13: =$R13*$CY$2 -> 14.5125 | CZ13: =$R13*$CZ$2 -> 14.69166667 | DA13: =$R13*$DA$2 -> 14.87083333 | DB13: =$R13*$DB$2 -> 15.05 | DC13: =$R13*$DC$2 -> 15.22916667 | DD13: =$R13*$DD$2 -> 15.40833333 | DE13: =$R13*$DE$2 -> 15.5875 | DF13: =$R13*$DF$2 -> 15.76666667 | DG13: =$R13*$DG$2 -> 15.94583333 | DH13: =$R13*$DH$2 -> 16.125 | DI13: =$R13*$DI$2 -> 16.30416667 | DJ13: =$R13*$DJ$2 -> 16.48333333 | DK13: =$R13*$DK$2 -> 16.6625 | DL13: =$R13*$DL$2 -> 16.84166667 | DM13: =$R13*$DM$2 -> 17.02083333 | DN13: =$R13*$DN$2 -> 17.2 | DO13: =$R13*$DO$2 -> 17.37916667 | DP13: =$R13*$DP$2 -> 17.55833333 | DQ13: =$R13*$DQ$2 -> 17.7375 | DR13: =$R13*$DR$2 -> 17.91666667 | DS13: =$R13*$DS$2 -> 18.09583333 | DT13: =$R13*$DT$2 -> 18.275 | DU13: =$R13*$DU$2 -> 18.45416667 | DV13: =$R13*$DV$2 -> 18.63333333 | DW13: =$R13*$DW$2 -> 18.8125 | DX13: =$R13*$DX$2 -> 18.99166667 | DY13: =$R13*$DY$2 -> 19.17083333 | DZ13: =$R13*$DZ$2 -> 19.35 | EA13: =$R13*$EA$2 -> 19.52916667 | EB13: =$R13*$EB$2 -> 19.70833333 | EC13: =$R13*$EC$2 -> 19.8875 | ED13: =$R13*$ED$2 -> 20.06666667 | EE13: =$R13*$EE$2 -> 20.24583333 | EF13: =$R13*$EF$2 -> 20.425 | EG13: =$R13*$EG$2 -> 20.60416667 | EH13: =$R13*$EH$2 -> 20.78333333 | EI13: =$R13*$EI$2 -> 20.9625 | EJ13: =$R13*$EJ$2 -> 21.14166667 | EK13: =$R13*$EK$2 -> 21.32083333 | EL13: =$R13*$EL$2 -> 21.5 | EM13: =$R13*$EM$2 -> 21.67916667 | EN13: =$R13*$EN$2 -> 21.85833333 | EO13: =$R13*$EO$2 -> 22.0375 | EP13: =$R13*$EP$2 -> 22.21666667 | EQ13: =$R13*$EQ$2 -> 22.39583333 | ER13: =$R13*$ER$2 -> 22.575 | ES13: =$R13*$ES$2 -> 22.75416667 | ET13: =$R13*$ET$2 -> 22.93333333 | EU13: =$R13*$EU$2 -> 23.1125 | EV13: =$R13*$EV$2 -> 23.29166667 | EW13: =$R13*$EW$2 -> 23.47083333 | EX13: =$R13*$EX$2 -> 23.65 | EY13: =$R13*$EY$2 -> 23.82916667 | EZ13: =$R13*$EZ$2 -> 24.00833333 | FA13: =$R13*$FA$2 -> 24.1875 | FB13: =$R13*$FB$2 -> 24.36666667 | FC13: =$R13*$FC$2 -> 24.54583333 | FD13: =$R13*$FD$2 -> 24.725 | FE13: =$R13*$FE$2 -> 24.90416667 | FF13: =$R13*$FF$2 -> 25.08333333 | FG13: =$R13*$FG$2 -> 25.2625 | FH13: =$R13*$FH$2 -> 25.44166667 | FI13: =$R13*$FI$2 -> 25.62083333 | FJ13: =$R13*$FJ$2 -> 25.8 | FK13: =$R13*$FK$2 -> 25.97916667 | FL13: =$R13*$FL$2 -> 26.15833333 | FM13: =$R13*$FM$2 -> 26.3375 | FN13: =$R13*$FN$2 -> 26.51666667 | FO13: =$R13*$FO$2 -> 26.69583333 | FP13: =$R13*$FP$2 -> 26.875 | FQ13: =$R13*$FQ$2 -> 27.05416667 | FR13: =$R13*$FR$2 -> 27.23333333 | FS13: =$R13*$FS$2 -> 27.4125 | FT13: =$R13*$FT$2 -> 27.59166667 | FU13: =$R13*$FU$2 -> 27.77083333 | FV13: =$R13*$FV$2 -> 27.95 | FW13: =$R13*$FW$2 -> 28.12916667 | FX13: =$R13*$FX$2 -> 28.30833333 | FY13: =$R13*$FY$2 -> 28.4875 | FZ13: =$R13*$FZ$2 -> 28.66666667 | GA13: =$R13*$GA$2 -> 28.84583333 | GB13: =$R13*$GB$2 -> 29.025 | GC13: =$R13*$GC$2 -> 29.20416667 | GD13: =$R13*$GD$2 -> 29.38333333
B14: 5 | C14: 181.9 | D14: 33100 | E14: 26000 | F14: 0.3133 | H14: 0.0003133 | O14: DL-FLEX2-SHE-HO | P14: 6 | Q14: 24 | R14: 0.25 | S14: 15 | T14: 3.75 | U14: Constant Voltage | V14: 23.5 | W14: =R14*$W$2 -> 0.25 | X14: 0.5 | Y14: 0.75 | Z14: 1 | AA14: 1.25 | AB14: 1.5 | AC14: 1.75 | AD14: 2 | AE14: 2.25 | AF14: 2.5 | AG14: 2.75 | AH14: 3 | AI14: 3.25 | AJ14: 3.5 | AK14: 3.75 | AL14: 4 | AM14: 4.25 | AN14: 4.5 | AO14: 4.75 | AP14: 5 | AQ14: 5.25 | AR14: 5.5 | AS14: 5.75 | AT14: 6 | AU14: 6.25 | AV14: 6.5 | AW14: 6.75 | AX14: 7 | AY14: 7.25 | AZ14: 7.5 | BA14: 7.75 | BB14: 8 | BC14: 8.25 | BD14: 8.5 | BE14: 8.75 | BF14: 9 | BG14: 9.25 | BH14: 9.5 | BI14: 9.75 | BJ14: 10 | BK14: 10.25 | BL14: 10.5 | BM14: 10.75 | BN14: 11 | BO14: 11.25 | BP14: 11.5 | BQ14: 11.75 | BR14: 12 | BS14: 12.25 | BT14: 12.5 | BU14: 12.75 | BV14: 13 | BW14: 13.25 | BX14: 13.5 | BY14: 13.75 | BZ14: 14 | CA14: 14.25 | CB14: 14.5 | CC14: 14.75 | CD14: 15 | CE14: 15.25 | CF14: 15.5 | CG14: 15.75 | CH14: 16 | CI14: 16.25 | CJ14: 16.5 | CK14: 16.75 | CL14: 17 | CM14: 17.25 | CN14: 17.5 | CO14: 17.75 | CP14: 18 | CQ14: 18.25 | CR14: 18.5 | CS14: 18.75 | CT14: 19 | CU14: 19.25 | CV14: 19.5 | CW14: 19.75 | CX14: 20 | CY14: 20.25 | CZ14: 20.5 | DA14: 20.75 | DB14: 21 | DC14: 21.25 | DD14: 21.5 | DE14: 21.75 | DF14: 22 | DG14: 22.25 | DH14: 22.5 | DI14: 22.75 | DJ14: 23 | DK14: 23.25 | DL14: 23.5 | DM14: 23.75 | DN14: 24 | DO14: 24.25 | DP14: 24.5 | DQ14: 24.75 | DR14: 25 | DS14: 25.25 | DT14: 25.5 | DU14: 25.75 | DV14: 26 | DW14: 26.25 | DX14: 26.5 | DY14: 26.75 | DZ14: 27 | EA14: 27.25 | EB14: 27.5 | EC14: 27.75 | ED14: 28 | EE14: 28.25 | EF14: 28.5 | EG14: 28.75 | EH14: 29 | EI14: 29.25 | EJ14: 29.5 | EK14: 29.75 | EL14: 30 | EM14: 30.25 | EN14: 30.5 | EO14: 30.75 | EP14: 31 | EQ14: 31.25 | ER14: 31.5 | ES14: 31.75 | ET14: 32 | EU14: 32.25 | EV14: 32.5 | EW14: 32.75 | EX14: 33 | EY14: 33.25 | EZ14: 33.5 | FA14: 33.75 | FB14: 34 | FC14: 34.25 | FD14: 34.5 | FE14: 34.75 | FF14: 35 | FG14: 35.25 | FH14: 35.5 | FI14: 35.75 | FJ14: 36 | FK14: 36.25 | FL14: 36.5 | FM14: 36.75 | FN14: 37 | FO14: 37.25 | FP14: 37.5 | FQ14: 37.75 | FR14: 38 | FS14: 38.25 | FT14: 38.5 | FU14: 38.75 | FV14: 39 | FW14: 39.25 | FX14: 39.5 | FY14: 39.75 | FZ14: 40 | GA14: 40.25 | GB14: 40.5 | GC14: 40.75 | GD14: 41
B15: 6 | C15: 162 | D15: 26250 | E15: 20620 | F15: 0.3951 | H15: 0.0003951 | O15: DL-FLEX2-LR62 | P15: 1.5 | Q15: 24 | R15: 0.0625 | S15: 62 | T15: 3.875 | U15: Constant Voltage | V15: 24.4 | W15: =R15*$W$2 -> 0.0625 | X15: 0.125 | Y15: 0.1875 | Z15: 0.25 | AA15: 0.3125 | AB15: 0.375 | AC15: 0.4375 | AD15: 0.5 | AE15: 0.5625 | AF15: 0.625 | AG15: 0.6875 | AH15: 0.75 | AI15: 0.8125 | AJ15: 0.875 | AK15: 0.9375 | AL15: 1 | AM15: 1.0625 | AN15: 1.125 | AO15: 1.1875 | AP15: 1.25 | AQ15: 1.3125 | AR15: 1.375 | AS15: 1.4375 | AT15: 1.5 | AU15: 1.5625 | AV15: 1.625 | AW15: 1.6875 | AX15: 1.75 | AY15: 1.8125 | AZ15: 1.875 | BA15: 1.9375 | BB15: 2 | BC15: 2.0625 | BD15: 2.125 | BE15: 2.1875 | BF15: 2.25 | BG15: 2.3125 | BH15: 2.375 | BI15: 2.4375 | BJ15: 2.5 | BK15: 2.5625 | BL15: 2.625 | BM15: 2.6875 | BN15: 2.75 | BO15: 2.8125 | BP15: 2.875 | BQ15: 2.9375 | BR15: 3 | BS15: 3.0625 | BT15: 3.125 | BU15: 3.1875 | BV15: 3.25 | BW15: 3.3125 | BX15: 3.375 | BY15: 3.4375 | BZ15: 3.5 | CA15: 3.5625 | CB15: 3.625 | CC15: 3.6875 | CD15: 3.75 | CE15: 3.8125 | CF15: 3.875 | CG15: 3.9375 | CH15: 4 | CI15: 4.0625 | CJ15: 4.125 | CK15: 4.1875 | CL15: 4.25 | CM15: 4.3125 | CN15: 4.375 | CO15: 4.4375 | CP15: 4.5 | CQ15: 4.5625 | CR15: 4.625 | CS15: 4.6875 | CT15: 4.75 | CU15: 4.8125 | CV15: 4.875 | CW15: 4.9375 | CX15: 5 | CY15: 5.0625 | CZ15: 5.125 | DA15: 5.1875 | DB15: 5.25 | DC15: 5.3125 | DD15: 5.375 | DE15: 5.4375 | DF15: 5.5 | DG15: 5.5625 | DH15: 5.625 | DI15: 5.6875 | DJ15: 5.75 | DK15: 5.8125 | DL15: 5.875 | DM15: 5.9375 | DN15: 6 | DO15: 6.0625 | DP15: 6.125 | DQ15: 6.1875 | DR15: 6.25 | DS15: 6.3125 | DT15: 6.375 | DU15: 6.4375 | DV15: 6.5 | DW15: 6.5625 | DX15: 6.625 | DY15: 6.6875 | DZ15: 6.75 | EA15: 6.8125 | EB15: 6.875 | EC15: 6.9375 | ED15: 7 | EE15: 7.0625 | EF15: 7.125 | EG15: 7.1875 | EH15: 7.25 | EI15: 7.3125 | EJ15: 7.375 | EK15: 7.4375 | EL15: 7.5 | EM15: 7.5625 | EN15: 7.625 | EO15: 7.6875 | EP15: 7.75 | EQ15: 7.8125 | ER15: 7.875 | ES15: 7.9375 | ET15: 8 | EU15: 8.0625 | EV15: 8.125 | EW15: 8.1875 | EX15: 8.25 | EY15: 8.3125 | EZ15: 8.375 | FA15: 8.4375 | FB15: 8.5 | FC15: 8.5625 | FD15: 8.625 | FE15: 8.6875 | FF15: 8.75 | FG15: 8.8125 | FH15: 8.875 | FI15: 8.9375 | FJ15: 9 | FK15: 9.0625 | FL15: 9.125 | FM15: 9.1875 | FN15: 9.25 | FO15: 9.3125 | FP15: 9.375 | FQ15: 9.4375 | FR15: 9.5 | FS15: 9.5625 | FT15: 9.625 | FU15: 9.6875 | FV15: 9.75 | FW15: 9.8125 | FX15: 9.875 | FY15: 9.9375 | FZ15: 10 | GA15: 10.0625 | GB15: 10.125 | GC15: 10.1875 | GD15: 10.25
B16: 7 | C16: 144.3 | D16: 20820 | E16: 16350 | F16: 0.4982 | H16: 0.0004982 | O16: DL-FLEX2-UP | P16: 1.3 | Q16: 24 | R16: 0.05416666667 | S16: 30 | T16: 1.625 | U16: Constant Current | V16: 23.04 | W16: =R16*$W$2 -> 0.05416666667 | X16: 0.1083333333 | Y16: 0.1625 | Z16: 0.2166666667 | AA16: 0.2708333333 | AB16: 0.325 | AC16: 0.3791666667 | AD16: 0.4333333333 | AE16: 0.4875 | AF16: 0.5416666667 | AG16: 0.5958333333 | AH16: 0.65 | AI16: 0.7041666667 | AJ16: 0.7583333333 | AK16: 0.8125 | AL16: 0.8666666667 | AM16: 0.9208333333 | AN16: 0.975 | AO16: 1.029166667 | AP16: 1.083333333 | AQ16: 1.1375 | AR16: 1.191666667 | AS16: 1.245833333 | AT16: 1.3 | AU16: 1.354166667 | AV16: 1.408333333 | AW16: 1.4625 | AX16: 1.516666667 | AY16: 1.570833333 | AZ16: 1.625 | BA16: 1.679166667 | BB16: 1.733333333 | BC16: 1.7875 | BD16: 1.841666667 | BE16: 1.895833333 | BF16: 1.95 | BG16: 2.004166667 | BH16: 2.058333333 | BI16: 2.1125 | BJ16: 2.166666667 | BK16: 2.220833333 | BL16: 2.275 | BM16: 2.329166667 | BN16: 2.383333333 | BO16: 2.4375 | BP16: 2.491666667 | BQ16: 2.545833333 | BR16: 2.6 | BS16: 2.654166667 | BT16: 2.708333333 | BU16: 2.7625 | BV16: 2.816666667 | BW16: 2.870833333 | BX16: 2.925 | BY16: 2.979166667 | BZ16: 3.033333333 | CA16: 3.0875 | CB16: 3.141666667 | CC16: 3.195833333 | CD16: 3.25 | CE16: 3.304166667 | CF16: 3.358333333 | CG16: 3.4125 | CH16: 3.466666667 | CI16: 3.520833333 | CJ16: 3.575 | CK16: 3.629166667 | CL16: 3.683333333 | CM16: 3.7375 | CN16: 3.791666667 | CO16: 3.845833333 | CP16: 3.9 | CQ16: 3.954166667 | CR16: 4.008333333 | CS16: 4.0625 | CT16: 4.116666667 | CU16: 4.170833333 | CV16: 4.225 | CW16: 4.279166667 | CX16: 4.333333333 | CY16: 4.3875 | CZ16: 4.441666667 | DA16: 4.495833333 | DB16: 4.55 | DC16: 4.604166667 | DD16: 4.658333333 | DE16: 4.7125 | DF16: 4.766666667 | DG16: 4.820833333 | DH16: 4.875 | DI16: 4.929166667 | DJ16: 4.983333333 | DK16: 5.0375 | DL16: 5.091666667 | DM16: 5.145833333 | DN16: 5.2 | DO16: 5.254166667 | DP16: 5.308333333 | DQ16: 5.3625 | DR16: 5.416666667 | DS16: 5.470833333 | DT16: 5.525 | DU16: 5.579166667 | DV16: 5.633333333 | DW16: 5.6875 | DX16: 5.741666667 | DY16: 5.795833333 | DZ16: 5.85 | EA16: 5.904166667 | EB16: 5.958333333 | EC16: 6.0125 | ED16: 6.066666667 | EE16: 6.120833333 | EF16: 6.175 | EG16: 6.229166667 | EH16: 6.283333333 | EI16: 6.3375 | EJ16: 6.391666667 | EK16: 6.445833333 | EL16: 6.5 | EM16: 6.554166667 | EN16: 6.608333333 | EO16: 6.6625 | EP16: 6.716666667 | EQ16: 6.770833333 | ER16: 6.825 | ES16: 6.879166667 | ET16: 6.933333333 | EU16: 6.9875 | EV16: 7.041666667 | EW16: 7.095833333 | EX16: 7.15 | EY16: 7.204166667 | EZ16: 7.258333333 | FA16: 7.3125 | FB16: 7.366666667 | FC16: 7.420833333 | FD16: 7.475 | FE16: 7.529166667 | FF16: 7.583333333 | FG16: 7.6375 | FH16: 7.691666667 | FI16: 7.745833333 | FJ16: 7.8 | FK16: 7.854166667 | FL16: 7.908333333 | FM16: 7.9625 | FN16: 8.016666667 | FO16: 8.070833333 | FP16: 8.125 | FQ16: 8.179166667 | FR16: 8.233333333 | FS16: 8.2875 | FT16: 8.341666667 | FU16: 8.395833333 | FV16: 8.45 | FW16: 8.504166667 | FX16: 8.558333333 | FY16: 8.6125 | FZ16: 8.666666667 | GA16: 8.720833333 | GB16: 8.775 | GC16: 8.829166667 | GD16: 8.883333333
B17: 8 | C17: 128.5 | D17: 16510 | E17: 12970 | F17: 0.6282 | H17: 0.0006282 | O17: DL-FLEX2-UP-HO | P17: 2.8 | Q17: 24 | R17: 0.1166666667 | S17: 30 | T17: 3.5 | U17: Constant Current | V17: 23.04 | W17: 0.1166666667 | X17: 0.2333333333 | Y17: 0.35 | Z17: 0.4666666667 | AA17: 0.5833333333 | AB17: 0.7 | AC17: 0.8166666667 | AD17: 0.9333333333 | AE17: 1.05 | AF17: 1.166666667 | AG17: 1.283333333 | AH17: 1.4 | AI17: 1.516666667 | AJ17: 1.633333333 | AK17: 1.75 | AL17: 1.866666667 | AM17: 1.983333333 | AN17: 2.1 | AO17: 2.216666667 | AP17: 2.333333333 | AQ17: 2.45 | AR17: 2.566666667 | AS17: 2.683333333 | AT17: 2.8 | AU17: 2.916666667 | AV17: 3.033333333 | AW17: 3.15 | AX17: 3.266666667 | AY17: 3.383333333 | AZ17: 3.5 | BA17: 3.616666667 | BB17: 3.733333333 | BC17: 3.85 | BD17: 3.966666667 | BE17: 4.083333333 | BF17: 4.2 | BG17: 4.316666667 | BH17: 4.433333333 | BI17: 4.55 | BJ17: 4.666666667 | BK17: 4.783333333 | BL17: 4.9 | BM17: 5.016666667 | BN17: 5.133333333 | BO17: 5.25 | BP17: 5.366666667 | BQ17: 5.483333333 | BR17: 5.6 | BS17: 5.716666667 | BT17: 5.833333333 | BU17: 5.95 | BV17: 6.066666667 | BW17: 6.183333333 | BX17: 6.3 | BY17: 6.416666667 | BZ17: 6.533333333 | CA17: 6.65 | CB17: 6.766666667 | CC17: 6.883333333 | CD17: 7 | CE17: 7.116666667 | CF17: 7.233333333 | CG17: 7.35 | CH17: 7.466666667 | CI17: 7.583333333 | CJ17: 7.7 | CK17: 7.816666667 | CL17: 7.933333333 | CM17: 8.05 | CN17: 8.166666667 | CO17: 8.283333333 | CP17: 8.4 | CQ17: 8.516666667 | CR17: 8.633333333 | CS17: 8.75 | CT17: 8.866666667 | CU17: 8.983333333 | CV17: 9.1 | CW17: 9.216666667 | CX17: 9.333333333 | CY17: 9.45 | CZ17: 9.566666667 | DA17: 9.683333333 | DB17: 9.8 | DC17: 9.916666667 | DD17: 10.03333333 | DE17: 10.15 | DF17: 10.26666667 | DG17: 10.38333333 | DH17: 10.5 | DI17: 10.61666667 | DJ17: 10.73333333 | DK17: 10.85 | DL17: 10.96666667 | DM17: 11.08333333 | DN17: 11.2 | DO17: 11.31666667 | DP17: 11.43333333 | DQ17: 11.55 | DR17: 11.66666667 | DS17: 11.78333333 | DT17: 11.9 | DU17: 12.01666667 | DV17: 12.13333333 | DW17: 12.25 | DX17: 12.36666667 | DY17: 12.48333333 | DZ17: 12.6 | EA17: 12.71666667 | EB17: 12.83333333 | EC17: 12.95 | ED17: 13.06666667 | EE17: 13.18333333 | EF17: 13.3 | EG17: 13.41666667 | EH17: 13.53333333 | EI17: 13.65 | EJ17: 13.76666667 | EK17: 13.88333333 | EL17: 14 | EM17: 14.11666667 | EN17: 14.23333333 | EO17: 14.35 | EP17: 14.46666667 | EQ17: 14.58333333 | ER17: 14.7 | ES17: 14.81666667 | ET17: 14.93333333 | EU17: 15.05 | EV17: 15.16666667 | EW17: 15.28333333 | EX17: 15.4 | EY17: 15.51666667 | EZ17: 15.63333333 | FA17: 15.75 | FB17: 15.86666667 | FC17: 15.98333333 | FD17: 16.1 | FE17: 16.21666667 | FF17: 16.33333333 | FG17: 16.45 | FH17: 16.56666667 | FI17: 16.68333333 | FJ17: 16.8 | FK17: 16.91666667 | FL17: 17.03333333 | FM17: 17.15 | FN17: 17.26666667 | FO17: 17.38333333 | FP17: 17.5 | FQ17: 17.61666667 | FR17: 17.73333333 | FS17: 17.85 | FT17: 17.96666667 | FU17: 18.08333333 | FV17: 18.2 | FW17: 18.31666667 | FX17: 18.43333333 | FY17: 18.55 | FZ17: 18.66666667 | GA17: 18.78333333 | GB17: 18.9 | GC17: 19.01666667 | GD17: 19.13333333
B18: 9 | C18: 114.4 | D18: 13090 | E18: 10280 | F18: 0.7921 | H18: 0.0007921 | O18: DL-FLEX2-UP-RGB | P18: 3.9 | Q18: 24 | R18: 0.1625 | S18: 20 | T18: 3.25 | U18: Constant Current | V18: 23.04 | W18: 0.1625 | X18: 0.325 | Y18: 0.4875 | Z18: 0.65 | AA18: 0.8125 | AB18: 0.975 | AC18: 1.1375 | AD18: 1.3 | AE18: 1.4625 | AF18: 1.625 | AG18: 1.7875 | AH18: 1.95 | AI18: 2.1125 | AJ18: 2.275 | AK18: 2.4375 | AL18: 2.6 | AM18: 2.7625 | AN18: 2.925 | AO18: 3.0875 | AP18: 3.25 | AQ18: 3.4125 | AR18: 3.575 | AS18: 3.7375 | AT18: 3.9 | AU18: 4.0625 | AV18: 4.225 | AW18: 4.3875 | AX18: 4.55 | AY18: 4.7125 | AZ18: 4.875 | BA18: 5.0375 | BB18: 5.2 | BC18: 5.3625 | BD18: 5.525 | BE18: 5.6875 | BF18: 5.85 | BG18: 6.0125 | BH18: 6.175 | BI18: 6.3375 | BJ18: 6.5 | BK18: 6.6625 | BL18: 6.825 | BM18: 6.9875 | BN18: 7.15 | BO18: 7.3125 | BP18: 7.475 | BQ18: 7.6375 | BR18: 7.8 | BS18: 7.9625 | BT18: 8.125 | BU18: 8.2875 | BV18: 8.45 | BW18: 8.6125 | BX18: 8.775 | BY18: 8.9375 | BZ18: 9.1 | CA18: 9.2625 | CB18: 9.425 | CC18: 9.5875 | CD18: 9.75 | CE18: 9.9125 | CF18: 10.075 | CG18: 10.2375 | CH18: 10.4 | CI18: 10.5625 | CJ18: 10.725 | CK18: 10.8875 | CL18: 11.05 | CM18: 11.2125 | CN18: 11.375 | CO18: 11.5375 | CP18: 11.7 | CQ18: 11.8625 | CR18: 12.025 | CS18: 12.1875 | CT18: 12.35 | CU18: 12.5125 | CV18: 12.675 | CW18: 12.8375 | CX18: 13 | CY18: 13.1625 | CZ18: 13.325 | DA18: 13.4875 | DB18: 13.65 | DC18: 13.8125 | DD18: 13.975 | DE18: 14.1375 | DF18: 14.3 | DG18: 14.4625 | DH18: 14.625 | DI18: 14.7875 | DJ18: 14.95 | DK18: 15.1125 | DL18: 15.275 | DM18: 15.4375 | DN18: 15.6 | DO18: 15.7625 | DP18: 15.925 | DQ18: 16.0875 | DR18: 16.25 | DS18: 16.4125 | DT18: 16.575 | DU18: 16.7375 | DV18: 16.9 | DW18: 17.0625 | DX18: 17.225 | DY18: 17.3875 | DZ18: 17.55 | EA18: 17.7125 | EB18: 17.875 | EC18: 18.0375 | ED18: 18.2 | EE18: 18.3625 | EF18: 18.525 | EG18: 18.6875 | EH18: 18.85 | EI18: 19.0125 | EJ18: 19.175 | EK18: 19.3375 | EL18: 19.5 | EM18: 19.6625 | EN18: 19.825 | EO18: 19.9875 | EP18: 20.15 | EQ18: 20.3125 | ER18: 20.475 | ES18: 20.6375 | ET18: 20.8 | EU18: 20.9625 | EV18: 21.125 | EW18: 21.2875 | EX18: 21.45 | EY18: 21.6125 | EZ18: 21.775 | FA18: 21.9375 | FB18: 22.1 | FC18: 22.2625 | FD18: 22.425 | FE18: 22.5875 | FF18: 22.75 | FG18: 22.9125 | FH18: 23.075 | FI18: 23.2375 | FJ18: 23.4 | FK18: 23.5625 | FL18: 23.725 | FM18: 23.8875 | FN18: 24.05 | FO18: 24.2125 | FP18: 24.375 | FQ18: 24.5375 | FR18: 24.7 | FS18: 24.8625 | FT18: 25.025 | FU18: 25.1875 | FV18: 25.35 | FW18: 25.5125 | FX18: 25.675 | FY18: 25.8375 | FZ18: 26 | GA18: 26.1625 | GB18: 26.325 | GC18: 26.4875 | GD18: 26.65
B19: 10 | C19: 101.9 | D19: 10380 | E19: 8155 | F19: 0.9989 | H19: 0.0009989 | O19: DL-FLEX2-UP-ULTRA | P19: 4.1 | Q19: 24 | R19: 0.1708333333 | S19: 20 | T19: 3.416666667 | U19: Constant Current | V19: 23.04 | W19: 0.1708333333 | X19: 0.3416666667 | Y19: 0.5125 | Z19: 0.6833333333 | AA19: 0.8541666667 | AB19: 1.025 | AC19: 1.195833333 | AD19: 1.366666667 | AE19: 1.5375 | AF19: 1.708333333 | AG19: 1.879166667 | AH19: 2.05 | AI19: 2.220833333 | AJ19: 2.391666667 | AK19: 2.5625 | AL19: 2.733333333 | AM19: 2.904166667 | AN19: 3.075 | AO19: 3.245833333 | AP19: 3.416666667 | AQ19: 3.5875 | AR19: 3.758333333 | AS19: 3.929166667 | AT19: 4.1 | AU19: 4.270833333 | AV19: 4.441666667 | AW19: 4.6125 | AX19: 4.783333333 | AY19: 4.954166667 | AZ19: 5.125 | BA19: 5.295833333 | BB19: 5.466666667 | BC19: 5.6375 | BD19: 5.808333333 | BE19: 5.979166667 | BF19: 6.15 | BG19: 6.320833333 | BH19: 6.491666667 | BI19: 6.6625 | BJ19: 6.833333333 | BK19: 7.004166667 | BL19: 7.175 | BM19: 7.345833333 | BN19: 7.516666667 | BO19: 7.6875 | BP19: 7.858333333 | BQ19: 8.029166667 | BR19: 8.2 | BS19: 8.370833333 | BT19: 8.541666667 | BU19: 8.7125 | BV19: 8.883333333 | BW19: 9.054166667 | BX19: 9.225 | BY19: 9.395833333 | BZ19: 9.566666667 | CA19: 9.7375 | CB19: 9.908333333 | CC19: 10.07916667 | CD19: 10.25 | CE19: 10.42083333 | CF19: 10.59166667 | CG19: 10.7625 | CH19: 10.93333333 | CI19: 11.10416667 | CJ19: 11.275 | CK19: 11.44583333 | CL19: 11.61666667 | CM19: 11.7875 | CN19: 11.95833333 | CO19: 12.12916667 | CP19: 12.3 | CQ19: 12.47083333 | CR19: 12.64166667 | CS19: 12.8125 | CT19: 12.98333333 | CU19: 13.15416667 | CV19: 13.325 | CW19: 13.49583333 | CX19: 13.66666667 | CY19: 13.8375 | CZ19: 14.00833333 | DA19: 14.17916667 | DB19: 14.35 | DC19: 14.52083333 | DD19: 14.69166667 | DE19: 14.8625 | DF19: 15.03333333 | DG19: 15.20416667 | DH19: 15.375 | DI19: 15.54583333 | DJ19: 15.71666667 | DK19: 15.8875 | DL19: 16.05833333 | DM19: 16.22916667 | DN19: 16.4 | DO19: 16.57083333 | DP19: 16.74166667 | DQ19: 16.9125 | DR19: 17.08333333 | DS19: 17.25416667 | DT19: 17.425 | DU19: 17.59583333 | DV19: 17.76666667 | DW19: 17.9375 | DX19: 18.10833333 | DY19: 18.27916667 | DZ19: 18.45 | EA19: 18.62083333 | EB19: 18.79166667 | EC19: 18.9625 | ED19: 19.13333333 | EE19: 19.30416667 | EF19: 19.475 | EG19: 19.64583333 | EH19: 19.81666667 | EI19: 19.9875 | EJ19: 20.15833333 | EK19: 20.32916667 | EL19: 20.5 | EM19: 20.67083333 | EN19: 20.84166667 | EO19: 21.0125 | EP19: 21.18333333 | EQ19: 21.35416667 | ER19: 21.525 | ES19: 21.69583333 | ET19: 21.86666667 | EU19: 22.0375 | EV19: 22.20833333 | EW19: 22.37916667 | EX19: 22.55 | EY19: 22.72083333 | EZ19: 22.89166667 | FA19: 23.0625 | FB19: 23.23333333 | FC19: 23.40416667 | FD19: 23.575 | FE19: 23.74583333 | FF19: 23.91666667 | FG19: 24.0875 | FH19: 24.25833333 | FI19: 24.42916667 | FJ19: 24.6 | FK19: 24.77083333 | FL19: 24.94166667 | FM19: 25.1125 | FN19: 25.28333333 | FO19: 25.45416667 | FP19: 25.625 | FQ19: 25.79583333 | FR19: 25.96666667 | FS19: 26.1375 | FT19: 26.30833333 | FU19: 26.47916667 | FV19: 26.65 | FW19: 26.82083333 | FX19: 26.99166667 | FY19: 27.1625 | FZ19: 27.33333333 | GA19: 27.50416667 | GB19: 27.675 | GC19: 27.84583333 | GD19: 28.01666667
B20: 11 | C20: 90.74 | D20: 8234 | E20: 6467 | F20: 1.26 | H20: 0.00126 | O20: DL-FLEX2-UP-ULTRA-NIC | P20: 3.5 | Q20: 24 | R20: 0.1458333333 | S20: 20 | T20: 2.916666667 | U20: Constant Voltage | V20: 23.4 | W20: 0.1458333333 | X20: 0.2916666667 | Y20: 0.4375 | Z20: 0.5833333333 | AA20: 0.7291666667 | AB20: 0.875 | AC20: 1.020833333 | AD20: 1.166666667 | AE20: 1.3125 | AF20: 1.458333333 | AG20: 1.604166667 | AH20: 1.75 | AI20: 1.895833333 | AJ20: 2.041666667 | AK20: 2.1875 | AL20: 2.333333333 | AM20: 2.479166667 | AN20: 2.625 | AO20: 2.770833333 | AP20: 2.916666667 | AQ20: 3.0625 | AR20: 3.208333333 | AS20: 3.354166667 | AT20: 3.5 | AU20: 3.645833333 | AV20: 3.791666667 | AW20: 3.9375 | AX20: 4.083333333 | AY20: 4.229166667 | AZ20: 4.375 | BA20: 4.520833333 | BB20: 4.666666667 | BC20: 4.8125 | BD20: 4.958333333 | BE20: 5.104166667 | BF20: 5.25 | BG20: 5.395833333 | BH20: 5.541666667 | BI20: 5.6875 | BJ20: 5.833333333 | BK20: 5.979166667 | BL20: 6.125 | BM20: 6.270833333 | BN20: 6.416666667 | BO20: 6.5625 | BP20: 6.708333333 | BQ20: 6.854166667 | BR20: 7 | BS20: 7.145833333 | BT20: 7.291666667 | BU20: 7.4375 | BV20: 7.583333333 | BW20: 7.729166667 | BX20: 7.875 | BY20: 8.020833333 | BZ20: 8.166666667 | CA20: 8.3125 | CB20: 8.458333333 | CC20: 8.604166667 | CD20: 8.75 | CE20: 8.895833333 | CF20: 9.041666667 | CG20: 9.1875 | CH20: 9.333333333 | CI20: 9.479166667 | CJ20: 9.625 | CK20: 9.770833333 | CL20: 9.916666667 | CM20: 10.0625 | CN20: 10.20833333 | CO20: 10.35416667 | CP20: 10.5 | CQ20: 10.64583333 | CR20: 10.79166667 | CS20: 10.9375 | CT20: 11.08333333 | CU20: 11.22916667 | CV20: 11.375 | CW20: 11.52083333 | CX20: 11.66666667 | CY20: 11.8125 | CZ20: 11.95833333 | DA20: 12.10416667 | DB20: 12.25 | DC20: 12.39583333 | DD20: 12.54166667 | DE20: 12.6875 | DF20: 12.83333333 | DG20: 12.97916667 | DH20: 13.125 | DI20: 13.27083333 | DJ20: 13.41666667 | DK20: 13.5625 | DL20: 13.70833333 | DM20: 13.85416667 | DN20: 14 | DO20: 14.14583333 | DP20: 14.29166667 | DQ20: 14.4375 | DR20: 14.58333333 | DS20: 14.72916667 | DT20: 14.875 | DU20: 15.02083333 | DV20: 15.16666667 | DW20: 15.3125 | DX20: 15.45833333 | DY20: 15.60416667 | DZ20: 15.75 | EA20: 15.89583333 | EB20: 16.04166667 | EC20: 16.1875 | ED20: 16.33333333 | EE20: 16.47916667 | EF20: 16.625 | EG20: 16.77083333 | EH20: 16.91666667 | EI20: 17.0625 | EJ20: 17.20833333 | EK20: 17.35416667 | EL20: 17.5 | EM20: 17.64583333 | EN20: 17.79166667 | EO20: 17.9375 | EP20: 18.08333333 | EQ20: 18.22916667 | ER20: 18.375 | ES20: 18.52083333 | ET20: 18.66666667 | EU20: 18.8125 | EV20: 18.95833333 | EW20: 19.10416667 | EX20: 19.25 | EY20: 19.39583333 | EZ20: 19.54166667 | FA20: 19.6875 | FB20: 19.83333333 | FC20: 19.97916667 | FD20: 20.125 | FE20: 20.27083333 | FF20: 20.41666667 | FG20: 20.5625 | FH20: 20.70833333 | FI20: 20.85416667 | FJ20: 21 | FK20: 21.14583333 | FL20: 21.29166667 | FM20: 21.4375 | FN20: 21.58333333 | FO20: 21.72916667 | FP20: 21.875 | FQ20: 22.02083333 | FR20: 22.16666667 | FS20: 22.3125 | FT20: 22.45833333 | FU20: 22.60416667 | FV20: 22.75 | FW20: 22.89583333 | FX20: 23.04166667 | FY20: 23.1875 | FZ20: 23.33333333 | GA20: 23.47916667 | GB20: 23.625 | GC20: 23.77083333 | GD20: 23.91666667
B21: 12 | C21: 80.81 | D21: 6530 | E21: 5129 | F21: 1.588 | H21: 0.001588 | O21: DL-FLEX2-SC | P21: 4.3 | Q21: 24 | R21: 0.1791666667 | S21: 20 | T21: 3.583333333 | U21: Constant Voltage | V21: 23.4 | W21: 0.1791666667 | X21: 0.3583333333 | Y21: 0.5375 | Z21: 0.7166666667 | AA21: 0.8958333333 | AB21: 1.075 | AC21: 1.254166667 | AD21: 1.433333333 | AE21: 1.6125 | AF21: 1.791666667 | AG21: 1.970833333 | AH21: 2.15 | AI21: 2.329166667 | AJ21: 2.508333333 | AK21: 2.6875 | AL21: 2.866666667 | AM21: 3.045833333 | AN21: 3.225 | AO21: 3.404166667 | AP21: 3.583333333 | AQ21: 3.7625 | AR21: 3.941666667 | AS21: 4.120833333 | AT21: 4.3 | AU21: 4.479166667 | AV21: 4.658333333 | AW21: 4.8375 | AX21: 5.016666667 | AY21: 5.195833333 | AZ21: 5.375 | BA21: 5.554166667 | BB21: 5.733333333 | BC21: 5.9125 | BD21: 6.091666667 | BE21: 6.270833333 | BF21: 6.45 | BG21: 6.629166667 | BH21: 6.808333333 | BI21: 6.9875 | BJ21: 7.166666667 | BK21: 7.345833333 | BL21: 7.525 | BM21: 7.704166667 | BN21: 7.883333333 | BO21: 8.0625 | BP21: 8.241666667 | BQ21: 8.420833333 | BR21: 8.6 | BS21: 8.779166667 | BT21: 8.958333333 | BU21: 9.1375 | BV21: 9.316666667 | BW21: 9.495833333 | BX21: 9.675 | BY21: 9.854166667 | BZ21: 10.03333333 | CA21: 10.2125 | CB21: 10.39166667 | CC21: 10.57083333 | CD21: 10.75 | CE21: 10.92916667 | CF21: 11.10833333 | CG21: 11.2875 | CH21: 11.46666667 | CI21: 11.64583333 | CJ21: 11.825 | CK21: 12.00416667 | CL21: 12.18333333 | CM21: 12.3625 | CN21: 12.54166667 | CO21: 12.72083333 | CP21: 12.9 | CQ21: 13.07916667 | CR21: 13.25833333 | CS21: 13.4375 | CT21: 13.61666667 | CU21: 13.79583333 | CV21: 13.975 | CW21: 14.15416667 | CX21: 14.33333333 | CY21: 14.5125 | CZ21: 14.69166667 | DA21: 14.87083333 | DB21: 15.05 | DC21: 15.22916667 | DD21: 15.40833333 | DE21: 15.5875 | DF21: 15.76666667 | DG21: 15.94583333 | DH21: 16.125 | DI21: 16.30416667 | DJ21: 16.48333333 | DK21: 16.6625 | DL21: 16.84166667 | DM21: 17.02083333 | DN21: 17.2 | DO21: 17.37916667 | DP21: 17.55833333 | DQ21: 17.7375 | DR21: 17.91666667 | DS21: 18.09583333 | DT21: 18.275 | DU21: 18.45416667 | DV21: 18.63333333 | DW21: 18.8125 | DX21: 18.99166667 | DY21: 19.17083333 | DZ21: 19.35 | EA21: 19.52916667 | EB21: 19.70833333 | EC21: 19.8875 | ED21: 20.06666667 | EE21: 20.24583333 | EF21: 20.425 | EG21: 20.60416667 | EH21: 20.78333333 | EI21: 20.9625 | EJ21: 21.14166667 | EK21: 21.32083333 | EL21: 21.5 | EM21: 21.67916667 | EN21: 21.85833333 | EO21: 22.0375 | EP21: 22.21666667 | EQ21: 22.39583333 | ER21: 22.575 | ES21: 22.75416667 | ET21: 22.93333333 | EU21: 23.1125 | EV21: 23.29166667 | EW21: 23.47083333 | EX21: 23.65 | EY21: 23.82916667 | EZ21: 24.00833333 | FA21: 24.1875 | FB21: 24.36666667 | FC21: 24.54583333 | FD21: 24.725 | FE21: 24.90416667 | FF21: 25.08333333 | FG21: 25.2625 | FH21: 25.44166667 | FI21: 25.62083333 | FJ21: 25.8 | FK21: 25.97916667 | FL21: 26.15833333 | FM21: 26.3375 | FN21: 26.51666667 | FO21: 26.69583333 | FP21: 26.875 | FQ21: 27.05416667 | FR21: 27.23333333 | FS21: 27.4125 | FT21: 27.59166667 | FU21: 27.77083333 | FV21: 27.95 | FW21: 28.12916667 | FX21: 28.30833333 | FY21: 28.4875 | FZ21: 28.66666667 | GA21: 28.84583333 | GB21: 29.025 | GC21: 29.20416667 | GD21: 29.38333333
B22: 13 | C22: 71.96 | D22: 5178 | E22: 4067 | F22: 2.003 | H22: 0.002003 | O22: DL-FLEX2-SHD | P22: 4.3 | Q22: 24 | R22: 0.1791666667 | S22: 20 | T22: 3.583333333 | U22: Constant Voltage | V22: 23.4 | W22: 0.1791666667 | X22: 0.3583333333 | Y22: 0.5375 | Z22: 0.7166666667 | AA22: 0.8958333333 | AB22: 1.075 | AC22: 1.254166667 | AD22: 1.433333333 | AE22: 1.6125 | AF22: 1.791666667 | AG22: 1.970833333 | AH22: 2.15 | AI22: 2.329166667 | AJ22: 2.508333333 | AK22: 2.6875 | AL22: 2.866666667 | AM22: 3.045833333 | AN22: 3.225 | AO22: 3.404166667 | AP22: 3.583333333 | AQ22: 3.7625 | AR22: 3.941666667 | AS22: 4.120833333 | AT22: 4.3 | AU22: 4.479166667 | AV22: 4.658333333 | AW22: 4.8375 | AX22: 5.016666667 | AY22: 5.195833333 | AZ22: 5.375 | BA22: 5.554166667 | BB22: 5.733333333 | BC22: 5.9125 | BD22: 6.091666667 | BE22: 6.270833333 | BF22: 6.45 | BG22: 6.629166667 | BH22: 6.808333333 | BI22: 6.9875 | BJ22: 7.166666667 | BK22: 7.345833333 | BL22: 7.525 | BM22: 7.704166667 | BN22: 7.883333333 | BO22: 8.0625 | BP22: 8.241666667 | BQ22: 8.420833333 | BR22: 8.6 | BS22: 8.779166667 | BT22: 8.958333333 | BU22: 9.1375 | BV22: 9.316666667 | BW22: 9.495833333 | BX22: 9.675 | BY22: 9.854166667 | BZ22: 10.03333333 | CA22: 10.2125 | CB22: 10.39166667 | CC22: 10.57083333 | CD22: 10.75 | CE22: 10.92916667 | CF22: 11.10833333 | CG22: 11.2875 | CH22: 11.46666667 | CI22: 11.64583333 | CJ22: 11.825 | CK22: 12.00416667 | CL22: 12.18333333 | CM22: 12.3625 | CN22: 12.54166667 | CO22: 12.72083333 | CP22: 12.9 | CQ22: 13.07916667 | CR22: 13.25833333 | CS22: 13.4375 | CT22: 13.61666667 | CU22: 13.79583333 | CV22: 13.975 | CW22: 14.15416667 | CX22: 14.33333333 | CY22: 14.5125 | CZ22: 14.69166667 | DA22: 14.87083333 | DB22: 15.05 | DC22: 15.22916667 | DD22: 15.40833333 | DE22: 15.5875 | DF22: 15.76666667 | DG22: 15.94583333 | DH22: 16.125 | DI22: 16.30416667 | DJ22: 16.48333333 | DK22: 16.6625 | DL22: 16.84166667 | DM22: 17.02083333 | DN22: 17.2 | DO22: 17.37916667 | DP22: 17.55833333 | DQ22: 17.7375 | DR22: 17.91666667 | DS22: 18.09583333 | DT22: 18.275 | DU22: 18.45416667 | DV22: 18.63333333 | DW22: 18.8125 | DX22: 18.99166667 | DY22: 19.17083333 | DZ22: 19.35 | EA22: 19.52916667 | EB22: 19.70833333 | EC22: 19.8875 | ED22: 20.06666667 | EE22: 20.24583333 | EF22: 20.425 | EG22: 20.60416667 | EH22: 20.78333333 | EI22: 20.9625 | EJ22: 21.14166667 | EK22: 21.32083333 | EL22: 21.5 | EM22: 21.67916667 | EN22: 21.85833333 | EO22: 22.0375 | EP22: 22.21666667 | EQ22: 22.39583333 | ER22: 22.575 | ES22: 22.75416667 | ET22: 22.93333333 | EU22: 23.1125 | EV22: 23.29166667 | EW22: 23.47083333 | EX22: 23.65 | EY22: 23.82916667 | EZ22: 24.00833333 | FA22: 24.1875 | FB22: 24.36666667 | FC22: 24.54583333 | FD22: 24.725 | FE22: 24.90416667 | FF22: 25.08333333 | FG22: 25.2625 | FH22: 25.44166667 | FI22: 25.62083333 | FJ22: 25.8 | FK22: 25.97916667 | FL22: 26.15833333 | FM22: 26.3375 | FN22: 26.51666667 | FO22: 26.69583333 | FP22: 26.875 | FQ22: 27.05416667 | FR22: 27.23333333 | FS22: 27.4125 | FT22: 27.59166667 | FU22: 27.77083333 | FV22: 27.95 | FW22: 28.12916667 | FX22: 28.30833333 | FY22: 28.4875 | FZ22: 28.66666667 | GA22: 28.84583333 | GB22: 29.025 | GC22: 29.20416667 | GD22: 29.38333333
B23: 14 | C23: 64.08 | D23: 4107 | E23: 3225 | F23: 2.525 | H23: 0.002525 | O23: DL-FLEX2-SHO | P23: 8.9 | Q23: 24 | R23: 0.3708333333 | S23: 10 | T23: 3.708333333 | U23: Constant Voltage | V23: 23.4 | W23: 0.3708333333 | X23: 0.7416666667 | Y23: 1.1125 | Z23: 1.483333333 | AA23: 1.854166667 | AB23: 2.225 | AC23: 2.595833333 | AD23: 2.966666667 | AE23: 3.3375 | AF23: 3.708333333 | AG23: 4.079166667 | AH23: 4.45 | AI23: 4.820833333 | AJ23: 5.191666667 | AK23: 5.5625 | AL23: 5.933333333 | AM23: 6.304166667 | AN23: 6.675 | AO23: 7.045833333 | AP23: 7.416666667 | AQ23: 7.7875 | AR23: 8.158333333 | AS23: 8.529166667 | AT23: 8.9 | AU23: 9.270833333 | AV23: 9.641666667 | AW23: 10.0125 | AX23: 10.38333333 | AY23: 10.75416667 | AZ23: 11.125 | BA23: 11.49583333 | BB23: 11.86666667 | BC23: 12.2375 | BD23: 12.60833333 | BE23: 12.97916667 | BF23: 13.35 | BG23: 13.72083333 | BH23: 14.09166667 | BI23: 14.4625 | BJ23: 14.83333333 | BK23: 15.20416667 | BL23: 15.575 | BM23: 15.94583333 | BN23: 16.31666667 | BO23: 16.6875 | BP23: 17.05833333 | BQ23: 17.42916667 | BR23: 17.8 | BS23: 18.17083333 | BT23: 18.54166667 | BU23: 18.9125 | BV23: 19.28333333 | BW23: 19.65416667 | BX23: 20.025 | BY23: 20.39583333 | BZ23: 20.76666667 | CA23: 21.1375 | CB23: 21.50833333 | CC23: 21.87916667 | CD23: 22.25 | CE23: 22.62083333 | CF23: 22.99166667 | CG23: 23.3625 | CH23: 23.73333333 | CI23: 24.10416667 | CJ23: 24.475 | CK23: 24.84583333 | CL23: 25.21666667 | CM23: 25.5875 | CN23: 25.95833333 | CO23: 26.32916667 | CP23: 26.7 | CQ23: 27.07083333 | CR23: 27.44166667 | CS23: 27.8125 | CT23: 28.18333333 | CU23: 28.55416667 | CV23: 28.925 | CW23: 29.29583333 | CX23: 29.66666667 | CY23: 30.0375 | CZ23: 30.40833333 | DA23: 30.77916667 | DB23: 31.15 | DC23: 31.52083333 | DD23: 31.89166667 | DE23: 32.2625 | DF23: 32.63333333 | DG23: 33.00416667 | DH23: 33.375 | DI23: 33.74583333 | DJ23: 34.11666667 | DK23: 34.4875 | DL23: 34.85833333 | DM23: 35.22916667 | DN23: 35.6 | DO23: 35.97083333 | DP23: 36.34166667 | DQ23: 36.7125 | DR23: 37.08333333 | DS23: 37.45416667 | DT23: 37.825 | DU23: 38.19583333 | DV23: 38.56666667 | DW23: 38.9375 | DX23: 39.30833333 | DY23: 39.67916667 | DZ23: 40.05 | EA23: 40.42083333 | EB23: 40.79166667 | EC23: 41.1625 | ED23: 41.53333333 | EE23: 41.90416667 | EF23: 42.275 | EG23: 42.64583333 | EH23: 43.01666667 | EI23: 43.3875 | EJ23: 43.75833333 | EK23: 44.12916667 | EL23: 44.5 | EM23: 44.87083333 | EN23: 45.24166667 | EO23: 45.6125 | EP23: 45.98333333 | EQ23: 46.35416667 | ER23: 46.725 | ES23: 47.09583333 | ET23: 47.46666667 | EU23: 47.8375 | EV23: 48.20833333 | EW23: 48.57916667 | EX23: 48.95 | EY23: 49.32083333 | EZ23: 49.69166667 | FA23: 50.0625 | FB23: 50.43333333 | FC23: 50.80416667 | FD23: 51.175 | FE23: 51.54583333 | FF23: 51.91666667 | FG23: 52.2875 | FH23: 52.65833333 | FI23: 53.02916667 | FJ23: 53.4 | FK23: 53.77083333 | FL23: 54.14166667 | FM23: 54.5125 | FN23: 54.88333333 | FO23: 55.25416667 | FP23: 55.625 | FQ23: 55.99583333 | FR23: 56.36666667 | FS23: 56.7375 | FT23: 57.10833333 | FU23: 57.47916667 | FV23: 57.85 | FW23: 58.22083333 | FX23: 58.59166667 | FY23: 58.9625 | FZ23: 59.33333333 | GA23: 59.70416667 | GB23: 60.075 | GC23: 60.44583333 | GD23: 60.81666667
B24: 15 | C24: 57.07 | D24: 3257 | E24: 2558 | F24: 3.184 | H24: 0.003184 | O24: DL-FLEX-HD | P24: 5 | Q24: 24 | R24: 0.2083333333 | S24: 16 | T24: 3.333333333 | U24: Constant Current | V24: 23.04 | W24: 0.2083333333 | X24: 0.4166666667 | Y24: 0.625 | Z24: 0.8333333333 | AA24: 1.041666667 | AB24: 1.25 | AC24: 1.458333333 | AD24: 1.666666667 | AE24: 1.875 | AF24: 2.083333333 | AG24: 2.291666667 | AH24: 2.5 | AI24: 2.708333333 | AJ24: 2.916666667 | AK24: 3.125 | AL24: 3.333333333 | AM24: 3.541666667 | AN24: 3.75 | AO24: 3.958333333 | AP24: 4.166666667 | AQ24: 4.375 | AR24: 4.583333333 | AS24: 4.791666667 | AT24: 5 | AU24: 5.208333333 | AV24: 5.416666667 | AW24: 5.625 | AX24: 5.833333333 | AY24: 6.041666667 | AZ24: 6.25 | BA24: 6.458333333 | BB24: 6.666666667 | BC24: 6.875 | BD24: 7.083333333 | BE24: 7.291666667 | BF24: 7.5 | BG24: 7.708333333 | BH24: 7.916666667 | BI24: 8.125 | BJ24: 8.333333333 | BK24: 8.541666667 | BL24: 8.75 | BM24: 8.958333333 | BN24: 9.166666667 | BO24: 9.375 | BP24: 9.583333333 | BQ24: 9.791666667 | BR24: 10 | BS24: 10.20833333 | BT24: 10.41666667 | BU24: 10.625 | BV24: 10.83333333 | BW24: 11.04166667 | BX24: 11.25 | BY24: 11.45833333 | BZ24: 11.66666667 | CA24: 11.875 | CB24: 12.08333333 | CC24: 12.29166667 | CD24: 12.5 | CE24: 12.70833333 | CF24: 12.91666667 | CG24: 13.125 | CH24: 13.33333333 | CI24: 13.54166667 | CJ24: 13.75 | CK24: 13.95833333 | CL24: 14.16666667 | CM24: 14.375 | CN24: 14.58333333 | CO24: 14.79166667 | CP24: 15 | CQ24: 15.20833333 | CR24: 15.41666667 | CS24: 15.625 | CT24: 15.83333333 | CU24: 16.04166667 | CV24: 16.25 | CW24: 16.45833333 | CX24: 16.66666667 | CY24: 16.875 | CZ24: 17.08333333 | DA24: 17.29166667 | DB24: 17.5 | DC24: 17.70833333 | DD24: 17.91666667 | DE24: 18.125 | DF24: 18.33333333 | DG24: 18.54166667 | DH24: 18.75 | DI24: 18.95833333 | DJ24: 19.16666667 | DK24: 19.375 | DL24: 19.58333333 | DM24: 19.79166667 | DN24: 20 | DO24: 20.20833333 | DP24: 20.41666667 | DQ24: 20.625 | DR24: 20.83333333 | DS24: 21.04166667 | DT24: 21.25 | DU24: 21.45833333 | DV24: 21.66666667 | DW24: 21.875 | DX24: 22.08333333 | DY24: 22.29166667 | DZ24: 22.5 | EA24: 22.70833333 | EB24: 22.91666667 | EC24: 23.125 | ED24: 23.33333333 | EE24: 23.54166667 | EF24: 23.75 | EG24: 23.95833333 | EH24: 24.16666667 | EI24: 24.375 | EJ24: 24.58333333 | EK24: 24.79166667 | EL24: 25 | EM24: 25.20833333 | EN24: 25.41666667 | EO24: 25.625 | EP24: 25.83333333 | EQ24: 26.04166667 | ER24: 26.25 | ES24: 26.45833333 | ET24: 26.66666667 | EU24: 26.875 | EV24: 27.08333333 | EW24: 27.29166667 | EX24: 27.5 | EY24: 27.70833333 | EZ24: 27.91666667 | FA24: 28.125 | FB24: 28.33333333 | FC24: 28.54166667 | FD24: 28.75 | FE24: 28.95833333 | FF24: 29.16666667 | FG24: 29.375 | FH24: 29.58333333 | FI24: 29.79166667 | FJ24: 30 | FK24: 30.20833333 | FL24: 30.41666667 | FM24: 30.625 | FN24: 30.83333333 | FO24: 31.04166667 | FP24: 31.25 | FQ24: 31.45833333 | FR24: 31.66666667 | FS24: 31.875 | FT24: 32.08333333 | FU24: 32.29166667 | FV24: 32.5 | FW24: 32.70833333 | FX24: 32.91666667 | FY24: 33.125 | FZ24: 33.33333333 | GA24: 33.54166667 | GB24: 33.75 | GC24: 33.95833333 | GD24: 34.16666667
B25: 16 | C25: 50.82 | D25: 2583 | E25: 2028 | F25: 4.016 | H25: 0.004016 | O25: DL-FLEX-HD-CV | P25: 6 | Q25: 24 | R25: 0.25 | S25: 14 | T25: 3.5 | U25: Constant Voltage | V25: 23.4 | W25: 0.25 | X25: 0.5 | Y25: 0.75 | Z25: 1 | AA25: 1.25 | AB25: 1.5 | AC25: 1.75 | AD25: 2 | AE25: 2.25 | AF25: 2.5 | AG25: 2.75 | AH25: 3 | AI25: 3.25 | AJ25: 3.5 | AK25: 3.75 | AL25: 4 | AM25: 4.25 | AN25: 4.5 | AO25: 4.75 | AP25: 5 | AQ25: 5.25 | AR25: 5.5 | AS25: 5.75 | AT25: 6 | AU25: 6.25 | AV25: 6.5 | AW25: 6.75 | AX25: 7 | AY25: 7.25 | AZ25: 7.5 | BA25: 7.75 | BB25: 8 | BC25: 8.25 | BD25: 8.5 | BE25: 8.75 | BF25: 9 | BG25: 9.25 | BH25: 9.5 | BI25: 9.75 | BJ25: 10 | BK25: 10.25 | BL25: 10.5 | BM25: 10.75 | BN25: 11 | BO25: 11.25 | BP25: 11.5 | BQ25: 11.75 | BR25: 12 | BS25: 12.25 | BT25: 12.5 | BU25: 12.75 | BV25: 13 | BW25: 13.25 | BX25: 13.5 | BY25: 13.75 | BZ25: 14 | CA25: 14.25 | CB25: 14.5 | CC25: 14.75 | CD25: 15 | CE25: 15.25 | CF25: 15.5 | CG25: 15.75 | CH25: 16 | CI25: 16.25 | CJ25: 16.5 | CK25: 16.75 | CL25: 17 | CM25: 17.25 | CN25: 17.5 | CO25: 17.75 | CP25: 18 | CQ25: 18.25 | CR25: 18.5 | CS25: 18.75 | CT25: 19 | CU25: 19.25 | CV25: 19.5 | CW25: 19.75 | CX25: 20 | CY25: 20.25 | CZ25: 20.5 | DA25: 20.75 | DB25: 21 | DC25: 21.25 | DD25: 21.5 | DE25: 21.75 | DF25: 22 | DG25: 22.25 | DH25: 22.5 | DI25: 22.75 | DJ25: 23 | DK25: 23.25 | DL25: 23.5 | DM25: 23.75 | DN25: 24 | DO25: 24.25 | DP25: 24.5 | DQ25: 24.75 | DR25: 25 | DS25: 25.25 | DT25: 25.5 | DU25: 25.75 | DV25: 26 | DW25: 26.25 | DX25: 26.5 | DY25: 26.75 | DZ25: 27 | EA25: 27.25 | EB25: 27.5 | EC25: 27.75 | ED25: 28 | EE25: 28.25 | EF25: 28.5 | EG25: 28.75 | EH25: 29 | EI25: 29.25 | EJ25: 29.5 | EK25: 29.75 | EL25: 30 | EM25: 30.25 | EN25: 30.5 | EO25: 30.75 | EP25: 31 | EQ25: 31.25 | ER25: 31.5 | ES25: 31.75 | ET25: 32 | EU25: 32.25 | EV25: 32.5 | EW25: 32.75 | EX25: 33 | EY25: 33.25 | EZ25: 33.5 | FA25: 33.75 | FB25: 34 | FC25: 34.25 | FD25: 34.5 | FE25: 34.75 | FF25: 35 | FG25: 35.25 | FH25: 35.5 | FI25: 35.75 | FJ25: 36 | FK25: 36.25 | FL25: 36.5 | FM25: 36.75 | FN25: 37 | FO25: 37.25 | FP25: 37.5 | FQ25: 37.75 | FR25: 38 | FS25: 38.25 | FT25: 38.5 | FU25: 38.75 | FV25: 39 | FW25: 39.25 | FX25: 39.5 | FY25: 39.75 | FZ25: 40 | GA25: 40.25 | GB25: 40.5 | GC25: 40.75 | GD25: 41
B26: 17 | C26: 45.26 | D26: 2048 | E26: 1609 | F26: 5.064 | H26: 0.005064 | O26: DL-FLEX2-SEL | P26: 2.9 | Q26: 24 | R26: 0.1208333333 | S26: 30 | T26: 3.625 | U26: Constant Voltage | V26: 23.4 | W26: 0.1208333333 | X26: 0.2416666667 | Y26: 0.3625 | Z26: 0.4833333333 | AA26: 0.6041666667 | AB26: 0.725 | AC26: 0.8458333333 | AD26: 0.9666666667 | AE26: 1.0875 | AF26: 1.208333333 | AG26: 1.329166667 | AH26: 1.45 | AI26: 1.570833333 | AJ26: 1.691666667 | AK26: 1.8125 | AL26: 1.933333333 | AM26: 2.054166667 | AN26: 2.175 | AO26: 2.295833333 | AP26: 2.416666667 | AQ26: 2.5375 | AR26: 2.658333333 | AS26: 2.779166667 | AT26: 2.9 | AU26: 3.020833333 | AV26: 3.141666667 | AW26: 3.2625 | AX26: 3.383333333 | AY26: 3.504166667 | AZ26: 3.625 | BA26: 3.745833333 | BB26: 3.866666667 | BC26: 3.9875 | BD26: 4.108333333 | BE26: 4.229166667 | BF26: 4.35 | BG26: 4.470833333 | BH26: 4.591666667 | BI26: 4.7125 | BJ26: 4.833333333 | BK26: 4.954166667 | BL26: 5.075 | BM26: 5.195833333 | BN26: 5.316666667 | BO26: 5.4375 | BP26: 5.558333333 | BQ26: 5.679166667 | BR26: 5.8 | BS26: 5.920833333 | BT26: 6.041666667 | BU26: 6.1625 | BV26: 6.283333333 | BW26: 6.404166667 | BX26: 6.525 | BY26: 6.645833333 | BZ26: 6.766666667 | CA26: 6.8875 | CB26: 7.008333333 | CC26: 7.129166667 | CD26: 7.25 | CE26: 7.370833333 | CF26: 7.491666667 | CG26: 7.6125 | CH26: 7.733333333 | CI26: 7.854166667 | CJ26: 7.975 | CK26: 8.095833333 | CL26: 8.216666667 | CM26: 8.3375 | CN26: 8.458333333 | CO26: 8.579166667 | CP26: 8.7 | CQ26: 8.820833333 | CR26: 8.941666667 | CS26: 9.0625 | CT26: 9.183333333 | CU26: 9.304166667 | CV26: 9.425 | CW26: 9.545833333 | CX26: 9.666666667 | CY26: 9.7875 | CZ26: 9.908333333 | DA26: 10.02916667 | DB26: 10.15 | DC26: 10.27083333 | DD26: 10.39166667 | DE26: 10.5125 | DF26: 10.63333333 | DG26: 10.75416667 | DH26: 10.875 | DI26: 10.99583333 | DJ26: 11.11666667 | DK26: 11.2375 | DL26: 11.35833333 | DM26: 11.47916667 | DN26: 11.6 | DO26: 11.72083333 | DP26: 11.84166667 | DQ26: 11.9625 | DR26: 12.08333333 | DS26: 12.20416667 | DT26: 12.325 | DU26: 12.44583333 | DV26: 12.56666667 | DW26: 12.6875 | DX26: 12.80833333 | DY26: 12.92916667 | DZ26: 13.05 | EA26: 13.17083333 | EB26: 13.29166667 | EC26: 13.4125 | ED26: 13.53333333 | EE26: 13.65416667 | EF26: 13.775 | EG26: 13.89583333 | EH26: 14.01666667 | EI26: 14.1375 | EJ26: 14.25833333 | EK26: 14.37916667 | EL26: 14.5 | EM26: 14.62083333 | EN26: 14.74166667 | EO26: 14.8625 | EP26: 14.98333333 | EQ26: 15.10416667 | ER26: 15.225 | ES26: 15.34583333 | ET26: 15.46666667 | EU26: 15.5875 | EV26: 15.70833333 | EW26: 15.82916667 | EX26: 15.95 | EY26: 16.07083333 | EZ26: 16.19166667 | FA26: 16.3125 | FB26: 16.43333333 | FC26: 16.55416667 | FD26: 16.675 | FE26: 16.79583333 | FF26: 16.91666667 | FG26: 17.0375 | FH26: 17.15833333 | FI26: 17.27916667 | FJ26: 17.4 | FK26: 17.52083333 | FL26: 17.64166667 | FM26: 17.7625 | FN26: 17.88333333 | FO26: 18.00416667 | FP26: 18.125 | FQ26: 18.24583333 | FR26: 18.36666667 | FS26: 18.4875 | FT26: 18.60833333 | FU26: 18.72916667 | FV26: 18.85 | FW26: 18.97083333 | FX26: 19.09166667 | FY26: 19.2125 | FZ26: 19.33333333 | GA26: 19.45416667 | GB26: 19.575 | GC26: 19.69583333 | GD26: 19.81666667
B27: 18 | C27: 40.3 | D27: 1624 | E27: 1276 | F27: 6.385 | H27: 0.006385 | O27: DL-FLEX2-DEL | P27: 3.7 | Q27: 24 | R27: 0.1541666667 | S27: 20 | T27: 3.083333333 | U27: Constant Voltage | V27: 23.4 | W27: 0.1541666667 | X27: 0.3083333333 | Y27: 0.4625 | Z27: 0.6166666667 | AA27: 0.7708333333 | AB27: 0.925 | AC27: 1.079166667 | AD27: 1.233333333 | AE27: 1.3875 | AF27: 1.541666667 | AG27: 1.695833333 | AH27: 1.85 | AI27: 2.004166667 | AJ27: 2.158333333 | AK27: 2.3125 | AL27: 2.466666667 | AM27: 2.620833333 | AN27: 2.775 | AO27: 2.929166667 | AP27: 3.083333333 | AQ27: 3.2375 | AR27: 3.391666667 | AS27: 3.545833333 | AT27: 3.7 | AU27: 3.854166667 | AV27: 4.008333333 | AW27: 4.1625 | AX27: 4.316666667 | AY27: 4.470833333 | AZ27: 4.625 | BA27: 4.779166667 | BB27: 4.933333333 | BC27: 5.0875 | BD27: 5.241666667 | BE27: 5.395833333 | BF27: 5.55 | BG27: 5.704166667 | BH27: 5.858333333 | BI27: 6.0125 | BJ27: 6.166666667 | BK27: 6.320833333 | BL27: 6.475 | BM27: 6.629166667 | BN27: 6.783333333 | BO27: 6.9375 | BP27: 7.091666667 | BQ27: 7.245833333 | BR27: 7.4 | BS27: 7.554166667 | BT27: 7.708333333 | BU27: 7.8625 | BV27: 8.016666667 | BW27: 8.170833333 | BX27: 8.325 | BY27: 8.479166667 | BZ27: 8.633333333 | CA27: 8.7875 | CB27: 8.941666667 | CC27: 9.095833333 | CD27: 9.25 | CE27: 9.404166667 | CF27: 9.558333333 | CG27: 9.7125 | CH27: 9.866666667 | CI27: 10.02083333 | CJ27: 10.175 | CK27: 10.32916667 | CL27: 10.48333333 | CM27: 10.6375 | CN27: 10.79166667 | CO27: 10.94583333 | CP27: 11.1 | CQ27: 11.25416667 | CR27: 11.40833333 | CS27: 11.5625 | CT27: 11.71666667 | CU27: 11.87083333 | CV27: 12.025 | CW27: 12.17916667 | CX27: 12.33333333 | CY27: 12.4875 | CZ27: 12.64166667 | DA27: 12.79583333 | DB27: 12.95 | DC27: 13.10416667 | DD27: 13.25833333 | DE27: 13.4125 | DF27: 13.56666667 | DG27: 13.72083333 | DH27: 13.875 | DI27: 14.02916667 | DJ27: 14.18333333 | DK27: 14.3375 | DL27: 14.49166667 | DM27: 14.64583333 | DN27: 14.8 | DO27: 14.95416667 | DP27: 15.10833333 | DQ27: 15.2625 | DR27: 15.41666667 | DS27: 15.57083333 | DT27: 15.725 | DU27: 15.87916667 | DV27: 16.03333333 | DW27: 16.1875 | DX27: 16.34166667 | DY27: 16.49583333 | DZ27: 16.65 | EA27: 16.80416667 | EB27: 16.95833333 | EC27: 17.1125 | ED27: 17.26666667 | EE27: 17.42083333 | EF27: 17.575 | EG27: 17.72916667 | EH27: 17.88333333 | EI27: 18.0375 | EJ27: 18.19166667 | EK27: 18.34583333 | EL27: 18.5 | EM27: 18.65416667 | EN27: 18.80833333 | EO27: 18.9625 | EP27: 19.11666667 | EQ27: 19.27083333 | ER27: 19.425 | ES27: 19.57916667 | ET27: 19.73333333 | EU27: 19.8875 | EV27: 20.04166667 | EW27: 20.19583333 | EX27: 20.35 | EY27: 20.50416667 | EZ27: 20.65833333 | FA27: 20.8125 | FB27: 20.96666667 | FC27: 21.12083333 | FD27: 21.275 | FE27: 21.42916667 | FF27: 21.58333333 | FG27: 21.7375 | FH27: 21.89166667 | FI27: 22.04583333 | FJ27: 22.2 | FK27: 22.35416667 | FL27: 22.50833333 | FM27: 22.6625 | FN27: 22.81666667 | FO27: 22.97083333 | FP27: 23.125 | FQ27: 23.27916667 | FR27: 23.43333333 | FS27: 23.5875 | FT27: 23.74166667 | FU27: 23.89583333 | FV27: 24.05 | FW27: 24.20416667 | FX27: 24.35833333 | FY27: 24.5125 | FZ27: 24.66666667 | GA27: 24.82083333 | GB27: 24.975 | GC27: 25.12916667 | GD27: 25.28333333
B28: 19 | C28: 35.89 | D28: 1288 | E28: 1012 | F28: 8.051 | H28: 0.008051 | O28: DL-FLEX2-FS | P28: 4.4 | Q28: 24 | R28: 0.1833333333 | S28: 20 | T28: 3.666666667 | U28: Constant Voltage | V28: 23.4 | W28: 0.1833333333 | X28: 0.3666666667 | Y28: 0.55 | Z28: 0.7333333333 | AA28: 0.9166666667 | AB28: 1.1 | AC28: 1.283333333 | AD28: 1.466666667 | AE28: 1.65 | AF28: 1.833333333 | AG28: 2.016666667 | AH28: 2.2 | AI28: 2.383333333 | AJ28: 2.566666667 | AK28: 2.75 | AL28: 2.933333333 | AM28: 3.116666667 | AN28: 3.3 | AO28: 3.483333333 | AP28: 3.666666667 | AQ28: 3.85 | AR28: 4.033333333 | AS28: 4.216666667 | AT28: 4.4 | AU28: 4.583333333 | AV28: 4.766666667 | AW28: 4.95 | AX28: 5.133333333 | AY28: 5.316666667 | AZ28: 5.5 | BA28: 5.683333333 | BB28: 5.866666667 | BC28: 6.05 | BD28: 6.233333333 | BE28: 6.416666667 | BF28: 6.6 | BG28: 6.783333333 | BH28: 6.966666667 | BI28: 7.15 | BJ28: 7.333333333 | BK28: 7.516666667 | BL28: 7.7 | BM28: 7.883333333 | BN28: 8.066666667 | BO28: 8.25 | BP28: 8.433333333 | BQ28: 8.616666667 | BR28: 8.8 | BS28: 8.983333333 | BT28: 9.166666667 | BU28: 9.35 | BV28: 9.533333333 | BW28: 9.716666667 | BX28: 9.9 | BY28: 10.08333333 | BZ28: 10.26666667 | CA28: 10.45 | CB28: 10.63333333 | CC28: 10.81666667 | CD28: 11 | CE28: 11.18333333 | CF28: 11.36666667 | CG28: 11.55 | CH28: 11.73333333 | CI28: 11.91666667 | CJ28: 12.1 | CK28: 12.28333333 | CL28: 12.46666667 | CM28: 12.65 | CN28: 12.83333333 | CO28: 13.01666667 | CP28: 13.2 | CQ28: 13.38333333 | CR28: 13.56666667 | CS28: 13.75 | CT28: 13.93333333 | CU28: 14.11666667 | CV28: 14.3 | CW28: 14.48333333 | CX28: 14.66666667 | CY28: 14.85 | CZ28: 15.03333333 | DA28: 15.21666667 | DB28: 15.4 | DC28: 15.58333333 | DD28: 15.76666667 | DE28: 15.95 | DF28: 16.13333333 | DG28: 16.31666667 | DH28: 16.5 | DI28: 16.68333333 | DJ28: 16.86666667 | DK28: 17.05 | DL28: 17.23333333 | DM28: 17.41666667 | DN28: 17.6 | DO28: 17.78333333 | DP28: 17.96666667 | DQ28: 18.15 | DR28: 18.33333333 | DS28: 18.51666667 | DT28: 18.7 | DU28: 18.88333333 | DV28: 19.06666667 | DW28: 19.25 | DX28: 19.43333333 | DY28: 19.61666667 | DZ28: 19.8 | EA28: 19.98333333 | EB28: 20.16666667 | EC28: 20.35 | ED28: 20.53333333 | EE28: 20.71666667 | EF28: 20.9 | EG28: 21.08333333 | EH28: 21.26666667 | EI28: 21.45 | EJ28: 21.63333333 | EK28: 21.81666667 | EL28: 22 | EM28: 22.18333333 | EN28: 22.36666667 | EO28: 22.55 | EP28: 22.73333333 | EQ28: 22.91666667 | ER28: 23.1 | ES28: 23.28333333 | ET28: 23.46666667 | EU28: 23.65 | EV28: 23.83333333 | EW28: 24.01666667 | EX28: 24.2 | EY28: 24.38333333 | EZ28: 24.56666667 | FA28: 24.75 | FB28: 24.93333333 | FC28: 25.11666667 | FD28: 25.3 | FE28: 25.48333333 | FF28: 25.66666667 | FG28: 25.85 | FH28: 26.03333333 | FI28: 26.21666667 | FJ28: 26.4 | FK28: 26.58333333 | FL28: 26.76666667 | FM28: 26.95 | FN28: 27.13333333 | FO28: 27.31666667 | FP28: 27.5 | FQ28: 27.68333333 | FR28: 27.86666667 | FS28: 28.05 | FT28: 28.23333333 | FU28: 28.41666667 | FV28: 28.6 | FW28: 28.78333333 | FX28: 28.96666667 | FY28: 29.15 | FZ28: 29.33333333 | GA28: 29.51666667 | GB28: 29.7 | GC28: 29.88333333 | GD28: 30.06666667
B29: 20 | C29: 31.96 | D29: 1022 | E29: 802.3 | F29: 10.15 | H29: 0.01015 | O29: DL-FLEX2-LNSB | P29: 2.8 | Q29: 24 | R29: 0.1166666667 | S29: 30 | T29: 3.5 | U29: Constant Current | V29: 23.4 | W29: 0.1166666667 | X29: 0.2333333333 | Y29: 0.35 | Z29: 0.4666666667 | AA29: 0.5833333333 | AB29: 0.7 | AC29: 0.8166666667 | AD29: 0.9333333333 | AE29: 1.05 | AF29: 1.166666667 | AG29: 1.283333333 | AH29: 1.4 | AI29: 1.516666667 | AJ29: 1.633333333 | AK29: 1.75 | AL29: 1.866666667 | AM29: 1.983333333 | AN29: 2.1 | AO29: 2.216666667 | AP29: 2.333333333 | AQ29: 2.45 | AR29: 2.566666667 | AS29: 2.683333333 | AT29: 2.8 | AU29: 2.916666667 | AV29: 3.033333333 | AW29: 3.15 | AX29: 3.266666667 | AY29: 3.383333333 | AZ29: 3.5 | BA29: 3.616666667 | BB29: 3.733333333 | BC29: 3.85 | BD29: 3.966666667 | BE29: 4.083333333 | BF29: 4.2 | BG29: 4.316666667 | BH29: 4.433333333 | BI29: 4.55 | BJ29: 4.666666667 | BK29: 4.783333333 | BL29: 4.9 | BM29: 5.016666667 | BN29: 5.133333333 | BO29: 5.25 | BP29: 5.366666667 | BQ29: 5.483333333 | BR29: 5.6 | BS29: 5.716666667 | BT29: 5.833333333 | BU29: 5.95 | BV29: 6.066666667 | BW29: 6.183333333 | BX29: 6.3 | BY29: 6.416666667 | BZ29: 6.533333333 | CA29: 6.65 | CB29: 6.766666667 | CC29: 6.883333333 | CD29: 7 | CE29: 7.116666667 | CF29: 7.233333333 | CG29: 7.35 | CH29: 7.466666667 | CI29: 7.583333333 | CJ29: 7.7 | CK29: 7.816666667 | CL29: 7.933333333 | CM29: 8.05 | CN29: 8.166666667 | CO29: 8.283333333 | CP29: 8.4 | CQ29: 8.516666667 | CR29: 8.633333333 | CS29: 8.75 | CT29: 8.866666667 | CU29: 8.983333333 | CV29: 9.1 | CW29: 9.216666667 | CX29: 9.333333333 | CY29: 9.45 | CZ29: 9.566666667 | DA29: 9.683333333 | DB29: 9.8 | DC29: 9.916666667 | DD29: 10.03333333 | DE29: 10.15 | DF29: 10.26666667 | DG29: 10.38333333 | DH29: 10.5 | DI29: 10.61666667 | DJ29: 10.73333333 | DK29: 10.85 | DL29: 10.96666667 | DM29: 11.08333333 | DN29: 11.2 | DO29: 11.31666667 | DP29: 11.43333333 | DQ29: 11.55 | DR29: 11.66666667 | DS29: 11.78333333 | DT29: 11.9 | DU29: 12.01666667 | DV29: 12.13333333 | DW29: 12.25 | DX29: 12.36666667 | DY29: 12.48333333 | DZ29: 12.6 | EA29: 12.71666667 | EB29: 12.83333333 | EC29: 12.95 | ED29: 13.06666667 | EE29: 13.18333333 | EF29: 13.3 | EG29: 13.41666667 | EH29: 13.53333333 | EI29: 13.65 | EJ29: 13.76666667 | EK29: 13.88333333 | EL29: 14 | EM29: 14.11666667 | EN29: 14.23333333 | EO29: 14.35 | EP29: 14.46666667 | EQ29: 14.58333333 | ER29: 14.7 | ES29: 14.81666667 | ET29: 14.93333333 | EU29: 15.05 | EV29: 15.16666667 | EW29: 15.28333333 | EX29: 15.4 | EY29: 15.51666667 | EZ29: 15.63333333 | FA29: 15.75 | FB29: 15.86666667 | FC29: 15.98333333 | FD29: 16.1 | FE29: 16.21666667 | FF29: 16.33333333 | FG29: 16.45 | FH29: 16.56666667 | FI29: 16.68333333 | FJ29: 16.8 | FK29: 16.91666667 | FL29: 17.03333333 | FM29: 17.15 | FN29: 17.26666667 | FO29: 17.38333333 | FP29: 17.5 | FQ29: 17.61666667 | FR29: 17.73333333 | FS29: 17.85 | FT29: 17.96666667 | FU29: 18.08333333 | FV29: 18.2 | FW29: 18.31666667 | FX29: 18.43333333 | FY29: 18.55 | FZ29: 18.66666667 | GA29: 18.78333333 | GB29: 18.9 | GC29: 19.01666667 | GD29: 19.13333333
B30: 21 | C30: 28.46 | D30: 810.1 | E30: 636.3 | F30: 12.8 | H30: 0.0128 | O30: DL-FLEX2-LNTB | P30: 2.8 | Q30: 24 | R30: 0.1166666667 | S30: 30 | T30: 3.5 | U30: Constant Current | V30: 23.4 | W30: 0.1166666667 | X30: 0.2333333333 | Y30: 0.35 | Z30: 0.4666666667 | AA30: 0.5833333333 | AB30: 0.7 | AC30: 0.8166666667 | AD30: 0.9333333333 | AE30: 1.05 | AF30: 1.166666667 | AG30: 1.283333333 | AH30: 1.4 | AI30: 1.516666667 | AJ30: 1.633333333 | AK30: 1.75 | AL30: 1.866666667 | AM30: 1.983333333 | AN30: 2.1 | AO30: 2.216666667 | AP30: 2.333333333 | AQ30: 2.45 | AR30: 2.566666667 | AS30: 2.683333333 | AT30: 2.8 | AU30: 2.916666667 | AV30: 3.033333333 | AW30: 3.15 | AX30: 3.266666667 | AY30: 3.383333333 | AZ30: 3.5 | BA30: 3.616666667 | BB30: 3.733333333 | BC30: 3.85 | BD30: 3.966666667 | BE30: 4.083333333 | BF30: 4.2 | BG30: 4.316666667 | BH30: 4.433333333 | BI30: 4.55 | BJ30: 4.666666667 | BK30: 4.783333333 | BL30: 4.9 | BM30: 5.016666667 | BN30: 5.133333333 | BO30: 5.25 | BP30: 5.366666667 | BQ30: 5.483333333 | BR30: 5.6 | BS30: 5.716666667 | BT30: 5.833333333 | BU30: 5.95 | BV30: 6.066666667 | BW30: 6.183333333 | BX30: 6.3 | BY30: 6.416666667 | BZ30: 6.533333333 | CA30: 6.65 | CB30: 6.766666667 | CC30: 6.883333333 | CD30: 7 | CE30: 7.116666667 | CF30: 7.233333333 | CG30: 7.35 | CH30: 7.466666667 | CI30: 7.583333333 | CJ30: 7.7 | CK30: 7.816666667 | CL30: 7.933333333 | CM30: 8.05 | CN30: 8.166666667 | CO30: 8.283333333 | CP30: 8.4 | CQ30: 8.516666667 | CR30: 8.633333333 | CS30: 8.75 | CT30: 8.866666667 | CU30: 8.983333333 | CV30: 9.1 | CW30: 9.216666667 | CX30: 9.333333333 | CY30: 9.45 | CZ30: 9.566666667 | DA30: 9.683333333 | DB30: 9.8 | DC30: 9.916666667 | DD30: 10.03333333 | DE30: 10.15 | DF30: 10.26666667 | DG30: 10.38333333 | DH30: 10.5 | DI30: 10.61666667 | DJ30: 10.73333333 | DK30: 10.85 | DL30: 10.96666667 | DM30: 11.08333333 | DN30: 11.2 | DO30: 11.31666667 | DP30: 11.43333333 | DQ30: 11.55 | DR30: 11.66666667 | DS30: 11.78333333 | DT30: 11.9 | DU30: 12.01666667 | DV30: 12.13333333 | DW30: 12.25 | DX30: 12.36666667 | DY30: 12.48333333 | DZ30: 12.6 | EA30: 12.71666667 | EB30: 12.83333333 | EC30: 12.95 | ED30: 13.06666667 | EE30: 13.18333333 | EF30: 13.3 | EG30: 13.41666667 | EH30: 13.53333333 | EI30: 13.65 | EJ30: 13.76666667 | EK30: 13.88333333 | EL30: 14 | EM30: 14.11666667 | EN30: 14.23333333 | EO30: 14.35 | EP30: 14.46666667 | EQ30: 14.58333333 | ER30: 14.7 | ES30: 14.81666667 | ET30: 14.93333333 | EU30: 15.05 | EV30: 15.16666667 | EW30: 15.28333333 | EX30: 15.4 | EY30: 15.51666667 | EZ30: 15.63333333 | FA30: 15.75 | FB30: 15.86666667 | FC30: 15.98333333 | FD30: 16.1 | FE30: 16.21666667 | FF30: 16.33333333 | FG30: 16.45 | FH30: 16.56666667 | FI30: 16.68333333 | FJ30: 16.8 | FK30: 16.91666667 | FL30: 17.03333333 | FM30: 17.15 | FN30: 17.26666667 | FO30: 17.38333333 | FP30: 17.5 | FQ30: 17.61666667 | FR30: 17.73333333 | FS30: 17.85 | FT30: 17.96666667 | FU30: 18.08333333 | FV30: 18.2 | FW30: 18.31666667 | FX30: 18.43333333 | FY30: 18.55 | FZ30: 18.66666667 | GA30: 18.78333333 | GB30: 18.9 | GC30: 19.01666667 | GD30: 19.13333333
B31: 22 | C31: 25.35 | D31: 642.4 | E31: 504.6 | F31: 16.14 | H31: 0.01614 | O31: DL-FLEX2-LNDB | P31: 4.3 | Q31: 24 | R31: 0.1791666667 | S31: 16 | T31: 2.866666667 | U31: Constant Voltage | V31: 23.4 | W31: 0.1791666667 | X31: 0.3583333333 | Y31: 0.5375 | Z31: 0.7166666667 | AA31: 0.8958333333 | AB31: 1.075 | AC31: 1.254166667 | AD31: 1.433333333 | AE31: 1.6125 | AF31: 1.791666667 | AG31: 1.970833333 | AH31: 2.15 | AI31: 2.329166667 | AJ31: 2.508333333 | AK31: 2.6875 | AL31: 2.866666667 | AM31: 3.045833333 | AN31: 3.225 | AO31: 3.404166667 | AP31: 3.583333333 | AQ31: 3.7625 | AR31: 3.941666667 | AS31: 4.120833333 | AT31: 4.3 | AU31: 4.479166667 | AV31: 4.658333333 | AW31: 4.8375 | AX31: 5.016666667 | AY31: 5.195833333 | AZ31: 5.375 | BA31: 5.554166667 | BB31: 5.733333333 | BC31: 5.9125 | BD31: 6.091666667 | BE31: 6.270833333 | BF31: 6.45 | BG31: 6.629166667 | BH31: 6.808333333 | BI31: 6.9875 | BJ31: 7.166666667 | BK31: 7.345833333 | BL31: 7.525 | BM31: 7.704166667 | BN31: 7.883333333 | BO31: 8.0625 | BP31: 8.241666667 | BQ31: 8.420833333 | BR31: 8.6 | BS31: 8.779166667 | BT31: 8.958333333 | BU31: 9.1375 | BV31: 9.316666667 | BW31: 9.495833333 | BX31: 9.675 | BY31: 9.854166667 | BZ31: 10.03333333 | CA31: 10.2125 | CB31: 10.39166667 | CC31: 10.57083333 | CD31: 10.75 | CE31: 10.92916667 | CF31: 11.10833333 | CG31: 11.2875 | CH31: 11.46666667 | CI31: 11.64583333 | CJ31: 11.825 | CK31: 12.00416667 | CL31: 12.18333333 | CM31: 12.3625 | CN31: 12.54166667 | CO31: 12.72083333 | CP31: 12.9 | CQ31: 13.07916667 | CR31: 13.25833333 | CS31: 13.4375 | CT31: 13.61666667 | CU31: 13.79583333 | CV31: 13.975 | CW31: 14.15416667 | CX31: 14.33333333 | CY31: 14.5125 | CZ31: 14.69166667 | DA31: 14.87083333 | DB31: 15.05 | DC31: 15.22916667 | DD31: 15.40833333 | DE31: 15.5875 | DF31: 15.76666667 | DG31: 15.94583333 | DH31: 16.125 | DI31: 16.30416667 | DJ31: 16.48333333 | DK31: 16.6625 | DL31: 16.84166667 | DM31: 17.02083333 | DN31: 17.2 | DO31: 17.37916667 | DP31: 17.55833333 | DQ31: 17.7375 | DR31: 17.91666667 | DS31: 18.09583333 | DT31: 18.275 | DU31: 18.45416667 | DV31: 18.63333333 | DW31: 18.8125 | DX31: 18.99166667 | DY31: 19.17083333 | DZ31: 19.35 | EA31: 19.52916667 | EB31: 19.70833333 | EC31: 19.8875 | ED31: 20.06666667 | EE31: 20.24583333 | EF31: 20.425 | EG31: 20.60416667 | EH31: 20.78333333 | EI31: 20.9625 | EJ31: 21.14166667 | EK31: 21.32083333 | EL31: 21.5 | EM31: 21.67916667 | EN31: 21.85833333 | EO31: 22.0375 | EP31: 22.21666667 | EQ31: 22.39583333 | ER31: 22.575 | ES31: 22.75416667 | ET31: 22.93333333 | EU31: 23.1125 | EV31: 23.29166667 | EW31: 23.47083333 | EX31: 23.65 | EY31: 23.82916667 | EZ31: 24.00833333 | FA31: 24.1875 | FB31: 24.36666667 | FC31: 24.54583333 | FD31: 24.725 | FE31: 24.90416667 | FF31: 25.08333333 | FG31: 25.2625 | FH31: 25.44166667 | FI31: 25.62083333 | FJ31: 25.8 | FK31: 25.97916667 | FL31: 26.15833333 | FM31: 26.3375 | FN31: 26.51666667 | FO31: 26.69583333 | FP31: 26.875 | FQ31: 27.05416667 | FR31: 27.23333333 | FS31: 27.4125 | FT31: 27.59166667 | FU31: 27.77083333 | FV31: 27.95 | FW31: 28.12916667 | FX31: 28.30833333 | FY31: 28.4875 | FZ31: 28.66666667 | GA31: 28.84583333 | GB31: 29.025 | GC31: 29.20416667 | GD31: 29.38333333
B32: 23 | C32: 22.57 | D32: 509.5 | E32: 400.2 | F32: 20.36 | H32: 0.02036 | O32: DL-FLEX2-DTW | P32: 5.3 | Q32: 24 | R32: 0.2208333333 | S32: 16 | T32: 3.533333333 | U32: Constant Voltage | V32: 23.4 | W32: 0.2208333333 | X32: 0.4416666667 | Y32: 0.6625 | Z32: 0.8833333333 | AA32: 1.104166667 | AB32: 1.325 | AC32: 1.545833333 | AD32: 1.766666667 | AE32: 1.9875 | AF32: 2.208333333 | AG32: 2.429166667 | AH32: 2.65 | AI32: 2.870833333 | AJ32: 3.091666667 | AK32: 3.3125 | AL32: 3.533333333 | AM32: 3.754166667 | AN32: 3.975 | AO32: 4.195833333 | AP32: 4.416666667 | AQ32: 4.6375 | AR32: 4.858333333 | AS32: 5.079166667 | AT32: 5.3 | AU32: 5.520833333 | AV32: 5.741666667 | AW32: 5.9625 | AX32: 6.183333333 | AY32: 6.404166667 | AZ32: 6.625 | BA32: 6.845833333 | BB32: 7.066666667 | BC32: 7.2875 | BD32: 7.508333333 | BE32: 7.729166667 | BF32: 7.95 | BG32: 8.170833333 | BH32: 8.391666667 | BI32: 8.6125 | BJ32: 8.833333333 | BK32: 9.054166667 | BL32: 9.275 | BM32: 9.495833333 | BN32: 9.716666667 | BO32: 9.9375 | BP32: 10.15833333 | BQ32: 10.37916667 | BR32: 10.6 | BS32: 10.82083333 | BT32: 11.04166667 | BU32: 11.2625 | BV32: 11.48333333 | BW32: 11.70416667 | BX32: 11.925 | BY32: 12.14583333 | BZ32: 12.36666667 | CA32: 12.5875 | CB32: 12.80833333 | CC32: 13.02916667 | CD32: 13.25 | CE32: 13.47083333 | CF32: 13.69166667 | CG32: 13.9125 | CH32: 14.13333333 | CI32: 14.35416667 | CJ32: 14.575 | CK32: 14.79583333 | CL32: 15.01666667 | CM32: 15.2375 | CN32: 15.45833333 | CO32: 15.67916667 | CP32: 15.9 | CQ32: 16.12083333 | CR32: 16.34166667 | CS32: 16.5625 | CT32: 16.78333333 | CU32: 17.00416667 | CV32: 17.225 | CW32: 17.44583333 | CX32: 17.66666667 | CY32: 17.8875 | CZ32: 18.10833333 | DA32: 18.32916667 | DB32: 18.55 | DC32: 18.77083333 | DD32: 18.99166667 | DE32: 19.2125 | DF32: 19.43333333 | DG32: 19.65416667 | DH32: 19.875 | DI32: 20.09583333 | DJ32: 20.31666667 | DK32: 20.5375 | DL32: 20.75833333 | DM32: 20.97916667 | DN32: 21.2 | DO32: 21.42083333 | DP32: 21.64166667 | DQ32: 21.8625 | DR32: 22.08333333 | DS32: 22.30416667 | DT32: 22.525 | DU32: 22.74583333 | DV32: 22.96666667 | DW32: 23.1875 | DX32: 23.40833333 | DY32: 23.62916667 | DZ32: 23.85 | EA32: 24.07083333 | EB32: 24.29166667 | EC32: 24.5125 | ED32: 24.73333333 | EE32: 24.95416667 | EF32: 25.175 | EG32: 25.39583333 | EH32: 25.61666667 | EI32: 25.8375 | EJ32: 26.05833333 | EK32: 26.27916667 | EL32: 26.5 | EM32: 26.72083333 | EN32: 26.94166667 | EO32: 27.1625 | EP32: 27.38333333 | EQ32: 27.60416667 | ER32: 27.825 | ES32: 28.04583333 | ET32: 28.26666667 | EU32: 28.4875 | EV32: 28.70833333 | EW32: 28.92916667 | EX32: 29.15 | EY32: 29.37083333 | EZ32: 29.59166667 | FA32: 29.8125 | FB32: 30.03333333 | FC32: 30.25416667 | FD32: 30.475 | FE32: 30.69583333 | FF32: 30.91666667 | FG32: 31.1375 | FH32: 31.35833333 | FI32: 31.57916667 | FJ32: 31.8 | FK32: 32.02083333 | FL32: 32.24166667 | FM32: 32.4625 | FN32: 32.68333333 | FO32: 32.90416667 | FP32: 33.125 | FQ32: 33.34583333 | FR32: 33.56666667 | FS32: 33.7875 | FT32: 34.00833333 | FU32: 34.22916667 | FV32: 34.45 | FW32: 34.67083333 | FX32: 34.89166667 | FY32: 35.1125 | FZ32: 35.33333333 | GA32: 35.55416667 | GB32: 35.775 | GC32: 35.99583333 | GD32: 36.21666667
B33: 24 | C33: 20.1 | D33: 404 | E33: 317.3 | F33: 25.67 | H33: 0.02567 | L33: EXT48 | M33: 20 | O33: DL-FLEX2-CTA | P33: 2.4 | Q33: 24 | R33: 0.1 | S33: 30 | T33: 3 | U33: Constant Voltage | V33: 23.4 | W33: 0.1 | X33: 0.2 | Y33: 0.3 | Z33: 0.4 | AA33: 0.5 | AB33: 0.6 | AC33: 0.7 | AD33: 0.8 | AE33: 0.9 | AF33: 1 | AG33: 1.1 | AH33: 1.2 | AI33: 1.3 | AJ33: 1.4 | AK33: 1.5 | AL33: 1.6 | AM33: 1.7 | AN33: 1.8 | AO33: 1.9 | AP33: 2 | AQ33: 2.1 | AR33: 2.2 | AS33: 2.3 | AT33: 2.4 | AU33: 2.5 | AV33: 2.6 | AW33: 2.7 | AX33: 2.8 | AY33: 2.9 | AZ33: 3 | BA33: 3.1 | BB33: 3.2 | BC33: 3.3 | BD33: 3.4 | BE33: 3.5 | BF33: 3.6 | BG33: 3.7 | BH33: 3.8 | BI33: 3.9 | BJ33: 4 | BK33: 4.1 | BL33: 4.2 | BM33: 4.3 | BN33: 4.4 | BO33: 4.5 | BP33: 4.6 | BQ33: 4.7 | BR33: 4.8 | BS33: 4.9 | BT33: 5 | BU33: 5.1 | BV33: 5.2 | BW33: 5.3 | BX33: 5.4 | BY33: 5.5 | BZ33: 5.6 | CA33: 5.7 | CB33: 5.8 | CC33: 5.9 | CD33: 6 | CE33: 6.1 | CF33: 6.2 | CG33: 6.3 | CH33: 6.4 | CI33: 6.5 | CJ33: 6.6 | CK33: 6.7 | CL33: 6.8 | CM33: 6.9 | CN33: 7 | CO33: 7.1 | CP33: 7.2 | CQ33: 7.3 | CR33: 7.4 | CS33: 7.5 | CT33: 7.6 | CU33: 7.7 | CV33: 7.8 | CW33: 7.9 | CX33: 8 | CY33: 8.1 | CZ33: 8.2 | DA33: 8.3 | DB33: 8.4 | DC33: 8.5 | DD33: 8.6 | DE33: 8.7 | DF33: 8.8 | DG33: 8.9 | DH33: 9 | DI33: 9.1 | DJ33: 9.2 | DK33: 9.3 | DL33: 9.4 | DM33: 9.5 | DN33: 9.6 | DO33: 9.7 | DP33: 9.8 | DQ33: 9.9 | DR33: 10 | DS33: 10.1 | DT33: 10.2 | DU33: 10.3 | DV33: 10.4 | DW33: 10.5 | DX33: 10.6 | DY33: 10.7 | DZ33: 10.8 | EA33: 10.9 | EB33: 11 | EC33: 11.1 | ED33: 11.2 | EE33: 11.3 | EF33: 11.4 | EG33: 11.5 | EH33: 11.6 | EI33: 11.7 | EJ33: 11.8 | EK33: 11.9 | EL33: 12 | EM33: 12.1 | EN33: 12.2 | EO33: 12.3 | EP33: 12.4 | EQ33: 12.5 | ER33: 12.6 | ES33: 12.7 | ET33: 12.8 | EU33: 12.9 | EV33: 13 | EW33: 13.1 | EX33: 13.2 | EY33: 13.3 | EZ33: 13.4 | FA33: 13.5 | FB33: 13.6 | FC33: 13.7 | FD33: 13.8 | FE33: 13.9 | FF33: 14 | FG33: 14.1 | FH33: 14.2 | FI33: 14.3 | FJ33: 14.4 | FK33: 14.5 | FL33: 14.6 | FM33: 14.7 | FN33: 14.8 | FO33: 14.9 | FP33: 15 | FQ33: 15.1 | FR33: 15.2 | FS33: 15.3 | FT33: 15.4 | FU33: 15.5 | FV33: 15.6 | FW33: 15.7 | FX33: 15.8 | FY33: 15.9 | FZ33: 16 | GA33: 16.1 | GB33: 16.2 | GC33: 16.3 | GD33: 16.4
B34: 25 | C34: 17.9 | D34: 320.4 | E34: 251.7 | F34: 32.37 | H34: 0.03237 | L34: EXT96 | M34: 20 | O34: DL-FLEX-RGB-HD | P34: 3.8 | Q34: 24 | R34: 0.1583333333 | S34: 20 | T34: 3.166666667 | U34: Constant Voltage | V34: 23.4 | W34: 0.1583333333 | X34: 0.3166666667 | Y34: 0.475 | Z34: 0.6333333333 | AA34: 0.7916666667 | AB34: 0.95 | AC34: 1.108333333 | AD34: 1.266666667 | AE34: 1.425 | AF34: 1.583333333 | AG34: 1.741666667 | AH34: 1.9 | AI34: 2.058333333 | AJ34: 2.216666667 | AK34: 2.375 | AL34: 2.533333333 | AM34: 2.691666667 | AN34: 2.85 | AO34: 3.008333333 | AP34: 3.166666667 | AQ34: 3.325 | AR34: 3.483333333 | AS34: 3.641666667 | AT34: 3.8 | AU34: 3.958333333 | AV34: 4.116666667 | AW34: 4.275 | AX34: 4.433333333 | AY34: 4.591666667 | AZ34: 4.75 | BA34: 4.908333333 | BB34: 5.066666667 | BC34: 5.225 | BD34: 5.383333333 | BE34: 5.541666667 | BF34: 5.7 | BG34: 5.858333333 | BH34: 6.016666667 | BI34: 6.175 | BJ34: 6.333333333 | BK34: 6.491666667 | BL34: 6.65 | BM34: 6.808333333 | BN34: 6.966666667 | BO34: 7.125 | BP34: 7.283333333 | BQ34: 7.441666667 | BR34: 7.6 | BS34: 7.758333333 | BT34: 7.916666667 | BU34: 8.075 | BV34: 8.233333333 | BW34: 8.391666667 | BX34: 8.55 | BY34: 8.708333333 | BZ34: 8.866666667 | CA34: 9.025 | CB34: 9.183333333 | CC34: 9.341666667 | CD34: 9.5 | CE34: 9.658333333 | CF34: 9.816666667 | CG34: 9.975 | CH34: 10.13333333 | CI34: 10.29166667 | CJ34: 10.45 | CK34: 10.60833333 | CL34: 10.76666667 | CM34: 10.925 | CN34: 11.08333333 | CO34: 11.24166667 | CP34: 11.4 | CQ34: 11.55833333 | CR34: 11.71666667 | CS34: 11.875 | CT34: 12.03333333 | CU34: 12.19166667 | CV34: 12.35 | CW34: 12.50833333 | CX34: 12.66666667 | CY34: 12.825 | CZ34: 12.98333333 | DA34: 13.14166667 | DB34: 13.3 | DC34: 13.45833333 | DD34: 13.61666667 | DE34: 13.775 | DF34: 13.93333333 | DG34: 14.09166667 | DH34: 14.25 | DI34: 14.40833333 | DJ34: 14.56666667 | DK34: 14.725 | DL34: 14.88333333 | DM34: 15.04166667 | DN34: 15.2 | DO34: 15.35833333 | DP34: 15.51666667 | DQ34: 15.675 | DR34: 15.83333333 | DS34: 15.99166667 | DT34: 16.15 | DU34: 16.30833333 | DV34: 16.46666667 | DW34: 16.625 | DX34: 16.78333333 | DY34: 16.94166667 | DZ34: 17.1 | EA34: 17.25833333 | EB34: 17.41666667 | EC34: 17.575 | ED34: 17.73333333 | EE34: 17.89166667 | EF34: 18.05 | EG34: 18.20833333 | EH34: 18.36666667 | EI34: 18.525 | EJ34: 18.68333333 | EK34: 18.84166667 | EL34: 19 | EM34: 19.15833333 | EN34: 19.31666667 | EO34: 19.475 | EP34: 19.63333333 | EQ34: 19.79166667 | ER34: 19.95 | ES34: 20.10833333 | ET34: 20.26666667 | EU34: 20.425 | EV34: 20.58333333 | EW34: 20.74166667 | EX34: 20.9 | EY34: 21.05833333 | EZ34: 21.21666667 | FA34: 21.375 | FB34: 21.53333333 | FC34: 21.69166667 | FD34: 21.85 | FE34: 22.00833333 | FF34: 22.16666667 | FG34: 22.325 | FH34: 22.48333333 | FI34: 22.64166667 | FJ34: 22.8 | FK34: 22.95833333 | FL34: 23.11666667 | FM34: 23.275 | FN34: 23.43333333 | FO34: 23.59166667 | FP34: 23.75 | FQ34: 23.90833333 | FR34: 24.06666667 | FS34: 24.225 | FT34: 24.38333333 | FU34: 24.54166667 | FV34: 24.7 | FW34: 24.85833333 | FX34: 25.01666667 | FY34: 25.175 | FZ34: 25.33333333 | GA34: 25.49166667 | GB34: 25.65 | GC34: 25.80833333 | GD34: 25.96666667
B35: 26 | C35: 15.94 | D35: 254.1 | E35: 199.6 | F35: 40.81 | H35: 0.04081 | L35: INFINA/ACX PC | M35: 18 | O35: DL-FLEX-WETCC | P35: 1.3 | Q35: 24 | R35: 0.05416666667 | S35: 30 | T35: 1.625 | U35: Constant Current | V35: 23.4 | W35: 0.05416666667 | X35: 0.1083333333 | Y35: 0.1625 | Z35: 0.2166666667 | AA35: 0.2708333333 | AB35: 0.325 | AC35: 0.3791666667 | AD35: 0.4333333333 | AE35: 0.4875 | AF35: 0.5416666667 | AG35: 0.5958333333 | AH35: 0.65 | AI35: 0.7041666667 | AJ35: 0.7583333333 | AK35: 0.8125 | AL35: 0.8666666667 | AM35: 0.9208333333 | AN35: 0.975 | AO35: 1.029166667 | AP35: 1.083333333 | AQ35: 1.1375 | AR35: 1.191666667 | AS35: 1.245833333 | AT35: 1.3 | AU35: 1.354166667 | AV35: 1.408333333 | AW35: 1.4625 | AX35: 1.516666667 | AY35: 1.570833333 | AZ35: 1.625 | BA35: 1.679166667 | BB35: 1.733333333 | BC35: 1.7875 | BD35: 1.841666667 | BE35: 1.895833333 | BF35: 1.95 | BG35: 2.004166667 | BH35: 2.058333333 | BI35: 2.1125 | BJ35: 2.166666667 | BK35: 2.220833333 | BL35: 2.275 | BM35: 2.329166667 | BN35: 2.383333333 | BO35: 2.4375 | BP35: 2.491666667 | BQ35: 2.545833333 | BR35: 2.6 | BS35: 2.654166667 | BT35: 2.708333333 | BU35: 2.7625 | BV35: 2.816666667 | BW35: 2.870833333 | BX35: 2.925 | BY35: 2.979166667 | BZ35: 3.033333333 | CA35: 3.0875 | CB35: 3.141666667 | CC35: 3.195833333 | CD35: 3.25 | CE35: 3.304166667 | CF35: 3.358333333 | CG35: 3.4125 | CH35: 3.466666667 | CI35: 3.520833333 | CJ35: 3.575 | CK35: 3.629166667 | CL35: 3.683333333 | CM35: 3.7375 | CN35: 3.791666667 | CO35: 3.845833333 | CP35: 3.9 | CQ35: 3.954166667 | CR35: 4.008333333 | CS35: 4.0625 | CT35: 4.116666667 | CU35: 4.170833333 | CV35: 4.225 | CW35: 4.279166667 | CX35: 4.333333333 | CY35: 4.3875 | CZ35: 4.441666667 | DA35: 4.495833333 | DB35: 4.55 | DC35: 4.604166667 | DD35: 4.658333333 | DE35: 4.7125 | DF35: 4.766666667 | DG35: 4.820833333 | DH35: 4.875 | DI35: 4.929166667 | DJ35: 4.983333333 | DK35: 5.0375 | DL35: 5.091666667 | DM35: 5.145833333 | DN35: 5.2 | DO35: 5.254166667 | DP35: 5.308333333 | DQ35: 5.3625 | DR35: 5.416666667 | DS35: 5.470833333 | DT35: 5.525 | DU35: 5.579166667 | DV35: 5.633333333 | DW35: 5.6875 | DX35: 5.741666667 | DY35: 5.795833333 | DZ35: 5.85 | EA35: 5.904166667 | EB35: 5.958333333 | EC35: 6.0125 | ED35: 6.066666667 | EE35: 6.120833333 | EF35: 6.175 | EG35: 6.229166667 | EH35: 6.283333333 | EI35: 6.3375 | EJ35: 6.391666667 | EK35: 6.445833333 | EL35: 6.5 | EM35: 6.554166667 | EN35: 6.608333333 | EO35: 6.6625 | EP35: 6.716666667 | EQ35: 6.770833333 | ER35: 6.825 | ES35: 6.879166667 | ET35: 6.933333333 | EU35: 6.9875 | EV35: 7.041666667 | EW35: 7.095833333 | EX35: 7.15 | EY35: 7.204166667 | EZ35: 7.258333333 | FA35: 7.3125 | FB35: 7.366666667 | FC35: 7.420833333 | FD35: 7.475 | FE35: 7.529166667 | FF35: 7.583333333 | FG35: 7.6375 | FH35: 7.691666667 | FI35: 7.745833333 | FJ35: 7.8 | FK35: 7.854166667 | FL35: 7.908333333 | FM35: 7.9625 | FN35: 8.016666667 | FO35: 8.070833333 | FP35: 8.125 | FQ35: 8.179166667 | FR35: 8.233333333 | FS35: 8.2875 | FT35: 8.341666667 | FU35: 8.395833333 | FV35: 8.45 | FW35: 8.504166667 | FX35: 8.558333333 | FY35: 8.6125 | FZ35: 8.666666667 | GA35: 8.720833333 | GB35: 8.775 | GC35: 8.829166667 | GD35: 8.883333333
B36: 27 | C36: 14.2 | D36: 201.5 | E36: 158.3 | F36: 51.47 | H36: 0.05147 | L36: CTA | M36: 22 | O36: DL-FLEX-WETCC-HO | P36: 3.3 | Q36: 24 | R36: 0.1375 | S36: 20 | T36: 2.75 | U36: Constant Current | V36: 23.4 | W36: 0.1375 | X36: 0.275 | Y36: 0.4125 | Z36: 0.55 | AA36: 0.6875 | AB36: 0.825 | AC36: 0.9625 | AD36: 1.1 | AE36: 1.2375 | AF36: 1.375 | AG36: 1.5125 | AH36: 1.65 | AI36: 1.7875 | AJ36: 1.925 | AK36: 2.0625 | AL36: 2.2 | AM36: 2.3375 | AN36: 2.475 | AO36: 2.6125 | AP36: 2.75 | AQ36: 2.8875 | AR36: 3.025 | AS36: 3.1625 | AT36: 3.3 | AU36: 3.4375 | AV36: 3.575 | AW36: 3.7125 | AX36: 3.85 | AY36: 3.9875 | AZ36: 4.125 | BA36: 4.2625 | BB36: 4.4 | BC36: 4.5375 | BD36: 4.675 | BE36: 4.8125 | BF36: 4.95 | BG36: 5.0875 | BH36: 5.225 | BI36: 5.3625 | BJ36: 5.5 | BK36: 5.6375 | BL36: 5.775 | BM36: 5.9125 | BN36: 6.05 | BO36: 6.1875 | BP36: 6.325 | BQ36: 6.4625 | BR36: 6.6 | BS36: 6.7375 | BT36: 6.875 | BU36: 7.0125 | BV36: 7.15 | BW36: 7.2875 | BX36: 7.425 | BY36: 7.5625 | BZ36: 7.7 | CA36: 7.8375 | CB36: 7.975 | CC36: 8.1125 | CD36: 8.25 | CE36: 8.3875 | CF36: 8.525 | CG36: 8.6625 | CH36: 8.8 | CI36: 8.9375 | CJ36: 9.075 | CK36: 9.2125 | CL36: 9.35 | CM36: 9.4875 | CN36: 9.625 | CO36: 9.7625 | CP36: 9.9 | CQ36: 10.0375 | CR36: 10.175 | CS36: 10.3125 | CT36: 10.45 | CU36: 10.5875 | CV36: 10.725 | CW36: 10.8625 | CX36: 11 | CY36: 11.1375 | CZ36: 11.275 | DA36: 11.4125 | DB36: 11.55 | DC36: 11.6875 | DD36: 11.825 | DE36: 11.9625 | DF36: 12.1 | DG36: 12.2375 | DH36: 12.375 | DI36: 12.5125 | DJ36: 12.65 | DK36: 12.7875 | DL36: 12.925 | DM36: 13.0625 | DN36: 13.2 | DO36: 13.3375 | DP36: 13.475 | DQ36: 13.6125 | DR36: 13.75 | DS36: 13.8875 | DT36: 14.025 | DU36: 14.1625 | DV36: 14.3 | DW36: 14.4375 | DX36: 14.575 | DY36: 14.7125 | DZ36: 14.85 | EA36: 14.9875 | EB36: 15.125 | EC36: 15.2625 | ED36: 15.4 | EE36: 15.5375 | EF36: 15.675 | EG36: 15.8125 | EH36: 15.95 | EI36: 16.0875 | EJ36: 16.225 | EK36: 16.3625 | EL36: 16.5 | EM36: 16.6375 | EN36: 16.775 | EO36: 16.9125 | EP36: 17.05 | EQ36: 17.1875 | ER36: 17.325 | ES36: 17.4625 | ET36: 17.6 | EU36: 17.7375 | EV36: 17.875 | EW36: 18.0125 | EX36: 18.15 | EY36: 18.2875 | EZ36: 18.425 | FA36: 18.5625 | FB36: 18.7 | FC36: 18.8375 | FD36: 18.975 | FE36: 19.1125 | FF36: 19.25 | FG36: 19.3875 | FH36: 19.525 | FI36: 19.6625 | FJ36: 19.8 | FK36: 19.9375 | FL36: 20.075 | FM36: 20.2125 | FN36: 20.35 | FO36: 20.4875 | FP36: 20.625 | FQ36: 20.7625 | FR36: 20.9 | FS36: 21.0375 | FT36: 21.175 | FU36: 21.3125 | FV36: 21.45 | FW36: 21.5875 | FX36: 21.725 | FY36: 21.8625 | FZ36: 22 | GA36: 22.1375 | GB36: 22.275 | GC36: 22.4125 | GD36: 22.55
B37: 28 | C37: 12.64 | D37: 159.8 | E37: 125.5 | F37: 64.9 | H37: 0.0649 | L37: RGB | M37: 22 | O37: DL-FLEX-WETCC-RGB | P37: 3.9 | Q37: 24 | R37: 0.1625 | S37: 20 | T37: 3.25 | U37: Constant Current | V37: 23.4 | W37: 0.1625 | X37: 0.325 | Y37: 0.4875 | Z37: 0.65 | AA37: 0.8125 | AB37: 0.975 | AC37: 1.1375 | AD37: 1.3 | AE37: 1.4625 | AF37: 1.625 | AG37: 1.7875 | AH37: 1.95 | AI37: 2.1125 | AJ37: 2.275 | AK37: 2.4375 | AL37: 2.6 | AM37: 2.7625 | AN37: 2.925 | AO37: 3.0875 | AP37: 3.25 | AQ37: 3.4125 | AR37: 3.575 | AS37: 3.7375 | AT37: 3.9 | AU37: 4.0625 | AV37: 4.225 | AW37: 4.3875 | AX37: 4.55 | AY37: 4.7125 | AZ37: 4.875 | BA37: 5.0375 | BB37: 5.2 | BC37: 5.3625 | BD37: 5.525 | BE37: 5.6875 | BF37: 5.85 | BG37: 6.0125 | BH37: 6.175 | BI37: 6.3375 | BJ37: 6.5 | BK37: 6.6625 | BL37: 6.825 | BM37: 6.9875 | BN37: 7.15 | BO37: 7.3125 | BP37: 7.475 | BQ37: 7.6375 | BR37: 7.8 | BS37: 7.9625 | BT37: 8.125 | BU37: 8.2875 | BV37: 8.45 | BW37: 8.6125 | BX37: 8.775 | BY37: 8.9375 | BZ37: 9.1 | CA37: 9.2625 | CB37: 9.425 | CC37: 9.5875 | CD37: 9.75 | CE37: 9.9125 | CF37: 10.075 | CG37: 10.2375 | CH37: 10.4 | CI37: 10.5625 | CJ37: 10.725 | CK37: 10.8875 | CL37: 11.05 | CM37: 11.2125 | CN37: 11.375 | CO37: 11.5375 | CP37: 11.7 | CQ37: 11.8625 | CR37: 12.025 | CS37: 12.1875 | CT37: 12.35 | CU37: 12.5125 | CV37: 12.675 | CW37: 12.8375 | CX37: 13 | CY37: 13.1625 | CZ37: 13.325 | DA37: 13.4875 | DB37: 13.65 | DC37: 13.8125 | DD37: 13.975 | DE37: 14.1375 | DF37: 14.3 | DG37: 14.4625 | DH37: 14.625 | DI37: 14.7875 | DJ37: 14.95 | DK37: 15.1125 | DL37: 15.275 | DM37: 15.4375 | DN37: 15.6 | DO37: 15.7625 | DP37: 15.925 | DQ37: 16.0875 | DR37: 16.25 | DS37: 16.4125 | DT37: 16.575 | DU37: 16.7375 | DV37: 16.9 | DW37: 17.0625 | DX37: 17.225 | DY37: 17.3875 | DZ37: 17.55 | EA37: 17.7125 | EB37: 17.875 | EC37: 18.0375 | ED37: 18.2 | EE37: 18.3625 | EF37: 18.525 | EG37: 18.6875 | EH37: 18.85 | EI37: 19.0125 | EJ37: 19.175 | EK37: 19.3375 | EL37: 19.5 | EM37: 19.6625 | EN37: 19.825 | EO37: 19.9875 | EP37: 20.15 | EQ37: 20.3125 | ER37: 20.475 | ES37: 20.6375 | ET37: 20.8 | EU37: 20.9625 | EV37: 21.125 | EW37: 21.2875 | EX37: 21.45 | EY37: 21.6125 | EZ37: 21.775 | FA37: 21.9375 | FB37: 22.1 | FC37: 22.2625 | FD37: 22.425 | FE37: 22.5875 | FF37: 22.75 | FG37: 22.9125 | FH37: 23.075 | FI37: 23.2375 | FJ37: 23.4 | FK37: 23.5625 | FL37: 23.725 | FM37: 23.8875 | FN37: 24.05 | FO37: 24.2125 | FP37: 24.375 | FQ37: 24.5375 | FR37: 24.7 | FS37: 24.8625 | FT37: 25.025 | FU37: 25.1875 | FV37: 25.35 | FW37: 25.5125 | FX37: 25.675 | FY37: 25.8375 | FZ37: 26 | GA37: 26.1625 | GB37: 26.325 | GC37: 26.4875 | GD37: 26.65
B38: 29 | C38: 11.26 | D38: 126.7 | E38: 99.53 | F38: 81.83 | H38: 0.08183 | L38: RGBW | M38: 22 | O38: DL-FLEX2-RGBW | P38: 4.1 | Q38: 24 | R38: 0.1708333333 | S38: 20 | T38: 3.416666667 | U38: Constant Voltage | V38: 23.4 | W38: 0.1708333333 | X38: 0.3416666667 | Y38: 0.5125 | Z38: 0.6833333333 | AA38: 0.8541666667 | AB38: 1.025 | AC38: 1.195833333 | AD38: 1.366666667 | AE38: 1.5375 | AF38: 1.708333333 | AG38: 1.879166667 | AH38: 2.05 | AI38: 2.220833333 | AJ38: 2.391666667 | AK38: 2.5625 | AL38: 2.733333333 | AM38: 2.904166667 | AN38: 3.075 | AO38: 3.245833333 | AP38: 3.416666667 | AQ38: 3.5875 | AR38: 3.758333333 | AS38: 3.929166667 | AT38: 4.1 | AU38: 4.270833333 | AV38: 4.441666667 | AW38: 4.6125 | AX38: 4.783333333 | AY38: 4.954166667 | AZ38: 5.125 | BA38: 5.295833333 | BB38: 5.466666667 | BC38: 5.6375 | BD38: 5.808333333 | BE38: 5.979166667 | BF38: 6.15 | BG38: 6.320833333 | BH38: 6.491666667 | BI38: 6.6625 | BJ38: 6.833333333 | BK38: 7.004166667 | BL38: 7.175 | BM38: 7.345833333 | BN38: 7.516666667 | BO38: 7.6875 | BP38: 7.858333333 | BQ38: 8.029166667 | BR38: 8.2 | BS38: 8.370833333 | BT38: 8.541666667 | BU38: 8.7125 | BV38: 8.883333333 | BW38: 9.054166667 | BX38: 9.225 | BY38: 9.395833333 | BZ38: 9.566666667 | CA38: 9.7375 | CB38: 9.908333333 | CC38: 10.07916667 | CD38: 10.25 | CE38: 10.42083333 | CF38: 10.59166667 | CG38: 10.7625 | CH38: 10.93333333 | CI38: 11.10416667 | CJ38: 11.275 | CK38: 11.44583333 | CL38: 11.61666667 | CM38: 11.7875 | CN38: 11.95833333 | CO38: 12.12916667 | CP38: 12.3 | CQ38: 12.47083333 | CR38: 12.64166667 | CS38: 12.8125 | CT38: 12.98333333 | CU38: 13.15416667 | CV38: 13.325 | CW38: 13.49583333 | CX38: 13.66666667 | CY38: 13.8375 | CZ38: 14.00833333 | DA38: 14.17916667 | DB38: 14.35 | DC38: 14.52083333 | DD38: 14.69166667 | DE38: 14.8625 | DF38: 15.03333333 | DG38: 15.20416667 | DH38: 15.375 | DI38: 15.54583333 | DJ38: 15.71666667 | DK38: 15.8875 | DL38: 16.05833333 | DM38: 16.22916667 | DN38: 16.4 | DO38: 16.57083333 | DP38: 16.74166667 | DQ38: 16.9125 | DR38: 17.08333333 | DS38: 17.25416667 | DT38: 17.425 | DU38: 17.59583333 | DV38: 17.76666667 | DW38: 17.9375 | DX38: 18.10833333 | DY38: 18.27916667 | DZ38: 18.45 | EA38: 18.62083333 | EB38: 18.79166667 | EC38: 18.9625 | ED38: 19.13333333 | EE38: 19.30416667 | EF38: 19.475 | EG38: 19.64583333 | EH38: 19.81666667 | EI38: 19.9875 | EJ38: 20.15833333 | EK38: 20.32916667 | EL38: 20.5 | EM38: 20.67083333 | EN38: 20.84166667 | EO38: 21.0125 | EP38: 21.18333333 | EQ38: 21.35416667 | ER38: 21.525 | ES38: 21.69583333 | ET38: 21.86666667 | EU38: 22.0375 | EV38: 22.20833333 | EW38: 22.37916667 | EX38: 22.55 | EY38: 22.72083333 | EZ38: 22.89166667 | FA38: 23.0625 | FB38: 23.23333333 | FC38: 23.40416667 | FD38: 23.575 | FE38: 23.74583333 | FF38: 23.91666667 | FG38: 24.0875 | FH38: 24.25833333 | FI38: 24.42916667 | FJ38: 24.6 | FK38: 24.77083333 | FL38: 24.94166667 | FM38: 25.1125 | FN38: 25.28333333 | FO38: 25.45416667 | FP38: 25.625 | FQ38: 25.79583333 | FR38: 25.96666667 | FS38: 26.1375 | FT38: 26.30833333 | FU38: 26.47916667 | FV38: 26.65 | FW38: 26.82083333 | FX38: 26.99166667 | FY38: 27.1625 | FZ38: 27.33333333 | GA38: 27.50416667 | GB38: 27.675 | GC38: 27.84583333 | GD38: 28.01666667
B39: 30 | C39: 10.03 | D39: 100.5 | E39: 78.94 | F39: 103.2 | H39: 0.1032 | L39: RGBWW | M39: 22 | O39: DL-FLEX2-RGBWW | P39: 4.7 | Q39: 24 | R39: 0.1958333333 | S39: 16.4 | T39: 3.211666667 | U39: Constant Voltage | V39: 23.4 | W39: 0.1958333333 | X39: 0.3916666667 | Y39: 0.5875 | Z39: 0.7833333333 | AA39: 0.9791666667 | AB39: 1.175 | AC39: 1.370833333 | AD39: 1.566666667 | AE39: 1.7625 | AF39: 1.958333333 | AG39: 2.154166667 | AH39: 2.35 | AI39: 2.545833333 | AJ39: 2.741666667 | AK39: 2.9375 | AL39: 3.133333333 | AM39: 3.329166667 | AN39: 3.525 | AO39: 3.720833333 | AP39: 3.916666667 | AQ39: 4.1125 | AR39: 4.308333333 | AS39: 4.504166667 | AT39: 4.7 | AU39: 4.895833333 | AV39: 5.091666667 | AW39: 5.2875 | AX39: 5.483333333 | AY39: 5.679166667 | AZ39: 5.875 | BA39: 6.070833333 | BB39: 6.266666667 | BC39: 6.4625 | BD39: 6.658333333 | BE39: 6.854166667 | BF39: 7.05 | BG39: 7.245833333 | BH39: 7.441666667 | BI39: 7.6375 | BJ39: 7.833333333 | BK39: 8.029166667 | BL39: 8.225 | BM39: 8.420833333 | BN39: 8.616666667 | BO39: 8.8125 | BP39: 9.008333333 | BQ39: 9.204166667 | BR39: 9.4 | BS39: 9.595833333 | BT39: 9.791666667 | BU39: 9.9875 | BV39: 10.18333333 | BW39: 10.37916667 | BX39: 10.575 | BY39: 10.77083333 | BZ39: 10.96666667 | CA39: 11.1625 | CB39: 11.35833333 | CC39: 11.55416667 | CD39: 11.75 | CE39: 11.94583333 | CF39: 12.14166667 | CG39: 12.3375 | CH39: 12.53333333 | CI39: 12.72916667 | CJ39: 12.925 | CK39: 13.12083333 | CL39: 13.31666667 | CM39: 13.5125 | CN39: 13.70833333 | CO39: 13.90416667 | CP39: 14.1 | CQ39: 14.29583333 | CR39: 14.49166667 | CS39: 14.6875 | CT39: 14.88333333 | CU39: 15.07916667 | CV39: 15.275 | CW39: 15.47083333 | CX39: 15.66666667 | CY39: 15.8625 | CZ39: 16.05833333 | DA39: 16.25416667 | DB39: 16.45 | DC39: 16.64583333 | DD39: 16.84166667 | DE39: 17.0375 | DF39: 17.23333333 | DG39: 17.42916667 | DH39: 17.625 | DI39: 17.82083333 | DJ39: 18.01666667 | DK39: 18.2125 | DL39: 18.40833333 | DM39: 18.60416667 | DN39: 18.8 | DO39: 18.99583333 | DP39: 19.19166667 | DQ39: 19.3875 | DR39: 19.58333333 | DS39: 19.77916667 | DT39: 19.975 | DU39: 20.17083333 | DV39: 20.36666667 | DW39: 20.5625 | DX39: 20.75833333 | DY39: 20.95416667 | DZ39: 21.15 | EA39: 21.34583333 | EB39: 21.54166667 | EC39: 21.7375 | ED39: 21.93333333 | EE39: 22.12916667 | EF39: 22.325 | EG39: 22.52083333 | EH39: 22.71666667 | EI39: 22.9125 | EJ39: 23.10833333 | EK39: 23.30416667 | EL39: 23.5 | EM39: 23.69583333 | EN39: 23.89166667 | EO39: 24.0875 | EP39: 24.28333333 | EQ39: 24.47916667 | ER39: 24.675 | ES39: 24.87083333 | ET39: 25.06666667 | EU39: 25.2625 | EV39: 25.45833333 | EW39: 25.65416667 | EX39: 25.85 | EY39: 26.04583333 | EZ39: 26.24166667 | FA39: 26.4375 | FB39: 26.63333333 | FC39: 26.82916667 | FD39: 27.025 | FE39: 27.22083333 | FF39: 27.41666667 | FG39: 27.6125 | FH39: 27.80833333 | FI39: 28.00416667 | FJ39: 28.2 | FK39: 28.39583333 | FL39: 28.59166667 | FM39: 28.7875 | FN39: 28.98333333 | FO39: 29.17916667 | FP39: 29.375 | FQ39: 29.57083333 | FR39: 29.76666667 | FS39: 29.9625 | FT39: 30.15833333 | FU39: 30.35416667 | FV39: 30.55 | FW39: 30.74583333 | FX39: 30.94166667 | FY39: 31.1375 | FZ39: 31.33333333 | GA39: 31.52916667 | GB39: 31.725 | GC39: 31.92083333 | GD39: 32.11666667
B40: 31 | C40: 8.928 | D40: 79.7 | E40: 62.6 | F40: 130.1 | H40: 0.1301 | L40: HW-20AWG | M40: 20 | O40: CVX-ST | P40: 2.7 | Q40: 27 | R40: =P40/Q40 -> 0.1 | S40: 30 | T40: =R40*S40 -> 3 | U40: Constant Voltage | V40: 23.4 | W40: =R40*$W$2 -> 0.1 | X40: 0.2 | Y40: 0.3 | Z40: 0.4 | AA40: 0.5 | AB40: 0.6 | AC40: 0.7 | AD40: 0.8 | AE40: 0.9 | AF40: 1 | AG40: 1.1 | AH40: 1.2 | AI40: 1.3 | AJ40: 1.4 | AK40: 1.5 | AL40: 1.6 | AM40: 1.7 | AN40: 1.8 | AO40: 1.9 | AP40: 2 | AQ40: 2.1 | AR40: 2.2 | AS40: 2.3 | AT40: 2.4 | AU40: 2.5 | AV40: 2.6 | AW40: 2.7 | AX40: 2.8 | AY40: 2.9 | AZ40: 3 | BA40: 3.1 | BB40: 3.2 | BC40: 3.3 | BD40: 3.4 | BE40: 3.5 | BF40: 3.6 | BG40: 3.7 | BH40: 3.8 | BI40: 3.9 | BJ40: 4 | BK40: 4.1 | BL40: 4.2 | BM40: 4.3 | BN40: 4.4 | BO40: 4.5 | BP40: 4.6 | BQ40: 4.7 | BR40: 4.8 | BS40: 4.9 | BT40: 5 | BU40: 5.1 | BV40: 5.2 | BW40: 5.3 | BX40: 5.4 | BY40: 5.5 | BZ40: 5.6 | CA40: 5.7 | CB40: 5.8 | CC40: 5.9 | CD40: 6 | CE40: 6.1 | CF40: 6.2 | CG40: 6.3 | CH40: 6.4 | CI40: 6.5 | CJ40: 6.6 | CK40: 6.7 | CL40: 6.8 | CM40: 6.9 | CN40: 7 | CO40: 7.1 | CP40: 7.2 | CQ40: 7.3 | CR40: 7.4 | CS40: 7.5 | CT40: 7.6 | CU40: 7.7 | CV40: 7.8 | CW40: 7.9 | CX40: 8 | CY40: 8.1 | CZ40: 8.2 | DA40: 8.3 | DB40: 8.4 | DC40: 8.5 | DD40: 8.6 | DE40: 8.7 | DF40: 8.8 | DG40: 8.9 | DH40: 9 | DI40: 9.1 | DJ40: 9.2 | DK40: 9.3 | DL40: 9.4 | DM40: 9.5 | DN40: 9.6 | DO40: 9.7 | DP40: 9.8 | DQ40: 9.9 | DR40: 10 | DS40: 10.1 | DT40: 10.2 | DU40: 10.3 | DV40: 10.4 | DW40: 10.5 | DX40: 10.6 | DY40: 10.7 | DZ40: 10.8 | EA40: 10.9 | EB40: 11 | EC40: 11.1 | ED40: 11.2 | EE40: 11.3 | EF40: 11.4 | EG40: 11.5 | EH40: 11.6 | EI40: 11.7 | EJ40: 11.8 | EK40: 11.9 | EL40: 12 | EM40: 12.1 | EN40: 12.2 | EO40: 12.3 | EP40: 12.4 | EQ40: 12.5 | ER40: 12.6 | ES40: 12.7 | ET40: 12.8 | EU40: 12.9 | EV40: 13 | EW40: 13.1 | EX40: 13.2 | EY40: 13.3 | EZ40: 13.4 | FA40: 13.5 | FB40: 13.6 | FC40: 13.7 | FD40: 13.8 | FE40: 13.9 | FF40: 14 | FG40: 14.1 | FH40: 14.2 | FI40: 14.3 | FJ40: 14.4 | FK40: 14.5 | FL40: 14.6 | FM40: 14.7 | FN40: 14.8 | FO40: 14.9 | FP40: 15 | FQ40: 15.1 | FR40: 15.2 | FS40: 15.3 | FT40: 15.4 | FU40: 15.5 | FV40: 15.6 | FW40: 15.7 | FX40: 15.8 | FY40: 15.9 | FZ40: 16 | GA40: 16.1 | GB40: 16.2 | GC40: 16.3 | GD40: 16.4
B41: 32 | C41: 7.95 | D41: 63.21 | E41: 49.64 | F41: 164.1 | H41: 0.1641 | L41: HW-18AWG | M41: 18 | O41: CVX-HO | P41: 3.9 | Q41: 27 | R41: 0.1444444444 | S41: 20 | T41: 2.888888889 | U41: Constant Voltage | V41: 23.4 | W41: 0.1444444444 | X41: 0.2888888889 | Y41: 0.4333333333 | Z41: 0.5777777778 | AA41: 0.7222222222 | AB41: 0.8666666667 | AC41: 1.011111111 | AD41: 1.155555556 | AE41: 1.3 | AF41: 1.444444444 | AG41: 1.588888889 | AH41: 1.733333333 | AI41: 1.877777778 | AJ41: 2.022222222 | AK41: 2.166666667 | AL41: 2.311111111 | AM41: 2.455555556 | AN41: 2.6 | AO41: 2.744444444 | AP41: 2.888888889 | AQ41: 3.033333333 | AR41: 3.177777778 | AS41: 3.322222222 | AT41: 3.466666667 | AU41: 3.611111111 | AV41: 3.755555556 | AW41: 3.9 | AX41: 4.044444444 | AY41: 4.188888889 | AZ41: 4.333333333 | BA41: 4.477777778 | BB41: 4.622222222 | BC41: 4.766666667 | BD41: 4.911111111 | BE41: 5.055555556 | BF41: 5.2 | BG41: 5.344444444 | BH41: 5.488888889 | BI41: 5.633333333 | BJ41: 5.777777778 | BK41: 5.922222222 | BL41: 6.066666667 | BM41: 6.211111111 | BN41: 6.355555556 | BO41: 6.5 | BP41: 6.644444444 | BQ41: 6.788888889 | BR41: 6.933333333 | BS41: 7.077777778 | BT41: 7.222222222 | BU41: 7.366666667 | BV41: 7.511111111 | BW41: 7.655555556 | BX41: 7.8 | BY41: 7.944444444 | BZ41: 8.088888889 | CA41: 8.233333333 | CB41: 8.377777778 | CC41: 8.522222222 | CD41: 8.666666667 | CE41: 8.811111111 | CF41: 8.955555556 | CG41: 9.1 | CH41: 9.244444444 | CI41: 9.388888889 | CJ41: 9.533333333 | CK41: 9.677777778 | CL41: 9.822222222 | CM41: 9.966666667 | CN41: 10.11111111 | CO41: 10.25555556 | CP41: 10.4 | CQ41: 10.54444444 | CR41: 10.68888889 | CS41: 10.83333333 | CT41: 10.97777778 | CU41: 11.12222222 | CV41: 11.26666667 | CW41: 11.41111111 | CX41: 11.55555556 | CY41: 11.7 | CZ41: 11.84444444 | DA41: 11.98888889 | DB41: 12.13333333 | DC41: 12.27777778 | DD41: 12.42222222 | DE41: 12.56666667 | DF41: 12.71111111 | DG41: 12.85555556 | DH41: 13 | DI41: 13.14444444 | DJ41: 13.28888889 | DK41: 13.43333333 | DL41: 13.57777778 | DM41: 13.72222222 | DN41: 13.86666667 | DO41: 14.01111111 | DP41: 14.15555556 | DQ41: 14.3 | DR41: 14.44444444 | DS41: 14.58888889 | DT41: 14.73333333 | DU41: 14.87777778 | DV41: 15.02222222 | DW41: 15.16666667 | DX41: 15.31111111 | DY41: 15.45555556 | DZ41: 15.6 | EA41: 15.74444444 | EB41: 15.88888889 | EC41: 16.03333333 | ED41: 16.17777778 | EE41: 16.32222222 | EF41: 16.46666667 | EG41: 16.61111111 | EH41: 16.75555556 | EI41: 16.9 | EJ41: 17.04444444 | EK41: 17.18888889 | EL41: 17.33333333 | EM41: 17.47777778 | EN41: 17.62222222 | EO41: 17.76666667 | EP41: 17.91111111 | EQ41: 18.05555556 | ER41: 18.2 | ES41: 18.34444444 | ET41: 18.48888889 | EU41: 18.63333333 | EV41: 18.77777778 | EW41: 18.92222222 | EX41: 19.06666667 | EY41: 19.21111111 | EZ41: 19.35555556 | FA41: 19.5 | FB41: 19.64444444 | FC41: 19.78888889 | FD41: 19.93333333 | FE41: 20.07777778 | FF41: 20.22222222 | FG41: 20.36666667 | FH41: 20.51111111 | FI41: 20.65555556 | FJ41: 20.8 | FK41: 20.94444444 | FL41: 21.08888889 | FM41: 21.23333333 | FN41: 21.37777778 | FO41: 21.52222222 | FP41: 21.66666667 | FQ41: 21.81111111 | FR41: 21.95555556 | FS41: 22.1 | FT41: 22.24444444 | FU41: 22.38888889 | FV41: 22.53333333 | FW41: 22.67777778 | FX41: 22.82222222 | FY41: 22.96666667 | FZ41: 23.11111111 | GA41: 23.25555556 | GB41: 23.4 | GC41: 23.54444444 | GD41: 23.68888889
B42: 33 | C42: 7.08 | D42: 50.13 | E42: 39.37 | F42: 206.9 | H42: 0.2069 | L42: HW-16AWG | M42: 16 | O42: CFX2 | P42: 1.5 | Q42: 24 | R42: =P42/Q42 -> 0.0625 | S42: 30 | T42: =R42*S42 -> 1.875 | U42: Constant Voltage | V42: 23.4 | W42: =R42*$W$2 -> 0.0625 | X42: 0.125 | Y42: 0.1875 | Z42: 0.25 | AA42: 0.3125 | AB42: 0.375 | AC42: 0.4375 | AD42: 0.5 | AE42: 0.5625 | AF42: 0.625 | AG42: 0.6875 | AH42: 0.75 | AI42: 0.8125 | AJ42: 0.875 | AK42: 0.9375 | AL42: 1 | AM42: 1.0625 | AN42: 1.125 | AO42: 1.1875 | AP42: 1.25 | AQ42: 1.3125 | AR42: 1.375 | AS42: 1.4375 | AT42: 1.5 | AU42: 1.5625 | AV42: 1.625 | AW42: 1.6875 | AX42: 1.75 | AY42: 1.8125 | AZ42: 1.875 | BA42: 1.9375 | BB42: 2 | BC42: 2.0625 | BD42: 2.125 | BE42: 2.1875 | BF42: 2.25 | BG42: 2.3125 | BH42: 2.375 | BI42: 2.4375 | BJ42: 2.5 | BK42: 2.5625 | BL42: 2.625 | BM42: 2.6875 | BN42: 2.75 | BO42: 2.8125 | BP42: 2.875 | BQ42: 2.9375 | BR42: 3 | BS42: 3.0625 | BT42: 3.125 | BU42: 3.1875 | BV42: 3.25 | BW42: 3.3125 | BX42: 3.375 | BY42: 3.4375 | BZ42: 3.5 | CA42: 3.5625 | CB42: 3.625 | CC42: 3.6875 | CD42: 3.75 | CE42: 3.8125 | CF42: 3.875 | CG42: 3.9375 | CH42: 4 | CI42: 4.0625 | CJ42: 4.125 | CK42: 4.1875 | CL42: 4.25 | CM42: 4.3125 | CN42: 4.375 | CO42: 4.4375 | CP42: 4.5 | CQ42: 4.5625 | CR42: 4.625 | CS42: 4.6875 | CT42: 4.75 | CU42: 4.8125 | CV42: 4.875 | CW42: 4.9375 | CX42: 5 | CY42: 5.0625 | CZ42: 5.125 | DA42: 5.1875 | DB42: 5.25 | DC42: 5.3125 | DD42: 5.375 | DE42: 5.4375 | DF42: 5.5 | DG42: 5.5625 | DH42: 5.625 | DI42: 5.6875 | DJ42: 5.75 | DK42: 5.8125 | DL42: 5.875 | DM42: 5.9375 | DN42: 6 | DO42: 6.0625 | DP42: 6.125 | DQ42: 6.1875 | DR42: 6.25 | DS42: 6.3125 | DT42: 6.375 | DU42: 6.4375 | DV42: 6.5 | DW42: 6.5625 | DX42: 6.625 | DY42: 6.6875 | DZ42: 6.75 | EA42: 6.8125 | EB42: 6.875 | EC42: 6.9375 | ED42: 7 | EE42: 7.0625 | EF42: 7.125 | EG42: 7.1875 | EH42: 7.25 | EI42: 7.3125 | EJ42: 7.375 | EK42: 7.4375 | EL42: 7.5 | EM42: 7.5625 | EN42: 7.625 | EO42: 7.6875 | EP42: 7.75 | EQ42: 7.8125 | ER42: 7.875 | ES42: 7.9375 | ET42: 8 | EU42: 8.0625 | EV42: 8.125 | EW42: 8.1875 | EX42: 8.25 | EY42: 8.3125 | EZ42: 8.375 | FA42: 8.4375 | FB42: 8.5 | FC42: 8.5625 | FD42: 8.625 | FE42: 8.6875 | FF42: 8.75 | FG42: 8.8125 | FH42: 8.875 | FI42: 8.9375 | FJ42: 9 | FK42: 9.0625 | FL42: 9.125 | FM42: 9.1875 | FN42: 9.25 | FO42: 9.3125 | FP42: 9.375 | FQ42: 9.4375 | FR42: 9.5 | FS42: 9.5625 | FT42: 9.625 | FU42: 9.6875 | FV42: 9.75 | FW42: 9.8125 | FX42: 9.875 | FY42: 9.9375 | FZ42: 10 | GA42: 10.0625 | GB42: 10.125 | GC42: 10.1875 | GD42: 10.25
B43: 34 | C43: 6.305 | D43: 39.75 | E43: 31.22 | F43: 260.9 | H43: 0.2609 | L43: HW-14AWG | M43: 14 | O43: CFX2 PRO | P43: 3.2 | Q43: 24 | R43: =P43/Q43 -> 0.1333333333 | S43: 20 | T43: =R43*S43 -> 2.666666667 | U43: Constant Voltage | V43: 23.4 | W43: 0.1333333333 | X43: 0.2666666667 | Y43: 0.4 | Z43: 0.5333333333 | AA43: 0.6666666667 | AB43: 0.8 | AC43: 0.9333333333 | AD43: 1.066666667 | AE43: 1.2 | AF43: 1.333333333 | AG43: 1.466666667 | AH43: 1.6 | AI43: 1.733333333 | AJ43: 1.866666667 | AK43: 2 | AL43: 2.133333333 | AM43: 2.266666667 | AN43: 2.4 | AO43: 2.533333333 | AP43: 2.666666667 | AQ43: 2.8 | AR43: 2.933333333 | AS43: 3.066666667 | AT43: 3.2 | AU43: 3.333333333 | AV43: 3.466666667 | AW43: 3.6 | AX43: 3.733333333 | AY43: 3.866666667 | AZ43: 4 | BA43: 4.133333333 | BB43: 4.266666667 | BC43: 4.4 | BD43: 4.533333333 | BE43: 4.666666667 | BF43: 4.8 | BG43: 4.933333333 | BH43: 5.066666667 | BI43: 5.2 | BJ43: 5.333333333 | BK43: 5.466666667 | BL43: 5.6 | BM43: 5.733333333 | BN43: 5.866666667 | BO43: 6 | BP43: 6.133333333 | BQ43: 6.266666667 | BR43: 6.4 | BS43: 6.533333333 | BT43: 6.666666667 | BU43: 6.8 | BV43: 6.933333333 | BW43: 7.066666667 | BX43: 7.2 | BY43: 7.333333333 | BZ43: 7.466666667 | CA43: 7.6 | CB43: 7.733333333 | CC43: 7.866666667 | CD43: 8 | CE43: 8.133333333 | CF43: 8.266666667 | CG43: 8.4 | CH43: 8.533333333 | CI43: 8.666666667 | CJ43: 8.8 | CK43: 8.933333333 | CL43: 9.066666667 | CM43: 9.2 | CN43: 9.333333333 | CO43: 9.466666667 | CP43: 9.6 | CQ43: 9.733333333 | CR43: 9.866666667 | CS43: 10 | CT43: 10.13333333 | CU43: 10.26666667 | CV43: 10.4 | CW43: 10.53333333 | CX43: 10.66666667 | CY43: 10.8 | CZ43: 10.93333333 | DA43: 11.06666667 | DB43: 11.2 | DC43: 11.33333333 | DD43: 11.46666667 | DE43: 11.6 | DF43: 11.73333333 | DG43: 11.86666667 | DH43: 12 | DI43: 12.13333333 | DJ43: 12.26666667 | DK43: 12.4 | DL43: 12.53333333 | DM43: 12.66666667 | DN43: 12.8 | DO43: 12.93333333 | DP43: 13.06666667 | DQ43: 13.2 | DR43: 13.33333333 | DS43: 13.46666667 | DT43: 13.6 | DU43: 13.73333333 | DV43: 13.86666667 | DW43: 14 | DX43: 14.13333333 | DY43: 14.26666667 | DZ43: 14.4 | EA43: 14.53333333 | EB43: 14.66666667 | EC43: 14.8 | ED43: 14.93333333 | EE43: 15.06666667 | EF43: 15.2 | EG43: 15.33333333 | EH43: 15.46666667 | EI43: 15.6 | EJ43: 15.73333333 | EK43: 15.86666667 | EL43: 16 | EM43: 16.13333333 | EN43: 16.26666667 | EO43: 16.4 | EP43: 16.53333333 | EQ43: 16.66666667 | ER43: 16.8 | ES43: 16.93333333 | ET43: 17.06666667 | EU43: 17.2 | EV43: 17.33333333 | EW43: 17.46666667 | EX43: 17.6 | EY43: 17.73333333 | EZ43: 17.86666667 | FA43: 18 | FB43: 18.13333333 | FC43: 18.26666667 | FD43: 18.4 | FE43: 18.53333333 | FF43: 18.66666667 | FG43: 18.8 | FH43: 18.93333333 | FI43: 19.06666667 | FJ43: 19.2 | FK43: 19.33333333 | FL43: 19.46666667 | FM43: 19.6 | FN43: 19.73333333 | FO43: 19.86666667 | FP43: 20 | FQ43: 20.13333333 | FR43: 20.26666667 | FS43: 20.4 | FT43: 20.53333333 | FU43: 20.66666667 | FV43: 20.8 | FW43: 20.93333333 | FX43: 21.06666667 | FY43: 21.2 | FZ43: 21.33333333 | GA43: 21.46666667 | GB43: 21.6 | GC43: 21.73333333 | GD43: 21.86666667
B44: 35 | C44: 5.615 | D44: 31.52 | E44: 24.76 | F44: 329 | H44: 0.329 | L44: HW-12AWG | M44: 12 | O44: CFX2-RGB | P44: 3.9 | Q44: 24 | R44: =P44/Q44 -> 0.1625 | S44: 20 | T44: =R44*S44 -> 3.25 | U44: Constant Voltage | V44: 23.4 | W44: 0.1625 | X44: 0.325 | Y44: 0.4875 | Z44: 0.65 | AA44: 0.8125 | AB44: 0.975 | AC44: 1.1375 | AD44: 1.3 | AE44: 1.4625 | AF44: 1.625 | AG44: 1.7875 | AH44: 1.95 | AI44: 2.1125 | AJ44: 2.275 | AK44: 2.4375 | AL44: 2.6 | AM44: 2.7625 | AN44: 2.925 | AO44: 3.0875 | AP44: 3.25 | AQ44: 3.4125 | AR44: 3.575 | AS44: 3.7375 | AT44: 3.9 | AU44: 4.0625 | AV44: 4.225 | AW44: 4.3875 | AX44: 4.55 | AY44: 4.7125 | AZ44: 4.875 | BA44: 5.0375 | BB44: 5.2 | BC44: 5.3625 | BD44: 5.525 | BE44: 5.6875 | BF44: 5.85 | BG44: 6.0125 | BH44: 6.175 | BI44: 6.3375 | BJ44: 6.5 | BK44: 6.6625 | BL44: 6.825 | BM44: 6.9875 | BN44: 7.15 | BO44: 7.3125 | BP44: 7.475 | BQ44: 7.6375 | BR44: 7.8 | BS44: 7.9625 | BT44: 8.125 | BU44: 8.2875 | BV44: 8.45 | BW44: 8.6125 | BX44: 8.775 | BY44: 8.9375 | BZ44: 9.1 | CA44: 9.2625 | CB44: 9.425 | CC44: 9.5875 | CD44: 9.75 | CE44: 9.9125 | CF44: 10.075 | CG44: 10.2375 | CH44: 10.4 | CI44: 10.5625 | CJ44: 10.725 | CK44: 10.8875 | CL44: 11.05 | CM44: 11.2125 | CN44: 11.375 | CO44: 11.5375 | CP44: 11.7 | CQ44: 11.8625 | CR44: 12.025 | CS44: 12.1875 | CT44: 12.35 | CU44: 12.5125 | CV44: 12.675 | CW44: 12.8375 | CX44: 13 | CY44: 13.1625 | CZ44: 13.325 | DA44: 13.4875 | DB44: 13.65 | DC44: 13.8125 | DD44: 13.975 | DE44: 14.1375 | DF44: 14.3 | DG44: 14.4625 | DH44: 14.625 | DI44: 14.7875 | DJ44: 14.95 | DK44: 15.1125 | DL44: 15.275 | DM44: 15.4375 | DN44: 15.6 | DO44: 15.7625 | DP44: 15.925 | DQ44: 16.0875 | DR44: 16.25 | DS44: 16.4125 | DT44: 16.575 | DU44: 16.7375 | DV44: 16.9 | DW44: 17.0625 | DX44: 17.225 | DY44: 17.3875 | DZ44: 17.55 | EA44: 17.7125 | EB44: 17.875 | EC44: 18.0375 | ED44: 18.2 | EE44: 18.3625 | EF44: 18.525 | EG44: 18.6875 | EH44: 18.85 | EI44: 19.0125 | EJ44: 19.175 | EK44: 19.3375 | EL44: 19.5 | EM44: 19.6625 | EN44: 19.825 | EO44: 19.9875 | EP44: 20.15 | EQ44: 20.3125 | ER44: 20.475 | ES44: 20.6375 | ET44: 20.8 | EU44: 20.9625 | EV44: 21.125 | EW44: 21.2875 | EX44: 21.45 | EY44: 21.6125 | EZ44: 21.775 | FA44: 21.9375 | FB44: 22.1 | FC44: 22.2625 | FD44: 22.425 | FE44: 22.5875 | FF44: 22.75 | FG44: 22.9125 | FH44: 23.075 | FI44: 23.2375 | FJ44: 23.4 | FK44: 23.5625 | FL44: 23.725 | FM44: 23.8875 | FN44: 24.05 | FO44: 24.2125 | FP44: 24.375 | FQ44: 24.5375 | FR44: 24.7 | FS44: 24.8625 | FT44: 25.025 | FU44: 25.1875 | FV44: 25.35 | FW44: 25.5125 | FX44: 25.675 | FY44: 25.8375 | FZ44: 26 | GA44: 26.1625 | GB44: 26.325 | GC44: 26.4875 | GD44: 26.65
B45: 36 | C45: 5 | D45: 25 | E45: 19.64 | F45: 414.8 | H45: 0.4148 | L45: HW-10AWG | M45: 10 | P45: 5.5 | Q45: 120 | R45: =P45/Q45 -> 0.04583333333 | S45: 100 | T45: =R45*S45 -> 4.583333333 | U45: Constant Current | V45: 112 | W45: 0.04583333333 | X45: 0.09166666667 | Y45: 0.1375 | Z45: 0.1833333333 | AA45: 0.2291666667 | AB45: 0.275 | AC45: 0.3208333333 | AD45: 0.3666666667 | AE45: 0.4125 | AF45: 0.4583333333 | AG45: 0.5041666667 | AH45: 0.55 | AI45: 0.5958333333 | AJ45: 0.6416666667 | AK45: 0.6875 | AL45: 0.7333333333 | AM45: 0.7791666667 | AN45: 0.825 | AO45: 0.8708333333 | AP45: 0.9166666667 | AQ45: 0.9625 | AR45: 1.008333333 | AS45: 1.054166667 | AT45: 1.1 | AU45: 1.145833333 | AV45: 1.191666667 | AW45: 1.2375 | AX45: 1.283333333 | AY45: 1.329166667 | AZ45: 1.375 | BA45: 1.420833333 | BB45: 1.466666667 | BC45: 1.5125 | BD45: 1.558333333 | BE45: 1.604166667 | BF45: 1.65 | BG45: 1.695833333 | BH45: 1.741666667 | BI45: 1.7875 | BJ45: 1.833333333 | BK45: 1.879166667 | BL45: 1.925 | BM45: 1.970833333 | BN45: 2.016666667 | BO45: 2.0625 | BP45: 2.108333333 | BQ45: 2.154166667 | BR45: 2.2 | BS45: 2.245833333 | BT45: 2.291666667 | BU45: 2.3375 | BV45: 2.383333333 | BW45: 2.429166667 | BX45: 2.475 | BY45: 2.520833333 | BZ45: 2.566666667 | CA45: 2.6125 | CB45: 2.658333333 | CC45: 2.704166667 | CD45: 2.75 | CE45: 2.795833333 | CF45: 2.841666667 | CG45: 2.8875 | CH45: 2.933333333 | CI45: 2.979166667 | CJ45: 3.025 | CK45: 3.070833333 | CL45: 3.116666667 | CM45: 3.1625 | CN45: 3.208333333 | CO45: 3.254166667 | CP45: 3.3 | CQ45: 3.345833333 | CR45: 3.391666667 | CS45: 3.4375 | CT45: 3.483333333 | CU45: 3.529166667 | CV45: 3.575 | CW45: 3.620833333 | CX45: 3.666666667 | CY45: 3.7125 | CZ45: 3.758333333 | DA45: 3.804166667 | DB45: 3.85 | DC45: 3.895833333 | DD45: 3.941666667 | DE45: 3.9875 | DF45: 4.033333333 | DG45: 4.079166667 | DH45: 4.125 | DI45: 4.170833333 | DJ45: 4.216666667 | DK45: 4.2625 | DL45: 4.308333333 | DM45: 4.354166667 | DN45: 4.4 | DO45: 4.445833333 | DP45: 4.491666667 | DQ45: 4.5375 | DR45: 4.583333333 | DS45: 4.629166667 | DT45: 4.675 | DU45: 4.720833333 | DV45: 4.766666667 | DW45: 4.8125 | DX45: 4.858333333 | DY45: 4.904166667 | DZ45: 4.95 | EA45: 4.995833333 | EB45: 5.041666667 | EC45: 5.0875 | ED45: 5.133333333 | EE45: 5.179166667 | EF45: 5.225 | EG45: 5.270833333 | EH45: 5.316666667 | EI45: 5.3625 | EJ45: 5.408333333 | EK45: 5.454166667 | EL45: 5.5 | EM45: 5.545833333 | EN45: 5.591666667 | EO45: 5.6375 | EP45: 5.683333333 | EQ45: 5.729166667 | ER45: 5.775 | ES45: 5.820833333 | ET45: 5.866666667 | EU45: 5.9125 | EV45: 5.958333333 | EW45: 6.004166667 | EX45: 6.05 | EY45: 6.095833333 | EZ45: 6.141666667 | FA45: 6.1875 | FB45: 6.233333333 | FC45: 6.279166667 | FD45: 6.325 | FE45: 6.370833333 | FF45: 6.416666667 | FG45: 6.4625 | FH45: 6.508333333 | FI45: 6.554166667 | FJ45: 6.6 | FK45: 6.645833333 | FL45: 6.691666667 | FM45: 6.7375 | FN45: 6.783333333 | FO45: 6.829166667 | FP45: 6.875 | FQ45: 6.920833333 | FR45: 6.966666667 | FS45: 7.0125 | FT45: 7.058333333 | FU45: 7.104166667 | FV45: 7.15 | FW45: 7.195833333 | FX45: 7.241666667 | FY45: 7.2875 | FZ45: 7.333333333 | GA45: 7.379166667 | GB45: 7.425 | GC45: 7.470833333 | GD45: 7.516666667
B46: 37 | C46: 4.453 | D46: 19.83 | E46: 15.57 | F46: 523.1 | H46: 0.5231 | P46: 4 | Q46: 120 | R46: =P46/Q46 -> 0.03333333333 | S46: 100 | T46: =R46*S46 -> 3.333333333 | U46: Constant Current | V46: 110 | W46: 0.03333333333 | X46: 0.06666666667 | Y46: 0.1 | Z46: 0.1333333333 | AA46: 0.1666666667 | AB46: 0.2 | AC46: 0.2333333333 | AD46: 0.2666666667 | AE46: 0.3 | AF46: 0.3333333333 | AG46: 0.3666666667 | AH46: 0.4 | AI46: 0.4333333333 | AJ46: 0.4666666667 | AK46: 0.5 | AL46: 0.5333333333 | AM46: 0.5666666667 | AN46: 0.6 | AO46: 0.6333333333 | AP46: 0.6666666667 | AQ46: 0.7 | AR46: 0.7333333333 | AS46: 0.7666666667 | AT46: 0.8 | AU46: 0.8333333333 | AV46: 0.8666666667 | AW46: 0.9 | AX46: 0.9333333333 | AY46: 0.9666666667 | AZ46: 1 | BA46: 1.033333333 | BB46: 1.066666667 | BC46: 1.1 | BD46: 1.133333333 | BE46: 1.166666667 | BF46: 1.2 | BG46: 1.233333333 | BH46: 1.266666667 | BI46: 1.3 | BJ46: 1.333333333 | BK46: 1.366666667 | BL46: 1.4 | BM46: 1.433333333 | BN46: 1.466666667 | BO46: 1.5 | BP46: 1.533333333 | BQ46: 1.566666667 | BR46: 1.6 | BS46: 1.633333333 | BT46: 1.666666667 | BU46: 1.7 | BV46: 1.733333333 | BW46: 1.766666667 | BX46: 1.8 | BY46: 1.833333333 | BZ46: 1.866666667 | CA46: 1.9 | CB46: 1.933333333 | CC46: 1.966666667 | CD46: 2 | CE46: 2.033333333 | CF46: 2.066666667 | CG46: 2.1 | CH46: 2.133333333 | CI46: 2.166666667 | CJ46: 2.2 | CK46: 2.233333333 | CL46: 2.266666667 | CM46: 2.3 | CN46: 2.333333333 | CO46: 2.366666667 | CP46: 2.4 | CQ46: 2.433333333 | CR46: 2.466666667 | CS46: 2.5 | CT46: 2.533333333 | CU46: 2.566666667 | CV46: 2.6 | CW46: 2.633333333 | CX46: 2.666666667 | CY46: 2.7 | CZ46: 2.733333333 | DA46: 2.766666667 | DB46: 2.8 | DC46: 2.833333333 | DD46: 2.866666667 | DE46: 2.9 | DF46: 2.933333333 | DG46: 2.966666667 | DH46: 3 | DI46: 3.033333333 | DJ46: 3.066666667 | DK46: 3.1 | DL46: 3.133333333 | DM46: 3.166666667 | DN46: 3.2 | DO46: 3.233333333 | DP46: 3.266666667 | DQ46: 3.3 | DR46: 3.333333333 | DS46: 3.366666667 | DT46: 3.4 | DU46: 3.433333333 | DV46: 3.466666667 | DW46: 3.5 | DX46: 3.533333333 | DY46: 3.566666667 | DZ46: 3.6 | EA46: 3.633333333 | EB46: 3.666666667 | EC46: 3.7 | ED46: 3.733333333 | EE46: 3.766666667 | EF46: 3.8 | EG46: 3.833333333 | EH46: 3.866666667 | EI46: 3.9 | EJ46: 3.933333333 | EK46: 3.966666667 | EL46: 4 | EM46: 4.033333333 | EN46: 4.066666667 | EO46: 4.1 | EP46: 4.133333333 | EQ46: 4.166666667 | ER46: 4.2 | ES46: 4.233333333 | ET46: 4.266666667 | EU46: 4.3 | EV46: 4.333333333 | EW46: 4.366666667 | EX46: 4.4 | EY46: 4.433333333 | EZ46: 4.466666667 | FA46: 4.5 | FB46: 4.533333333 | FC46: 4.566666667 | FD46: 4.6 | FE46: 4.633333333 | FF46: 4.666666667 | FG46: 4.7 | FH46: 4.733333333 | FI46: 4.766666667 | FJ46: 4.8 | FK46: 4.833333333 | FL46: 4.866666667 | FM46: 4.9 | FN46: 4.933333333 | FO46: 4.966666667 | FP46: 5 | FQ46: 5.033333333 | FR46: 5.066666667 | FS46: 5.1 | FT46: 5.133333333 | FU46: 5.166666667 | FV46: 5.2 | FW46: 5.233333333 | FX46: 5.266666667 | FY46: 5.3 | FZ46: 5.333333333 | GA46: 5.366666667 | GB46: 5.4 | GC46: 5.433333333 | GD46: 5.466666667
B47: 38 | C47: 3.965 | D47: 15.72 | E47: 12.35 | F47: 659.6 | H47: 0.6596 | P47: 4 | Q47: 120 | R47: 0.03333333333 | S47: 164 | T47: =R47*S47 -> 5.466666667 | U47: Constant Current | V47: 110 | W47: 0.03333333333 | X47: 0.06666666667 | Y47: 0.1 | Z47: 0.1333333333 | AA47: 0.1666666667 | AB47: 0.2 | AC47: 0.2333333333 | AD47: 0.2666666667 | AE47: 0.3 | AF47: 0.3333333333 | AG47: 0.3666666667 | AH47: 0.4 | AI47: 0.4333333333 | AJ47: 0.4666666667 | AK47: 0.5 | AL47: 0.5333333333 | AM47: 0.5666666667 | AN47: 0.6 | AO47: 0.6333333333 | AP47: 0.6666666667 | AQ47: 0.7 | AR47: 0.7333333333 | AS47: 0.7666666667 | AT47: 0.8 | AU47: 0.8333333333 | AV47: 0.8666666667 | AW47: 0.9 | AX47: 0.9333333333 | AY47: 0.9666666667 | AZ47: 1 | BA47: 1.033333333 | BB47: 1.066666667 | BC47: 1.1 | BD47: 1.133333333 | BE47: 1.166666667 | BF47: 1.2 | BG47: 1.233333333 | BH47: 1.266666667 | BI47: 1.3 | BJ47: 1.333333333 | BK47: 1.366666667 | BL47: 1.4 | BM47: 1.433333333 | BN47: 1.466666667 | BO47: 1.5 | BP47: 1.533333333 | BQ47: 1.566666667 | BR47: 1.6 | BS47: 1.633333333 | BT47: 1.666666667 | BU47: 1.7 | BV47: 1.733333333 | BW47: 1.766666667 | BX47: 1.8 | BY47: 1.833333333 | BZ47: 1.866666667 | CA47: 1.9 | CB47: 1.933333333 | CC47: 1.966666667 | CD47: 2 | CE47: 2.033333333 | CF47: 2.066666667 | CG47: 2.1 | CH47: 2.133333333 | CI47: 2.166666667 | CJ47: 2.2 | CK47: 2.233333333 | CL47: 2.266666667 | CM47: 2.3 | CN47: 2.333333333 | CO47: 2.366666667 | CP47: 2.4 | CQ47: 2.433333333 | CR47: 2.466666667 | CS47: 2.5 | CT47: 2.533333333 | CU47: 2.566666667 | CV47: 2.6 | CW47: 2.633333333 | CX47: 2.666666667 | CY47: 2.7 | CZ47: 2.733333333 | DA47: 2.766666667 | DB47: 2.8 | DC47: 2.833333333 | DD47: 2.866666667 | DE47: 2.9 | DF47: 2.933333333 | DG47: 2.966666667 | DH47: 3 | DI47: 3.033333333 | DJ47: 3.066666667 | DK47: 3.1 | DL47: 3.133333333 | DM47: 3.166666667 | DN47: 3.2 | DO47: 3.233333333 | DP47: 3.266666667 | DQ47: 3.3 | DR47: 3.333333333 | DS47: 3.366666667 | DT47: 3.4 | DU47: 3.433333333 | DV47: 3.466666667 | DW47: 3.5 | DX47: 3.533333333 | DY47: 3.566666667 | DZ47: 3.6 | EA47: 3.633333333 | EB47: 3.666666667 | EC47: 3.7 | ED47: 3.733333333 | EE47: 3.766666667 | EF47: 3.8 | EG47: 3.833333333 | EH47: 3.866666667 | EI47: 3.9 | EJ47: 3.933333333 | EK47: 3.966666667 | EL47: 4 | EM47: 4.033333333 | EN47: 4.066666667 | EO47: 4.1 | EP47: 4.133333333 | EQ47: 4.166666667 | ER47: 4.2 | ES47: 4.233333333 | ET47: 4.266666667 | EU47: 4.3 | EV47: 4.333333333 | EW47: 4.366666667 | EX47: 4.4 | EY47: 4.433333333 | EZ47: 4.466666667 | FA47: 4.5 | FB47: 4.533333333 | FC47: 4.566666667 | FD47: 4.6 | FE47: 4.633333333 | FF47: 4.666666667 | FG47: 4.7 | FH47: 4.733333333 | FI47: 4.766666667 | FJ47: 4.8 | FK47: 4.833333333 | FL47: 4.866666667 | FM47: 4.9 | FN47: 4.933333333 | FO47: 4.966666667 | FP47: 5 | FQ47: 5.033333333 | FR47: 5.066666667 | FS47: 5.1 | FT47: 5.133333333 | FU47: 5.166666667 | FV47: 5.2 | FW47: 5.233333333 | FX47: 5.266666667 | FY47: 5.3 | FZ47: 5.333333333 | GA47: 5.366666667 | GB47: 5.4 | GC47: 5.433333333 | GD47: 5.466666667
B48: 39 | C48: 3.531 | D48: 12.47 | E48: 9.793 | F48: 831.8 | H48: 0.8318 | P48: 4 | Q48: 120 | R48: 0.03333333333 | S48: 164 | T48: 5.466666667 | U48: Constant Current | V48: 110 | W48: 0.03333333333 | X48: 0.06666666667 | Y48: 0.1 | Z48: 0.1333333333 | AA48: 0.1666666667 | AB48: 0.2 | AC48: 0.2333333333 | AD48: 0.2666666667 | AE48: 0.3 | AF48: 0.3333333333 | AG48: 0.3666666667 | AH48: 0.4 | AI48: 0.4333333333 | AJ48: 0.4666666667 | AK48: 0.5 | AL48: 0.5333333333 | AM48: 0.5666666667 | AN48: 0.6 | AO48: 0.6333333333 | AP48: 0.6666666667 | AQ48: 0.7 | AR48: 0.7333333333 | AS48: 0.7666666667 | AT48: 0.8 | AU48: 0.8333333333 | AV48: 0.8666666667 | AW48: 0.9 | AX48: 0.9333333333 | AY48: 0.9666666667 | AZ48: 1 | BA48: 1.033333333 | BB48: 1.066666667 | BC48: 1.1 | BD48: 1.133333333 | BE48: 1.166666667 | BF48: 1.2 | BG48: 1.233333333 | BH48: 1.266666667 | BI48: 1.3 | BJ48: 1.333333333 | BK48: 1.366666667 | BL48: 1.4 | BM48: 1.433333333 | BN48: 1.466666667 | BO48: 1.5 | BP48: 1.533333333 | BQ48: 1.566666667 | BR48: 1.6 | BS48: 1.633333333 | BT48: 1.666666667 | BU48: 1.7 | BV48: 1.733333333 | BW48: 1.766666667 | BX48: 1.8 | BY48: 1.833333333 | BZ48: 1.866666667 | CA48: 1.9 | CB48: 1.933333333 | CC48: 1.966666667 | CD48: 2 | CE48: 2.033333333 | CF48: 2.066666667 | CG48: 2.1 | CH48: 2.133333333 | CI48: 2.166666667 | CJ48: 2.2 | CK48: 2.233333333 | CL48: 2.266666667 | CM48: 2.3 | CN48: 2.333333333 | CO48: 2.366666667 | CP48: 2.4 | CQ48: 2.433333333 | CR48: 2.466666667 | CS48: 2.5 | CT48: 2.533333333 | CU48: 2.566666667 | CV48: 2.6 | CW48: 2.633333333 | CX48: 2.666666667 | CY48: 2.7 | CZ48: 2.733333333 | DA48: 2.766666667 | DB48: 2.8 | DC48: 2.833333333 | DD48: 2.866666667 | DE48: 2.9 | DF48: 2.933333333 | DG48: 2.966666667 | DH48: 3 | DI48: 3.033333333 | DJ48: 3.066666667 | DK48: 3.1 | DL48: 3.133333333 | DM48: 3.166666667 | DN48: 3.2 | DO48: 3.233333333 | DP48: 3.266666667 | DQ48: 3.3 | DR48: 3.333333333 | DS48: 3.366666667 | DT48: 3.4 | DU48: 3.433333333 | DV48: 3.466666667 | DW48: 3.5 | DX48: 3.533333333 | DY48: 3.566666667 | DZ48: 3.6 | EA48: 3.633333333 | EB48: 3.666666667 | EC48: 3.7 | ED48: 3.733333333 | EE48: 3.766666667 | EF48: 3.8 | EG48: 3.833333333 | EH48: 3.866666667 | EI48: 3.9 | EJ48: 3.933333333 | EK48: 3.966666667 | EL48: 4 | EM48: 4.033333333 | EN48: 4.066666667 | EO48: 4.1 | EP48: 4.133333333 | EQ48: 4.166666667 | ER48: 4.2 | ES48: 4.233333333 | ET48: 4.266666667 | EU48: 4.3 | EV48: 4.333333333 | EW48: 4.366666667 | EX48: 4.4 | EY48: 4.433333333 | EZ48: 4.466666667 | FA48: 4.5 | FB48: 4.533333333 | FC48: 4.566666667 | FD48: 4.6 | FE48: 4.633333333 | FF48: 4.666666667 | FG48: 4.7 | FH48: 4.733333333 | FI48: 4.766666667 | FJ48: 4.8 | FK48: 4.833333333 | FL48: 4.866666667 | FM48: 4.9 | FN48: 4.933333333 | FO48: 4.966666667 | FP48: 5 | FQ48: 5.033333333 | FR48: 5.066666667 | FS48: 5.1 | FT48: 5.133333333 | FU48: 5.166666667 | FV48: 5.2 | FW48: 5.233333333 | FX48: 5.266666667 | FY48: 5.3 | FZ48: 5.333333333 | GA48: 5.366666667 | GB48: 5.4 | GC48: 5.433333333 | GD48: 5.466666667
B49: 40 | C49: 3.145 | D49: 9.888 | E49: 7.766 | F49: 1049 | H49: 1.049 | K49: =IF(N49>'VOLT LOSS CAL'!$C$15,1,0) ->  | L49: 10 | M49: =IFERROR(('VOLT LOSS CAL'!$C$14*Q69),"") ->  | N49: ='VOLT LOSS CAL'!$C$14-DATA!M49 ->  | P49: 2.5 | Q49: 120 | R49: 0.02083333333 | S49: 164 | T49: 3.416666667 | U49: Constant Current | V49: 108 | W49: 0.02083333333 | X49: 0.04166666667 | Y49: 0.0625 | Z49: 0.08333333333 | AA49: 0.1041666667 | AB49: 0.125 | AC49: 0.1458333333 | AD49: 0.1666666667 | AE49: 0.1875 | AF49: 0.2083333333 | AG49: 0.2291666667 | AH49: 0.25 | AI49: 0.2708333333 | AJ49: 0.2916666667 | AK49: 0.3125 | AL49: 0.3333333333 | AM49: 0.3541666667 | AN49: 0.375 | AO49: 0.3958333333 | AP49: 0.4166666667 | AQ49: 0.4375 | AR49: 0.4583333333 | AS49: 0.4791666667 | AT49: 0.5 | AU49: 0.5208333333 | AV49: 0.5416666667 | AW49: 0.5625 | AX49: 0.5833333333 | AY49: 0.6041666667 | AZ49: 0.625 | BA49: 0.6458333333 | BB49: 0.6666666667 | BC49: 0.6875 | BD49: 0.7083333333 | BE49: 0.7291666667 | BF49: 0.75 | BG49: 0.7708333333 | BH49: 0.7916666667 | BI49: 0.8125 | BJ49: 0.8333333333 | BK49: 0.8541666667 | BL49: 0.875 | BM49: 0.8958333333 | BN49: 0.9166666667 | BO49: 0.9375 | BP49: 0.9583333333 | BQ49: 0.9791666667 | BR49: 1 | BS49: 1.020833333 | BT49: 1.041666667 | BU49: 1.0625 | BV49: 1.083333333 | BW49: 1.104166667 | BX49: 1.125 | BY49: 1.145833333 | BZ49: 1.166666667 | CA49: 1.1875 | CB49: 1.208333333 | CC49: 1.229166667 | CD49: 1.25 | CE49: 1.270833333 | CF49: 1.291666667 | CG49: 1.3125 | CH49: 1.333333333 | CI49: 1.354166667 | CJ49: 1.375 | CK49: 1.395833333 | CL49: 1.416666667 | CM49: 1.4375 | CN49: 1.458333333 | CO49: 1.479166667 | CP49: 1.5 | CQ49: 1.520833333 | CR49: 1.541666667 | CS49: 1.5625 | CT49: 1.583333333 | CU49: 1.604166667 | CV49: 1.625 | CW49: 1.645833333 | CX49: 1.666666667 | CY49: 1.6875 | CZ49: 1.708333333 | DA49: 1.729166667 | DB49: 1.75 | DC49: 1.770833333 | DD49: 1.791666667 | DE49: 1.8125 | DF49: 1.833333333 | DG49: 1.854166667 | DH49: 1.875 | DI49: 1.895833333 | DJ49: 1.916666667 | DK49: 1.9375 | DL49: 1.958333333 | DM49: 1.979166667 | DN49: 2 | DO49: 2.020833333 | DP49: 2.041666667 | DQ49: 2.0625 | DR49: 2.083333333 | DS49: 2.104166667 | DT49: 2.125 | DU49: 2.145833333 | DV49: 2.166666667 | DW49: 2.1875 | DX49: 2.208333333 | DY49: 2.229166667 | DZ49: 2.25 | EA49: 2.270833333 | EB49: 2.291666667 | EC49: 2.3125 | ED49: 2.333333333 | EE49: 2.354166667 | EF49: 2.375 | EG49: 2.395833333 | EH49: 2.416666667 | EI49: 2.4375 | EJ49: 2.458333333 | EK49: 2.479166667 | EL49: 2.5 | EM49: 2.520833333 | EN49: 2.541666667 | EO49: 2.5625 | EP49: 2.583333333 | EQ49: 2.604166667 | ER49: 2.625 | ES49: 2.645833333 | ET49: 2.666666667 | EU49: 2.6875 | EV49: 2.708333333 | EW49: 2.729166667 | EX49: 2.75 | EY49: 2.770833333 | EZ49: 2.791666667 | FA49: 2.8125 | FB49: 2.833333333 | FC49: 2.854166667 | FD49: 2.875 | FE49: 2.895833333 | FF49: 2.916666667 | FG49: 2.9375 | FH49: 2.958333333 | FI49: 2.979166667 | FJ49: 3 | FK49: 3.020833333 | FL49: 3.041666667 | FM49: 3.0625 | FN49: 3.083333333 | FO49: 3.104166667 | FP49: 3.125 | FQ49: 3.145833333 | FR49: 3.166666667 | FS49: 3.1875 | FT49: 3.208333333 | FU49: 3.229166667 | FV49: 3.25 | FW49: 3.270833333 | FX49: 3.291666667 | FY49: 3.3125 | FZ49: 3.333333333 | GA49: 3.354166667 | GB49: 3.375 | GC49: 3.395833333 | GD49: 3.416666667
K50: =IF(N50>'VOLT LOSS CAL'!$C$15,1,0) ->  | L50: 12 | M50: =IFERROR(('VOLT LOSS CAL'!$C$14*R69),"") ->  | N50: ='VOLT LOSS CAL'!$C$14-DATA!M50 ->  | P50: 3 | Q50: 120 | R50: 0.025 | S50: 164 | T50: 4.1 | U50: Constant Voltasge | V50: 110 | W50: 0.025 | X50: 0.05 | Y50: 0.075 | Z50: 0.1 | AA50: 0.125 | AB50: 0.15 | AC50: 0.175 | AD50: 0.2 | AE50: 0.225 | AF50: 0.25 | AG50: 0.275 | AH50: 0.3 | AI50: 0.325 | AJ50: 0.35 | AK50: 0.375 | AL50: 0.4 | AM50: 0.425 | AN50: 0.45 | AO50: 0.475 | AP50: 0.5 | AQ50: 0.525 | AR50: 0.55 | AS50: 0.575 | AT50: 0.6 | AU50: 0.625 | AV50: 0.65 | AW50: 0.675 | AX50: 0.7 | AY50: 0.725 | AZ50: 0.75 | BA50: 0.775 | BB50: 0.8 | BC50: 0.825 | BD50: 0.85 | BE50: 0.875 | BF50: 0.9 | BG50: 0.925 | BH50: 0.95 | BI50: 0.975 | BJ50: 1 | BK50: 1.025 | BL50: 1.05 | BM50: 1.075 | BN50: 1.1 | BO50: 1.125 | BP50: 1.15 | BQ50: 1.175 | BR50: 1.2 | BS50: 1.225 | BT50: 1.25 | BU50: 1.275 | BV50: 1.3 | BW50: 1.325 | BX50: 1.35 | BY50: 1.375 | BZ50: 1.4 | CA50: 1.425 | CB50: 1.45 | CC50: 1.475 | CD50: 1.5 | CE50: 1.525 | CF50: 1.55 | CG50: 1.575 | CH50: 1.6 | CI50: 1.625 | CJ50: 1.65 | CK50: 1.675 | CL50: 1.7 | CM50: 1.725 | CN50: 1.75 | CO50: 1.775 | CP50: 1.8 | CQ50: 1.825 | CR50: 1.85 | CS50: 1.875 | CT50: 1.9 | CU50: 1.925 | CV50: 1.95 | CW50: 1.975 | CX50: 2 | CY50: 2.025 | CZ50: 2.05 | DA50: 2.075 | DB50: 2.1 | DC50: 2.125 | DD50: 2.15 | DE50: 2.175 | DF50: 2.2 | DG50: 2.225 | DH50: 2.25 | DI50: 2.275 | DJ50: 2.3 | DK50: 2.325 | DL50: 2.35 | DM50: 2.375 | DN50: 2.4 | DO50: 2.425 | DP50: 2.45 | DQ50: 2.475 | DR50: 2.5 | DS50: 2.525 | DT50: 2.55 | DU50: 2.575 | DV50: 2.6 | DW50: 2.625 | DX50: 2.65 | DY50: 2.675 | DZ50: 2.7 | EA50: 2.725 | EB50: 2.75 | EC50: 2.775 | ED50: 2.8 | EE50: 2.825 | EF50: 2.85 | EG50: 2.875 | EH50: 2.9 | EI50: 2.925 | EJ50: 2.95 | EK50: 2.975 | EL50: 3 | EM50: 3.025 | EN50: 3.05 | EO50: 3.075 | EP50: 3.1 | EQ50: 3.125 | ER50: 3.15 | ES50: 3.175 | ET50: 3.2 | EU50: 3.225 | EV50: 3.25 | EW50: 3.275 | EX50: 3.3 | EY50: 3.325 | EZ50: 3.35 | FA50: 3.375 | FB50: 3.4 | FC50: 3.425 | FD50: 3.45 | FE50: 3.475 | FF50: 3.5 | FG50: 3.525 | FH50: 3.55 | FI50: 3.575 | FJ50: 3.6 | FK50: 3.625 | FL50: 3.65 | FM50: 3.675 | FN50: 3.7 | FO50: 3.725 | FP50: 3.75 | FQ50: 3.775 | FR50: 3.8 | FS50: 3.825 | FT50: 3.85 | FU50: 3.875 | FV50: 3.9 | FW50: 3.925 | FX50: 3.95 | FY50: 3.975 | FZ50: 4 | GA50: 4.025 | GB50: 4.05 | GC50: 4.075 | GD50: 4.1
K51: =IF(N51>'VOLT LOSS CAL'!$C$15,1,0) ->  | L51: 14 | M51: =IFERROR(('VOLT LOSS CAL'!$C$14*S69),"") ->  | N51: ='VOLT LOSS CAL'!$C$14-DATA!M51 -> 
K52: =IF(N52>'VOLT LOSS CAL'!$C$15,1,0) ->  | L52: 16 | M52: =IFERROR(('VOLT LOSS CAL'!$C$14*T69),"") ->  | N52: ='VOLT LOSS CAL'!$C$14-DATA!M52 ->  | Q52: Ohms/Ft | R52: =IFERROR(VLOOKUP('VOLT LOSS CAL'!C22,DATA!B6:$H$49,7,FALSE),"") -> 4.901e-05
K53: =IF(N53>'VOLT LOSS CAL'!$C$15,1,0) ->  | L53: 18 | M53: =IFERROR(('VOLT LOSS CAL'!$C$14*U69),"") ->  | N53: ='VOLT LOSS CAL'!$C$14-DATA!M53 ->  | Q53: Ohms | R53: =IFERROR((('VOLT LOSS CAL'!C23*R52)*2),"") -> 0
K54: =IF(N54>'VOLT LOSS CAL'!$C$15,1,0) ->  | L54: 20 | M54: =IFERROR(('VOLT LOSS CAL'!$C$14*V69),"") ->  | N54: ='VOLT LOSS CAL'!$C$14-DATA!M54 ->  | Q54: Volt Drop | R54: =IFERROR((('VOLT LOSS CAL'!C20*DATA!R53)/'VOLT LOSS CAL'!C14),"") -> 
K55: =IF(N55>'VOLT LOSS CAL'!$C$15,1,0) ->  | L55: 22 | M55: =IFERROR(('VOLT LOSS CAL'!$C$14*W69),"") ->  | N55: ='VOLT LOSS CAL'!$C$14-DATA!M55 ->  | Q55: Volt Drop (V) | R55: =IFERROR(('VOLT LOSS CAL'!C14*DATA!R54),"") -> 
Q56: Volt Out (V) | R56: =IFERROR(('VOLT LOSS CAL'!C14-DATA!R55),"") -> 
L58: =IF(N49>'VOLT LOSS CAL'!C15,"10AWG ","")&IF(DATA!N50>'VOLT LOSS CAL'!C15,"12AWG ","")&IF(DATA!N51>'VOLT LOSS CAL'!C15,"14AWG ","")&IF(DATA!N52>'VOLT LOSS CAL'!C15,"16AWG ","")&IF(DATA!N53>'VOLT LOSS CAL'!C15,"18AWG ","")&IF(DATA!N54>'VOLT LOSS CAL'!C15,"20AWG ","") ->  | Q58: Constant Current | S58: =24-U58 -> 23.04 | U58: =24*4% -> 0.96
L59: Supplied by other | Q59: Constant Voltage | S59: =24-U59 -> 23.4 | U59: =24*2.5% -> 0.6
Q60: Constant Current | S60: =163-U60 -> 158.11 | U60: =163*3% -> 4.89
L61: =CONCATENATE(L58,L59) ->  | Q61: Constant Voltage | S61: =163-U61 -> 158.11 | U61: =163*3% -> 4.89
Q66: 10 | R66: 12 | S66: 14 | T66: 16 | U66: 18 | V66: 20 | W66: 22
Q67: =H19 -> 0.0009989 | R67: =H21 -> 0.001588 | S67: =H23 -> 0.002525 | T67: =H25 -> 0.004016 | U67: =H27 -> 0.006385 | V67: =H29 -> 0.01015 | W67: =H31 -> 0.01614
Q68: =IFERROR((('VOLT LOSS CAL'!$C$23*Q67)*2),"") -> 0 | R68: =IFERROR((('VOLT LOSS CAL'!$C$23*R67)*2),"") -> 0 | S68: =IFERROR((('VOLT LOSS CAL'!$C$23*S67)*2),"") -> 0 | T68: =IFERROR((('VOLT LOSS CAL'!$C$23*T67)*2),"") -> 0 | U68: =IFERROR((('VOLT LOSS CAL'!$C$23*U67)*2),"") -> 0 | V68: =IFERROR((('VOLT LOSS CAL'!$C$23*V67)*2),"") -> 0 | W68: =IFERROR((('VOLT LOSS CAL'!$C$23*W67)*2),"") -> 0
Q69: =IFERROR((('VOLT LOSS CAL'!$C$20*Q68)/'VOLT LOSS CAL'!$C$14),"") ->  | R69: =IFERROR((('VOLT LOSS CAL'!$C$20*R68)/'VOLT LOSS CAL'!$C$14),"") ->  | S69: =IFERROR((('VOLT LOSS CAL'!$C$20*S68)/'VOLT LOSS CAL'!$C$14),"") ->  | T69: =IFERROR((('VOLT LOSS CAL'!$C$20*T68)/'VOLT LOSS CAL'!$C$14),"") ->  | U69: =IFERROR((('VOLT LOSS CAL'!$C$20*U68)/'VOLT LOSS CAL'!$C$14),"") ->  | V69: =IFERROR((('VOLT LOSS CAL'!$C$20*V68)/'VOLT LOSS CAL'!$C$14),"") ->  | W69: =IFERROR((('VOLT LOSS CAL'!$C$20*W68)/'VOLT LOSS CAL'!$C$14),"") -> 
M80: 22 | N80: 1
M81: 20 | N81: 2
M82: 18 | N82: 3
M83: 16 | N83: 4
M84: 14 | N84: 5
M85: 12 | N85: 6
M86: 10 | N86: 7
N87: 8
N88: 9
N89: 10
N90: 11
N91: 12
N92: 13
N93: 14
N94: 15
N95: 16
N96: 17
N97: 18
N98: 19
N99: 20
N100: 21
N101: 22
N102: 23
N103: 24
N104: 25
N105: 26
N106: 27
N107: 28
N108: 29
N109: 30
N110: 31
N111: 32
N112: 33
N113: 34
N114: 35
N115: 36
N116: 37
N117: 38
N118: 39
N119: 40
N120: 41
N121: 42
N122: 43
N123: 44
N124: 45
N125: 46
N126: 47
N127: 48
N128: 49
N129: 50
N130: 51
N131: 52
N132: 53
N133: 54
N134: 55
N135: 56
N136: 57
N137: 58
N138: 59
N139: 60
N140: 61
N141: 62
N142: 63
N143: 64
N144: 65
N145: 66
N146: 67
N147: 68
N148: 69
N149: 70
N150: 71
N151: 72
N152: 73
N153: 74
N154: 75
N155: 76
N156: 77
N157: 78
N158: 79
N159: 80
N160: 81
N161: 82
N162: 83
N163: 84
N164: 85
N165: 86
N166: 87
N167: 88
N168: 89
N169: 90
N170: 91
N171: 92
N172: 93
N173: 94
N174: 95
N175: 96
N176: 97
N177: 98
N178: 99
N179: 100
N180: 101
N181: 102
N182: 103
N183: 104
N184: 105
N185: 106
N186: 107
N187: 108
N188: 109
N189: 110
N190: 111
N191: 112
N192: 113
N193: 114
N194: 115
N195: 116
N196: 117
N197: 118
N198: 119
N199: 120
N200: 121
N201: 122
N202: 123
N203: 124
N204: 125
N205: 126
N206: 127
N207: 128
N208: 129
N209: 130
N210: 131
N211: 132
N212: 133
N213: 134
N214: 135
N215: 136
... 1533 more rows
